Workbook

Sheet Main
B10: 2022-03-25
B12: Sheet No. | C12: Template Name | D12: Summary
B13: 1 | C13: Future Intra | D13: For Intraday trading in F&O segment
B14: 2 | C14: Cash Intra | D14: For Intraday trading in cash market segment
B15: 3 | C15: Mid-cap Intra | D15: For Intraday trading in Mid-cap stocks
B16: 4 | C16: Bulk Deals | D16: Reveals Bulk Deals carried on NSE & BSE
B17: 5 | C17: Call Tracker
K27: `

Sheet Future Intra
M5: Back to Main Page
A6: FOR INTRA DAY TRADING | L6: =Main!B10 -> 2022-03-25
A9: Sr.no | B9: Sector | C9: Scrip | D9: Expiry Date | E9: CLOSE RATE | F9: Pivot Point | G9: Supports | J9: Resistances
E10: Point | F10: Point | G10: S1 | H10: S2 | I10: S3 | J10: R1 | K10: R2 | L10: R3 | M10: HIGH | N10: LOW | O10: OI | P10: % Change in OI
A11: 1 | B11: Index | C11: NIFTY | D11: 2022-03-31 | E11: 17242.80 | F11: 17230.93 | G11: 17122.87 | H11: 17002.93 | I11: 16894.87 | J11: 17350.87 | K11: 17458.93 | L11: 17578.87 | M11: 17339 | N11: 17111 | O11: 16396150 | P11: -1.43%
A12: 2 | B12: Index | C12: BANKNIFTY | D12: 2022-03-31 | E12: 35641.20 | F12: 35733.38 | G12: 35409.82 | H12: 35178.43 | I12: 34854.87 | J12: 35964.77 | K12: 36288.33 | L12: 36519.72 | M12: 36056.95 | N12: 35502 | O12: 6601000 | P12: 2.00%
A13: 3 | B13: Index | C13: FINNIFTY | D13: 2022-03-29 | E13: 16720.95 | F13: 16808.80 | G13: 16632.15 | H13: 16543.35 | I13: 16366.70 | J13: 16897.60 | K13: 17074.25 | L13: 17163.05 | M13: 16985.45 | N13: 16720 | O13: 5000 | P13: 31.58%
A14: 4 | B14: Index | C14: MIDCPNIFTY | D14: 2022-03-29 | E14: 7232.00 | F14: 7237.28 | G14: 7224.57 | H14: 7217.13 | I14: 7204.42 | J14: 7244.72 | K14: 7257.43 | L14: 7264.87 | M14: 7250 | N14: 7229.85 | O14: 1950 | P14: -3.70%
A15: 5 | B15: Chemical | C15: AARTIIND | D15: 2022-03-31 | E15: 919.50 | F15: 918.50 | G15: 911.00 | H15: 902.50 | I15: 895.00 | J15: 927.00 | K15: 934.50 | L15: 943.00 | M15: 926 | N15: 910 | O15: 2516000 | P15: -1.66%
A16: 6 | B16: Capital_Goods | C16: ABB | D16: 2022-03-31 | E16: 2044.00 | F16: 2029.85 | G16: 1999.40 | H16: 1954.80 | I16: 1924.35 | J16: 2074.45 | K16: 2104.90 | L16: 2149.50 | M16: 2060.3 | N16: 1985.25 | O16: 253250 | P16: 1.40%
A17: 7 | B17: Pharma | C17: ABBOTINDIA | D17: 2022-03-31 | E17: 16496.05 | F17: 16565.13 | G17: 16361.07 | H17: 16226.08 | I17: 16022.02 | J17: 16700.12 | K17: 16904.18 | L17: 17039.17 | M17: 16769.2 | N17: 16430.15 | O17: 40550 | P17: 3.51%
A18: 8 | B18: Others | C18: ABCAPITAL | D18: 2022-03-31 | E18: 110.35 | F18: 110.40 | G18: 108.20 | H18: 106.05 | I18: 103.85 | J18: 112.55 | K18: 114.75 | L18: 116.90 | M18: 112.6 | N18: 108.25 | O18: 18141200 | P18: 5.29%
A19: 9 | B19: Textile | C19: ABFRL | D19: 2022-03-31 | E19: 296.70 | F19: 292.47 | G19: 285.98 | H19: 275.27 | I19: 268.78 | J19: 303.18 | K19: 309.67 | L19: 320.38 | M19: 298.95 | N19: 281.75 | O19: 12461800 | P19: 8.27%
A20: 10 | B20: Cement | C20: ACC | D20: 2022-03-31 | E20: 2086.70 | F20: 2080.27 | G20: 2062.68 | H20: 2038.67 | I20: 2021.08 | J20: 2104.28 | K20: 2121.87 | L20: 2145.88 | M20: 2097.85 | N20: 2056.25 | O20: 2604750 | P20: -0.33%
A21: 11 | B21: Others | C21: ADANIENT | D21: 2022-03-31 | E21: 1835.10 | F21: 1826.68 | G21: 1811.32 | H21: 1787.53 | I21: 1772.17 | J21: 1850.47 | K21: 1865.83 | L21: 1889.62 | M21: 1842.05 | N21: 1802.9 | O21: 19053000 | P21: -0.70%
A22: 12 | B22: Others | C22: ADANIPORTS | D22: 2022-03-31 | E22: 735.95 | F22: 737.38 | G22: 730.37 | H22: 724.78 | I22: 717.77 | J22: 742.97 | K22: 749.98 | L22: 755.57 | M22: 744.4 | N22: 731.8 | O22: 87103750 | P22: 3.08%
A23: 13 | B23: Pharma | C23: ALKEM | D23: 2022-03-31 | E23: 3611.25 | F23: 3618.15 | G23: 3573.30 | H23: 3535.35 | I23: 3490.50 | J23: 3656.10 | K23: 3700.95 | L23: 3738.90 | M23: 3663 | N23: 3580.2 | O23: 145200 | P23: 0.83%
A24: 14 | B24: Automobile | C24: AMARAJABAT | D24: 2022-03-31 | E24: 568.35 | F24: 570.72 | G24: 563.43 | H24: 558.52 | I24: 551.23 | J24: 575.63 | K24: 582.92 | L24: 587.83 | M24: 578 | N24: 565.8 | O24: 7291000 | P24: 4.01%
A25: 15 | B25: Cement | C25: AMBUJACEM | D25: 2022-03-31 | E25: 292.00 | F25: 292.05 | G25: 289.35 | H25: 286.70 | I25: 284.00 | J25: 294.70 | K25: 297.40 | L25: 300.05 | M25: 294.75 | N25: 289.4 | O25: 29365500 | P25: 2.54%
A26: 16 | B26: Pharma | C26: APLLTD | D26: 2022-03-31 | E26: 767.80 | F26: 757.12 | G26: 740.23 | H26: 712.67 | I26: 695.78 | J26: 784.68 | K26: 801.57 | L26: 829.13 | M26: 774 | N26: 729.55 | O26: 2169300 | P26: 5.44%
A27: 17 | B27: Others | C27: APOLLOHOSP | D27: 2022-03-31 | E27: 4643.35 | F27: 4636.00 | G27: 4577.50 | H27: 4511.65 | I27: 4453.15 | J27: 4701.85 | K27: 4760.35 | L27: 4826.20 | M27: 4694.5 | N27: 4570.15 | O27: 2332375 | P27: 1.66%
A28: 18 | B28: Automobile | C28: APOLLOTYRE | D28: 2022-03-31 | E28: 187.25 | F28: 187.93 | G28: 185.67 | H28: 184.08 | I28: 181.82 | J28: 189.52 | K28: 191.78 | L28: 193.37 | M28: 190.2 | N28: 186.35 | O28: 15317500 | P28: 1.42%
A29: 19 | B29: Automobile | C29: ASHOKLEY | D29: 2022-03-31 | E29: 112.40 | F29: 112.05 | G29: 110.65 | H29: 108.90 | I29: 107.50 | J29: 113.80 | K29: 115.20 | L29: 116.95 | M29: 113.45 | N29: 110.3 | O29: 41949000 | P29: -0.99%
A30: 20 | B30: FMCG | C30: ASIANPAINT | D30: 2022-03-31 | E30: 3025.65 | F30: 3005.58 | G30: 2971.22 | H30: 2916.78 | I30: 2882.42 | J30: 3060.02 | K30: 3094.38 | L30: 3148.82 | M30: 3039.95 | N30: 2951.15 | O30: 5254350 | P30: -1.09%
A31: 21 | B31: Others | C31: ASTRAL | D31: 2022-03-31 | E31: 2039.35 | F31: 2029.73 | G31: 2002.52 | H31: 1965.68 | I31: 1938.47 | J31: 2066.57 | K31: 2093.78 | L31: 2130.62 | M31: 2056.95 | N31: 1992.9 | O31: 861300 | P31: -1.29%
A32: 22 | B32: Others | C32: ATUL | D32: 2022-03-31 | E32: 9859.30 | F32: 9805.25 | G32: 9685.10 | H32: 9510.90 | I32: 9390.75 | J32: 9979.45 | K32: 10099.60 | L32: 10273.80 | M32: 9925.4 | N32: 9631.05 | O32: 133875 | P32: 3.18%
A33: 23 | B33: Banking | C33: AUBANK | D33: 2022-03-31 | E33: 1244.00 | F33: 1245.80 | G33: 1232.60 | H33: 1221.20 | I33: 1208.00 | J33: 1257.20 | K33: 1270.40 | L33: 1281.80 | M33: 1259 | N33: 1234.4 | O33: 2376000 | P33: 0.38%
A34: 24 | B34: Pharma | C34: AUROPHARMA | D34: 2022-03-31 | E34: 721.65 | F34: 712.48 | G34: 701.42 | H34: 681.18 | I34: 670.12 | J34: 732.72 | K34: 743.78 | L34: 764.02 | M34: 723.55 | N34: 692.25 | O34: 14952750 | P34: -1.82%
A35: 25 | B35: Banking | C35: AXISBANK | D35: 2022-03-31 | E35: 724.30 | F35: 725.67 | G35: 718.98 | H35: 713.67 | I35: 706.98 | J35: 730.98 | K35: 737.67 | L35: 742.98 | M35: 732.35 | N35: 720.35 | O35: 46176000 | P35: -0.25%
A36: 26 | B36: Automobile | C36: BAJAJ-AUTO | D36: 2022-03-31 | E36: 3589.35 | F36: 3598.50 | G36: 3561.00 | H36: 3532.65 | I36: 3495.15 | J36: 3626.85 | K36: 3664.35 | L36: 3692.70 | M36: 3636 | N36: 3570.15 | O36: 2101500 | P36: -0.43%
A37: 27 | B37: Finance | C37: BAJAJFINSV | D37: 2022-03-31 | E37: 16391.50 | F37: 16420.10 | G37: 16271.40 | H37: 16151.30 | I37: 16002.60 | J37: 16540.20 | K37: 16688.90 | L37: 16809.00 | M37: 16568.8 | N37: 16300 | O37: 616800 | P37: -0.98%
A38: 28 | B38: Finance | C38: BAJFINANCE | D38: 2022-03-31 | E38: 7014.05 | F38: 6980.45 | G38: 6909.50 | H38: 6804.95 | I38: 6734.00 | J38: 7085.00 | K38: 7155.95 | L38: 7260.50 | M38: 7051.4 | N38: 6875.9 | O38: 3944750 | P38: -0.85%
A39: 29 | B39: Automobile | C39: BALKRISIND | D39: 2022-03-31 | E39: 2068.15 | F39: 2079.12 | G39: 2045.13 | H39: 2022.12 | I39: 1988.13 | J39: 2102.13 | K39: 2136.12 | L39: 2159.13 | M39: 2113.1 | N39: 2056.1 | O39: 1251000 | P39: -2.05%
A40: 30 | B40: Others | C40: BALRAMCHIN | D40: 2022-03-31 | E40: 490.20 | F40: 484.23 | G40: 465.97 | H40: 441.73 | I40: 423.47 | J40: 508.47 | K40: 526.73 | L40: 550.97 | M40: 502.5 | N40: 460 | O40: 7299200 | P40: -2.63%
A41: 31 | B41: Banking | C41: BANDHANBNK | D41: 2022-03-31 | E41: 298.05 | F41: 299.08 | G41: 293.27 | H41: 288.48 | I41: 282.67 | J41: 303.87 | K41: 309.68 | L41: 314.47 | M41: 304.9 | N41: 294.3 | O41: 28897200 | P41: -0.53%
A42: 32 | B42: Banking | C42: BANKBARODA | D42: 2022-03-31 | E42: 106.55 | F42: 106.67 | G42: 105.03 | H42: 103.52 | I42: 101.88 | J42: 108.18 | K42: 109.82 | L42: 111.33 | M42: 108.3 | N42: 105.15 | O42: 115958700 | P42: 4.98%
A43: 33 | B43: FMCG | C43: BATAINDIA | D43: 2022-03-31 | E43: 1923.60 | F43: 1929.97 | G43: 1912.88 | H43: 1902.17 | I43: 1885.08 | J43: 1940.68 | K43: 1957.77 | L43: 1968.48 | M43: 1947.05 | N43: 1919.25 | O43: 1548800 | P43: 2.59%
A44: 34 | B44: Capital_Goods | C44: BEL | D44: 2022-03-31 | E44: 208.15 | F44: 207.43 | G44: 205.27 | H44: 202.38 | I44: 200.22 | J44: 210.32 | K44: 212.48 | L44: 215.37 | M44: 209.6 | N44: 204.55 | O44: 37582000 | P44: 3.51%
A45: 35 | B45: FMCG | C45: BERGEPAINT | D45: 2022-03-31 | E45: 686.55 | F45: 683.42 | G45: 676.28 | H45: 666.02 | I45: 658.88 | J45: 693.68 | K45: 700.82 | L45: 711.08 | M45: 690.55 | N45: 673.15 | O45: 4749800 | P45: 1.77%
A46: 36 | B46: Automobile | C46: BHARATFORG | D46: 2022-03-31 | E46: 695.95 | F46: 691.25 | G46: 683.25 | H46: 670.55 | I46: 662.55 | J46: 703.95 | K46: 711.95 | L46: 724.65 | M46: 699.25 | N46: 678.55 | O46: 6006750 | P46: 2.42%
A47: 37 | B47: Telecom | C47: BHARTIARTL | D47: 2022-03-31 | E47: 707.75 | F47: 706.50 | G47: 701.80 | H47: 695.85 | I47: 691.15 | J47: 712.45 | K47: 717.15 | L47: 723.10 | M47: 711.2 | N47: 700.55 | O47: 52213900 | P47: 1.40%
A48: 38 | B48: Capital_Goods | C48: BHEL | D48: 2022-03-31 | E48: 51.50 | F48: 51.53 | G48: 50.92 | H48: 50.33 | I48: 49.72 | J48: 52.12 | K48: 52.73 | L48: 53.32 | M48: 52.15 | N48: 50.95 | O48: 109756500 | P48: -0.43%
A49: 39 | B49: Pharma | C49: BIOCON | D49: 2022-03-31 | E49: 343.60 | F49: 341.78 | G49: 339.07 | H49: 334.53 | I49: 331.82 | J49: 346.32 | K49: 349.03 | L49: 353.57 | M49: 344.5 | N49: 337.25 | O49: 19715600 | P49: 0.91%
A50: 40 | B50: Automobile | C50: BOSCHLTD | D50: 2022-03-31 | E50: 14165.20 | F50: 14136.18 | G50: 14023.07 | H50: 13880.93 | I50: 13767.82 | J50: 14278.32 | K50: 14391.43 | L50: 14533.57 | M50: 14249.3 | N50: 13994.05 | O50: 214500 | P50: 1.92%
A51: 41 | B51: Oil_Gas | C51: BPCL | D51: 2022-03-31 | E51: 363.75 | F51: 364.55 | G51: 361.10 | H51: 358.45 | I51: 355.00 | J51: 367.20 | K51: 370.65 | L51: 373.30 | M51: 368 | N51: 361.9 | O51: 22597200 | P51: -1.10%
A52: 42 | B52: FMCG | C52: BRITANNIA | D52: 2022-03-31 | E52: 3115.10 | F52: 3116.87 | G52: 3093.28 | H52: 3071.47 | I52: 3047.88 | J52: 3138.68 | K52: 3162.27 | L52: 3184.08 | M52: 3140.45 | N52: 3095.05 | O52: 2000200 | P52: -2.23%
A53: 43 | B53: Technology | C53: BSOFT | D53: 2022-03-31 | E53: 482.05 | F53: 477.35 | G53: 470.85 | H53: 459.65 | I53: 453.15 | J53: 488.55 | K53: 495.05 | L53: 506.25 | M53: 483.85 | N53: 466.15 | O53: 4642300 | P53: 10.97%
A54: 44 | B54: Banking | C54: CANBK | D54: 2022-03-31 | E54: 225.95 | F54: 225.97 | G54: 223.58 | H54: 221.22 | I54: 218.83 | J54: 228.33 | K54: 230.72 | L54: 233.08 | M54: 228.35 | N54: 223.6 | O54: 43615800 | P54: 1.50%
A55: 45 | B55: Finance | C55: CANFINHOME | D55: 2022-03-31 | E55: 599.10 | F55: 600.07 | G55: 593.23 | H55: 587.37 | I55: 580.53 | J55: 605.93 | K55: 612.77 | L55: 618.63 | M55: 606.9 | N55: 594.2 | O55: 3113175 | P55: 2.73%
A56: 46 | B56: Others | C56: CHAMBLFERT | D56: 2022-03-31 | E56: 417.00 | F56: 418.77 | G56: 412.88 | H56: 408.77 | I56: 402.88 | J56: 422.88 | K56: 428.77 | L56: 432.88 | M56: 424.65 | N56: 414.65 | O56: 3081000 | P56: 3.74%
A57: 47 | B57: Finance | C57: CHOLAFIN | D57: 2022-03-31 | E57: 730.80 | F57: 728.25 | G57: 721.85 | H57: 712.90 | I57: 706.50 | J57: 737.20 | K57: 743.60 | L57: 752.55 | M57: 734.65 | N57: 719.3 | O57: 9450000 | P57: 2.27%
A58: 48 | B58: Pharma | C58: CIPLA | D58: 2022-03-31 | E58: 1033.20 | F58: 1026.00 | G58: 1007.50 | H58: 981.80 | I58: 963.30 | J58: 1051.70 | K58: 1070.20 | L58: 1095.90 | M58: 1044.5 | N58: 1000.3 | O58: 8804250 | P58: -2.36%
A59: 49 | B59: Others | C59: COALINDIA | D59: 2022-03-31 | E59: 187.60 | F59: 186.48 | G59: 184.12 | H59: 180.63 | I59: 178.27 | J59: 189.97 | K59: 192.33 | L59: 195.82 | M59: 188.85 | N59: 183 | O59: 39786600 | P59: 4.71%
A60: 50 | B60: Technology | C60: COFORGE | D60: 2022-03-31 | E60: 4496.40 | F60: 4475.50 | G60: 4431.00 | H60: 4365.60 | I60: 4321.10 | J60: 4540.90 | K60: 4585.40 | L60: 4650.80 | M60: 4520 | N60: 4410.1 | O60: 1344500 | P60: 5.19%
A61: 51 | B61: FMCG | C61: COLPAL | D61: 2022-03-31 | E61: 1510.40 | F61: 1515.93 | G61: 1499.82 | H61: 1489.23 | I61: 1473.12 | J61: 1526.52 | K61: 1542.63 | L61: 1553.22 | M61: 1532.05 | N61: 1505.35 | O61: 2610650 | P61: 0.23%
A62: 52 | B62: Others | C62: CONCOR | D62: 2022-03-31 | E62: 623.60 | F62: 621.93 | G62: 612.87 | H62: 602.13 | I62: 593.07 | J62: 632.67 | K62: 641.73 | L62: 652.47 | M62: 631 | N62: 611.2 | O62: 5767200 | P62: 1.36%
A63: 53 | B63: Others | C63: COROMANDEL | D63: 2022-03-31 | E63: 811.10 | F63: 815.60 | G63: 801.70 | H63: 792.30 | I63: 778.40 | J63: 825.00 | K63: 838.90 | L63: 848.30 | M63: 829.5 | N63: 806.2 | O63: 1278125 | P63: 11.50%
A64: 54 | B64: Capital_Goods | C64: CROMPTON | D64: 2022-03-31 | E64: 379.35 | F64: 381.58 | G64: 374.87 | H64: 370.38 | I64: 363.67 | J64: 386.07 | K64: 392.78 | L64: 397.27 | M64: 388.3 | N64: 377.1 | O64: 5592400 | P64: 13.15%
A65: 55 | B65: Banking | C65: CUB | D65: 2022-03-31 | E65: 124.45 | F65: 125.10 | G65: 123.65 | H65: 122.85 | I65: 121.40 | J65: 125.90 | K65: 127.35 | L65: 128.15 | M65: 126.55 | N65: 124.3 | O65: 14936200 | P65: 3.00%
A66: 56 | B66: Capital_Goods | C66: CUMMINSIND | D66: 2022-03-31 | E66: 1090.80 | F66: 1086.52 | G66: 1068.03 | H66: 1045.27 | I66: 1026.78 | J66: 1109.28 | K66: 1127.77 | L66: 1150.53 | M66: 1105 | N66: 1063.75 | O66: 2266800 | P66: 6.87%
A67: 57 | B67: FMCG | C67: DABUR | D67: 2022-03-31 | E67: 525.50 | F67: 525.63 | G67: 519.92 | H67: 514.33 | I67: 508.62 | J67: 531.22 | K67: 536.93 | L67: 542.52 | M67: 531.35 | N67: 520.05 | O67: 13167500 | P67: -1.28%
A68: 58 | B68: Cement | C68: DALBHARAT | D68: 2022-03-31 | E68: 1393.40 | F68: 1399.63 | G68: 1381.77 | H68: 1370.13 | I68: 1352.27 | J68: 1411.27 | K68: 1429.13 | L68: 1440.77 | M68: 1417.5 | N68: 1388 | O68: 1168250 | P68: 2.55%
A69: 59 | B69: Chemical | C69: DEEPAKNTR | D69: 2022-03-31 | E69: 2248.35 | F69: 2243.52 | G69: 2216.08 | H69: 2183.82 | I69: 2156.38 | J69: 2275.78 | K69: 2303.22 | L69: 2335.48 | M69: 2270.95 | N69: 2211.25 | O69: 1685000 | P69: 1.46%
A70: 60 | B70: Others | C70: DELTACORP | D70: 2022-03-31 | E70: 313.40 | F70: 311.17 | G70: 307.43 | H70: 301.47 | I70: 297.73 | J70: 317.13 | K70: 320.87 | L70: 326.83 | M70: 314.9 | N70: 305.2 | O70: 14561300 | P70: -2.67%
A71: 61 | B71: Pharma | C71: DIVISLAB | D71: 2022-03-31 | E71: 4507.55 | F71: 4517.02 | G71: 4470.58 | H71: 4433.62 | I71: 4387.18 | J71: 4553.98 | K71: 4600.42 | L71: 4637.38 | M71: 4563.45 | N71: 4480.05 | O71: 2244900 | P71: 0.86%
A72: 62 | B72: Others | C72: DIXON | D72: 2022-03-31 | E72: 4301.50 | F72: 4277.05 | G72: 4165.70 | H72: 4029.90 | I72: 3918.55 | J72: 4412.85 | K72: 4524.20 | L72: 4660.00 | M72: 4388.4 | N72: 4141.25 | O72: 680250 | P72: 2.35%
A73: 63 | B73: Realty | C73: DLF | D73: 2022-03-31 | E73: 357.55 | F73: 357.55 | G73: 352.70 | H73: 347.85 | I73: 343.00 | J73: 362.40 | K73: 367.25 | L73: 372.10 | M73: 362.4 | N73: 352.7 | O73: 38992800 | P73: 0.15%
A74: 64 | B74: Pharma | C74: DRREDDY | D74: 2022-03-31 | E74: 4328.00 | F74: 4259.72 | G74: 4168.83 | H74: 4009.67 | I74: 3918.78 | J74: 4418.88 | K74: 4509.77 | L74: 4668.93 | M74: 4350.6 | N74: 4100.55 | O74: 3072250 | P74: 3.96%
A75: 65 | B75: Automobile | C75: EICHERMOT | D75: 2022-03-31 | E75: 2373.45 | F75: 2374.77 | G75: 2354.78 | H75: 2336.12 | I75: 2316.13 | J75: 2393.43 | K75: 2413.42 | L75: 2432.08 | M75: 2394.75 | N75: 2356.1 | O75: 3281600 | P75: 0.46%
A76: 66 | B76: Automobile | C76: ESCORTS | D76: 2022-03-31 | E76: 1735.75 | F76: 1737.67 | G76: 1695.38 | H76: 1655.02 | I76: 1612.73 | J76: 1778.03 | K76: 1820.32 | L76: 1860.68 | M76: 1779.95 | N76: 1697.3 | O76: 5357550 | P76: -2.40%
A77: 67 | B77: Automobile | C77: EXIDEIND | D77: 2022-03-31 | E77: 154.40 | F77: 154.83 | G77: 153.62 | H77: 152.83 | I77: 151.62 | J77: 155.62 | K77: 156.83 | L77: 157.62 | M77: 156.05 | N77: 154.05 | O77: 21618000 | P77: 1.95%
A78: 68 | B78: Banking | C78: FEDERALBNK | D78: 2022-03-31 | E78: 98.25 | F78: 98.55 | G78: 97.70 | H78: 97.15 | I78: 96.30 | J78: 99.10 | K78: 99.95 | L78: 100.50 | M78: 99.4 | N78: 98 | O78: 61990000 | P78: 0.73%
A79: 69 | B79: Technology | C79: FSL | D79: 2022-03-31 | E79: 133.85 | F79: 131.40 | G79: 127.70 | H79: 121.55 | I79: 117.85 | J79: 137.55 | K79: 141.25 | L79: 147.40 | M79: 135.1 | N79: 125.25 | O79: 16208400 | P79: -0.27%
A80: 70 | B80: Oil_Gas | C80: GAIL | D80: 2022-03-31 | E80: 147.40 | F80: 146.63 | G80: 145.37 | H80: 143.33 | I80: 142.07 | J80: 148.67 | K80: 149.93 | L80: 151.97 | M80: 147.9 | N80: 144.6 | O80: 36929400 | P80: -3.14%
A81: 71 | B81: Pharma | C81: GLENMARK | D81: 2022-03-31 | E81: 465.05 | F81: 462.68 | G81: 453.97 | H81: 442.88 | I81: 434.17 | J81: 473.77 | K81: 482.48 | L81: 493.57 | M81: 471.4 | N81: 451.6 | O81: 7746400 | P81: 1.88%
A82: 72 | B82: Infrastructure | C82: GMRINFRA | D82: 2022-03-31 | E82: 36.90 | F82: 36.98 | G82: 36.72 | H82: 36.53 | I82: 36.27 | J82: 37.17 | K82: 37.43 | L82: 37.62 | M82: 37.25 | N82: 36.8 | O82: 113692500 | P82: 0.64%
A83: 73 | B83: Others | C83: GNFC | D83: 2022-03-31 | E83: 798.00 | F83: 789.67 | G83: 779.33 | H83: 760.67 | I83: 750.33 | J83: 808.33 | K83: 818.67 | L83: 837.33 | M83: 800 | N83: 771 | O83: 3165500 | P83: -5.88%
A84: 74 | B84: FMCG | C84: GODREJCP | D84: 2022-03-31 | E84: 697.05 | F84: 696.80 | G84: 688.50 | H84: 679.95 | I84: 671.65 | J84: 705.35 | K84: 713.65 | L84: 722.20 | M84: 705.1 | N84: 688.25 | O84: 10061000 | P84: 1.56%
A85: 75 | B85: Realty | C85: GODREJPROP | D85: 2022-03-31 | E85: 1573.05 | F85: 1563.95 | G85: 1548.10 | H85: 1523.15 | I85: 1507.30 | J85: 1588.90 | K85: 1604.75 | L85: 1629.70 | M85: 1579.8 | N85: 1539 | O85: 5009550 | P85: 0.90%
A86: 76 | B86: Pharma | C86: GRANULES | D86: 2022-03-31 | E86: 317.05 | F86: 314.85 | G86: 306.30 | H86: 295.55 | I86: 287.00 | J86: 325.60 | K86: 334.15 | L86: 344.90 | M86: 323.4 | N86: 304.1 | O86: 11598650 | P86: 0.89%
A87: 77 | B87: Cement | C87: GRASIM | D87: 2022-03-31 | E87: 1600.30 | F87: 1593.10 | G87: 1581.25 | H87: 1562.20 | I87: 1550.35 | J87: 1612.15 | K87: 1624.00 | L87: 1643.05 | M87: 1604.95 | N87: 1574.05 | O87: 10509850 | P87: 0.72%
A88: 78 | B88: Oil_Gas | C88: GSPL | D88: 2022-03-31 | E88: 271.30 | F88: 270.95 | G88: 266.40 | H88: 261.50 | I88: 256.95 | J88: 275.85 | K88: 280.40 | L88: 285.30 | M88: 275.5 | N88: 266.05 | O88: 2706400 | P88: 1.47%
A89: 79 | B89: Oil_Gas | C89: GUJGASLTD | D89: 2022-03-31 | E89: 500.65 | F89: 495.35 | G89: 483.20 | H89: 465.75 | I89: 453.60 | J89: 512.80 | K89: 524.95 | L89: 542.40 | M89: 507.5 | N89: 477.9 | O89: 5550000 | P89: 4.79%
A90: 80 | B90: Others | C90: HAL | D90: 2022-03-31 | E90: 1412.00 | F90: 1415.53 | G90: 1384.37 | H90: 1356.73 | I90: 1325.57 | J90: 1443.17 | K90: 1474.33 | L90: 1501.97 | M90: 1446.7 | N90: 1387.9 | O90: 2439600 | P90: 10.14%
A91: 81 | B91: Capital_Goods | C91: HAVELLS | D91: 2022-03-31 | E91: 1147.30 | F91: 1142.82 | G91: 1132.63 | H91: 1117.97 | I91: 1107.78 | J91: 1157.48 | K91: 1167.67 | L91: 1182.33 | M91: 1153 | N91: 1128.15 | O91: 4916500 | P91: -2.81%
A92: 82 | B92: Technology | C92: HCLTECH | D92: 2022-03-31 | E92: 1194.65 | F92: 1189.52 | G92: 1182.28 | H92: 1169.92 | I92: 1162.68 | J92: 1201.88 | K92: 1209.12 | L92: 1221.48 | M92: 1196.75 | N92: 1177.15 | O92: 21459200 | P92: 1.95%
A93: 83 | B93: Finance | C93: HDFC | D93: 2022-03-31 | E93: 2317.25 | F93: 2330.75 | G93: 2297.50 | H93: 2277.75 | I93: 2244.50 | J93: 2350.50 | K93: 2383.75 | L93: 2403.50 | M93: 2364 | N93: 2311 | O93: 23928900 | P93: 1.82%
A94: 84 | B94: Finance | C94: HDFCAMC | D94: 2022-03-31 | E94: 2177.85 | F94: 2182.00 | G94: 2149.10 | H94: 2120.35 | I94: 2087.45 | J94: 2210.75 | K94: 2243.65 | L94: 2272.40 | M94: 2214.9 | N94: 2153.25 | O94: 2988000 | P94: 1.43%
A95: 85 | B95: Banking | C95: HDFCBANK | D95: 2022-03-31 | E95: 1445.15 | F95: 1449.20 | G95: 1434.40 | H95: 1423.65 | I95: 1408.85 | J95: 1459.95 | K95: 1474.75 | L95: 1485.50 | M95: 1464 | N95: 1438.45 | O95: 47670700 | P95: 4.64%
A96: 86 | B96: Finance | C96: HDFCLIFE | D96: 2022-03-31 | E96: 523.70 | F96: 524.05 | G96: 520.65 | H96: 517.60 | I96: 514.20 | J96: 527.10 | K96: 530.50 | L96: 533.55 | M96: 527.45 | N96: 521 | O96: 36017300 | P96: 0.42%
A97: 87 | B97: Automobile | C97: HEROMOTOCO | D97: 2022-03-31 | E97: 2418.45 | F97: 2399.20 | G97: 2365.40 | H97: 2312.35 | I97: 2278.55 | J97: 2452.25 | K97: 2486.05 | L97: 2539.10 | M97: 2433 | N97: 2346.15 | O97: 3140700 | P97: -2.60%
A98: 88 | B98: Metals | C98: HINDALCO | D98: 2022-03-31 | E98: 621.55 | F98: 620.42 | G98: 614.13 | H98: 606.72 | I98: 600.43 | J98: 627.83 | K98: 634.12 | L98: 641.53 | M98: 626.7 | N98: 613 | O98: 35870600 | P98: 0.52%
A99: 89 | B99: Metals | C99: HINDCOPPER | D99: 2022-03-31 | E99: 117.50 | F99: 118.25 | G99: 116.20 | H99: 114.90 | I99: 112.85 | J99: 119.55 | K99: 121.60 | L99: 122.90 | M99: 120.3 | N99: 116.95 | O99: 20257300 | P99: 2.19%
A100: 90 | B100: Oil_Gas | C100: HINDPETRO | D100: 2022-03-31 | E100: 275.25 | F100: 276.92 | G100: 271.08 | H100: 266.92 | I100: 261.08 | J100: 281.08 | K100: 286.92 | L100: 291.08 | M100: 282.75 | N100: 272.75 | O100: 14990400 | P100: 7.66%
A101: 91 | B101: FMCG | C101: HINDUNILVR | D101: 2022-03-31 | E101: 1971.40 | F101: 1976.27 | G101: 1953.53 | H101: 1935.67 | I101: 1912.93 | J101: 1994.13 | K101: 2016.87 | L101: 2034.73 | M101: 1999 | N101: 1958.4 | O101: 15713400 | P101: 2.67%
A102: 92 | B102: Others | C102: HONAUT | D102: 2022-03-31 | E102: 38992.00 | F102: 38937.57 | G102: 38565.98 | H102: 38139.97 | I102: 37768.38 | J102: 39363.58 | K102: 39735.17 | L102: 40161.18 | M102: 39309.15 | N102: 38511.55 | O102: 9660 | P102: -5.01%
A103: 93 | B103: Finance | C103: IBULHSGFIN | D103: 2022-03-31 | E103: 158.15 | F103: 157.40 | G103: 155.45 | H103: 152.75 | I103: 150.80 | J103: 160.10 | K103: 162.05 | L103: 164.75 | M103: 159.35 | N103: 154.7 | O103: 39825700 | P103: -2.24%
A104: 94 | B104: Banking | C104: ICICIBANK | D104: 2022-03-31 | E104: 705.50 | F104: 706.10 | G104: 697.85 | H104: 690.20 | I104: 681.95 | J104: 713.75 | K104: 722.00 | L104: 729.65 | M104: 714.35 | N104: 698.45 | O104: 121302500 | P104: 3.51%
A105: 95 | B105: Finance | C105: ICICIGI | D105: 2022-03-31 | E105: 1246.75 | F105: 1246.50 | G105: 1234.85 | H105: 1222.95 | I105: 1211.30 | J105: 1258.40 | K105: 1270.05 | L105: 1281.95 | M105: 1258.15 | N105: 1234.6 | O105: 3897675 | P105: 0.44%
A106: 96 | B106: Finance | C106: ICICIPRULI | D106: 2022-03-31 | E106: 483.75 | F106: 481.37 | G106: 477.38 | H106: 471.02 | I106: 467.03 | J106: 487.73 | K106: 491.72 | L106: 498.08 | M106: 485.35 | N106: 475 | O106: 8464500 | P106: -0.29%
A107: 97 | B107: Telecom | C107: IDEA | D107: 2022-03-31 | E107: 10.20 | F107: 10.15 | G107: 10.00 | H107: 9.80 | I107: 9.65 | J107: 10.35 | K107: 10.50 | L107: 10.70 | M107: 10.3 | N107: 9.95 | O107: 868700000 | P107: 4.10%
A108: 98 | B108: Finance | C108: IDFC | D108: 2022-03-31 | E108: 64.20 | F108: 63.00 | G108: 61.40 | H108: 58.60 | I108: 57.00 | J108: 65.80 | K108: 67.40 | L108: 70.20 | M108: 64.6 | N108: 60.2 | O108: 98840000 | P108: 4.14%
A109: 99 | B109: Banking | C109: IDFCFIRSTB | D109: 2022-03-31 | E109: 40.15 | F109: 40.35 | G109: 39.80 | H109: 39.45 | I109: 38.90 | J109: 40.70 | K109: 41.25 | L109: 41.60 | M109: 40.9 | N109: 40 | O109: 223609500 | P109: 10.99%
A110: 100 | B110: Others | C110: IEX | D110: 2022-03-31 | E110: 234.15 | F110: 232.15 | G110: 229.50 | H110: 224.85 | I110: 222.20 | J110: 236.80 | K110: 239.45 | L110: 244.10 | M110: 234.8 | N110: 227.5 | O110: 41576250 | P110: 3.56%
A111: 101 | B111: Oil_Gas | C111: IGL | D111: 2022-03-31 | E111: 378.25 | F111: 377.68 | G111: 375.12 | H111: 371.98 | I111: 369.42 | J111: 380.82 | K111: 383.38 | L111: 386.52 | M111: 380.25 | N111: 374.55 | O111: 15580125 | P111: -1.21%
A112: 102 | B112: Infrastructure | C112: INDHOTEL | D112: 2022-03-31 | E112: 219.30 | F112: 218.25 | G112: 216.25 | H112: 213.20 | I112: 211.20 | J112: 221.30 | K112: 223.30 | L112: 226.35 | M112: 220.25 | N112: 215.2 | O112: 23693602 | P112: 0.29%
A113: 103 | B113: Cement | C113: INDIACEM | D113: 2022-03-31 | E113: 210.15 | F113: 209.93 | G113: 207.67 | H113: 205.18 | I113: 202.92 | J113: 212.42 | K113: 214.68 | L113: 217.17 | M113: 212.2 | N113: 207.45 | O113: 14062100 | P113: 1.55%
A114: 104 | B114: Others | C114: INDIAMART | D114: 2022-03-31 | E114: 4518.80 | F114: 4502.12 | G114: 4464.43 | H114: 4410.07 | I114: 4372.38 | J114: 4556.48 | K114: 4594.17 | L114: 4648.53 | M114: 4539.8 | N114: 4447.75 | O114: 401250 | P114: -2.14%
A115: 105 | B115: Others | C115: INDIGO | D115: 2022-03-31 | E115: 1864.30 | F115: 1845.65 | G115: 1814.20 | H115: 1764.10 | I115: 1732.65 | J115: 1895.75 | K115: 1927.20 | L115: 1977.30 | M115: 1877.1 | N115: 1795.55 | O115: 3142500 | P115: -3.12%
A116: 106 | B116: Banking | C116: INDUSINDBK | D116: 2022-03-31 | E116: 926.75 | F116: 927.88 | G116: 916.47 | H116: 906.18 | I116: 894.77 | J116: 938.17 | K116: 949.58 | L116: 959.87 | M116: 939.3 | N116: 917.6 | O116: 25644600 | P116: 0.19%
A117: 107 | B117: Telecom | C117: INDUSTOWER | D117: 2022-03-31 | E117: 214.60 | F117: 214.70 | G117: 212.75 | H117: 210.90 | I117: 208.95 | J117: 216.55 | K117: 218.50 | L117: 220.35 | M117: 216.65 | N117: 212.85 | O117: 22447600 | P117: 0.10%
A118: 108 | B118: Technology | C118: INFY | D118: 2022-03-31 | E118: 1888.30 | F118: 1881.87 | G118: 1866.43 | H118: 1844.57 | I118: 1829.13 | J118: 1903.73 | K118: 1919.17 | L118: 1941.03 | M118: 1897.3 | N118: 1860 | O118: 29712900 | P118: -0.48%
A119: 109 | B119: Technology | C119: INTELLECT | D119: 2022-03-31 | E119: 852.75 | F119: 848.48 | G119: 839.32 | H119: 825.88 | I119: 816.72 | J119: 861.92 | K119: 871.08 | L119: 884.52 | M119: 857.65 | N119: 835.05 | O119: 1128750 | P119: -0.79%
A120: 110 | B120: Oil_Gas | C120: IOC | D120: 2022-03-31 | E120: 120.65 | F120: 121.00 | G120: 120.00 | H120: 119.35 | I120: 118.35 | J120: 121.65 | K120: 122.65 | L120: 123.30 | M120: 122 | N120: 120.35 | O120: 41918500 | P120: 1.99%
A121: 111 | B121: Pharma | C121: IPCALAB | D121: 2022-03-31 | E121: 1011.55 | F121: 1008.60 | G121: 996.55 | H121: 981.55 | I121: 969.50 | J121: 1023.60 | K121: 1035.65 | L121: 1050.65 | M121: 1020.65 | N121: 993.6 | O121: 1018800 | P121: 5.70%
A122: 112 | B122: Others | C122: IRCTC | D122: 2022-03-31 | E122: 771.85 | F122: 770.28 | G122: 760.12 | H122: 748.38 | I122: 738.22 | J122: 782.02 | K122: 792.18 | L122: 803.92 | M122: 780.45 | N122: 758.55 | O122: 12710250 | P122: -0.09%
A123: 113 | B123: FMCG | C123: ITC | D123: 2022-03-31 | E123: 254.15 | F123: 253.60 | G123: 251.65 | H123: 249.15 | I123: 247.20 | J123: 256.10 | K123: 258.05 | L123: 260.55 | M123: 255.55 | N123: 251.1 | O123: 132105600 | P123: 4.70%
A124: 114 | B124: Metals | C124: JINDALSTEL | D124: 2022-03-31 | E124: 522.35 | F124: 521.43 | G124: 512.62 | H124: 502.88 | I124: 494.07 | J124: 531.17 | K124: 539.98 | L124: 549.72 | M124: 530.25 | N124: 511.7 | O124: 43285000 | P124: -0.36%
A125: 115 | B125: Cement | C125: JKCEMENT | D125: 2022-03-31 | E125: 2320.65 | F125: 2328.17 | G125: 2290.78 | H125: 2260.92 | I125: 2223.53 | J125: 2358.03 | K125: 2395.42 | L125: 2425.28 | M125: 2365.55 | N125: 2298.3 | O125: 520800 | P125: 4.79%
A126: 116 | B126: Metals | C126: JSWSTEEL | D126: 2022-03-31 | E126: 715.45 | F126: 713.60 | G126: 706.45 | H126: 697.45 | I126: 690.30 | J126: 722.60 | K126: 729.75 | L126: 738.75 | M126: 720.75 | N126: 704.6 | O126: 33346350 | P126: -2.76%
A127: 117 | B127: Others | C127: JUBLFOOD | D127: 2022-03-31 | E127: 2621.35 | F127: 2630.30 | G127: 2598.00 | H127: 2574.65 | I127: 2542.35 | J127: 2653.65 | K127: 2685.95 | L127: 2709.30 | M127: 2662.6 | N127: 2606.95 | O127: 2716000 | P127: 0.12%
A128: 118 | B128: Banking | C128: KOTAKBANK | D128: 2022-03-31 | E128: 1721.15 | F128: 1720.85 | G128: 1705.80 | H128: 1690.45 | I128: 1675.40 | J128: 1736.20 | K128: 1751.25 | L128: 1766.60 | M128: 1735.9 | N128: 1705.5 | O128: 19743600 | P128: 35.36%
A129: 119 | B129: Finance | C129: L&TFH | D129: 2022-03-31 | E129: 78.75 | F129: 81.52 | G129: 75.43 | H129: 72.12 | I129: 66.03 | J129: 84.83 | K129: 90.92 | L129: 94.23 | M129: 87.6 | N129: 78.2 | O129: 77406776 | P129: 11.92%
A130: 120 | B130: Others | C130: LALPATHLAB | D130: 2022-03-31 | E130: 2656.65 | F130: 2646.43 | G130: 2615.27 | H130: 2573.88 | I130: 2542.72 | J130: 2687.82 | K130: 2718.98 | L130: 2760.37 | M130: 2677.6 | N130: 2605.05 | O130: 834125 | P130: -0.71%
A131: 121 | B131: Pharma | C131: LAURUSLABS | D131: 2022-03-31 | E131: 604.80 | F131: 605.78 | G131: 600.37 | H131: 595.93 | I131: 590.52 | J131: 610.22 | K131: 615.63 | L131: 620.07 | M131: 611.2 | N131: 601.35 | O131: 6696000 | P131: 0.90%
A132: 122 | B132: Finance | C132: LICHSGFIN | D132: 2022-03-31 | E132: 366.80 | F132: 366.35 | G132: 362.70 | H132: 358.60 | I132: 354.95 | J132: 370.45 | K132: 374.10 | L132: 378.20 | M132: 370 | N132: 362.25 | O132: 20572000 | P132: -0.33%
A133: 123 | B133: Capital_Goods | C133: LT | D133: 2022-03-31 | E133: 1775.35 | F133: 1773.53 | G133: 1762.32 | H133: 1749.28 | I133: 1738.07 | J133: 1786.57 | K133: 1797.78 | L133: 1810.82 | M133: 1784.75 | N133: 1760.5 | O133: 13494100 | P133: -1.99%
A134: 124 | B134: Technology | C134: LTI | D134: 2022-03-31 | E134: 6197.20 | F134: 6162.73 | G134: 6101.47 | H134: 6005.73 | I134: 5944.47 | J134: 6258.47 | K134: 6319.73 | L134: 6415.47 | M134: 6224 | N134: 6067 | O134: 1236150 | P134: 3.52%
A135: 125 | B135: Technology | C135: LTTS | D135: 2022-03-31 | E135: 5057.35 | F135: 5001.18 | G135: 4918.37 | H135: 4779.38 | I135: 4696.57 | J135: 5140.17 | K135: 5222.98 | L135: 5361.97 | M135: 5084 | N135: 4862.2 | O135: 753200 | P135: 20.47%
A136: 126 | B136: Pharma | C136: LUPIN | D136: 2022-03-31 | E136: 775.15 | F136: 767.08 | G136: 755.47 | H136: 735.78 | I136: 724.17 | J136: 786.77 | K136: 798.38 | L136: 818.07 | M136: 778.7 | N136: 747.4 | O136: 10004500 | P136: 1.08%
A137: 127 | B137: Automobile | C137: M&M | D137: 2022-03-31 | E137: 767.80 | F137: 771.78 | G137: 761.22 | H137: 754.63 | I137: 744.07 | J137: 778.37 | K137: 788.93 | L137: 795.52 | M137: 782.35 | N137: 765.2 | O137: 14662200 | P137: -3.61%
A138: 128 | B138: Finance | C138: M&MFIN | D138: 2022-03-31 | E138: 157.90 | F138: 158.38 | G138: 156.52 | H138: 155.13 | I138: 153.27 | J138: 159.77 | K138: 161.63 | L138: 163.02 | M138: 160.25 | N138: 157 | O138: 33100000 | P138: 3.70%
A139: 129 | B139: Finance | C139: MANAPPURAM | D139: 2022-03-31 | E139: 117.50 | F139: 117.38 | G139: 116.42 | H139: 115.33 | I139: 114.37 | J139: 118.47 | K139: 119.43 | L139: 120.52 | M139: 118.35 | N139: 116.3 | O139: 30342000 | P139: 1.25%
A140: 130 | B140: FMCG | C140: MARICO | D140: 2022-03-31 | E140: 483.00 | F140: 482.93 | G140: 479.52 | H140: 476.03 | I140: 472.62 | J140: 486.42 | K140: 489.83 | L140: 493.32 | M140: 486.35 | N140: 479.45 | O140: 9726000 | P140: 3.80%
A141: 131 | B141: Automobile | C141: MARUTI | D141: 2022-03-31 | E141: 7581.00 | F141: 7593.52 | G141: 7519.78 | H141: 7458.57 | I141: 7384.83 | J141: 7654.73 | K141: 7728.47 | L141: 7789.68 | M141: 7667.25 | N141: 7532.3 | O141: 2723600 | P141: 1.26%
A142: 132 | B142: FMCG | C142: MCDOWELL-N | D142: 2022-03-31 | E142: 908.65 | F142: 908.45 | G142: 899.40 | H142: 890.15 | I142: 881.10 | J142: 917.70 | K142: 926.75 | L142: 936.00 | M142: 917.5 | N142: 899.2 | O142: 13062500 | P142: -0.31%
A143: 133 | B143: Others | C143: MCX | D143: 2022-03-31 | E143: 1426.15 | F143: 1419.53 | G143: 1409.32 | H143: 1392.48 | I143: 1382.27 | J143: 1436.37 | K143: 1446.58 | L143: 1463.42 | M143: 1429.75 | N143: 1402.7 | O143: 2219350 | P143: -1.00%
A144: 134 | B144: Pharma | C144: METROPOLIS | D144: 2022-03-31 | E144: 2009.50 | F144: 2006.20 | G144: 1978.55 | H144: 1947.60 | I144: 1919.95 | J144: 2037.15 | K144: 2064.80 | L144: 2095.75 | M144: 2033.85 | N144: 1975.25 | O144: 783200 | P144: 0.82%
A145: 135 | B145: Finance | C145: MFSL | D145: 2022-03-31 | E145: 748.45 | F145: 754.73 | G145: 738.87 | H145: 729.28 | I145: 713.42 | J145: 764.32 | K145: 780.18 | L145: 789.77 | M145: 770.6 | N145: 745.15 | O145: 2166450 | P145: 5.04%
A146: 136 | B146: Oil_Gas | C146: MGL | D146: 2022-03-31 | E146: 771.75 | F146: 769.00 | G146: 761.55 | H146: 751.35 | I146: 743.90 | J146: 779.20 | K146: 786.65 | L146: 796.85 | M146: 776.45 | N146: 758.8 | O146: 3564600 | P146: -1.21%
A147: 137 | B147: Technology | C147: MINDTREE | D147: 2022-03-31 | E147: 4293.05 | F147: 4226.25 | G147: 4148.90 | H147: 4004.75 | I147: 3927.40 | J147: 4370.40 | K147: 4447.75 | L147: 4591.90 | M147: 4303.6 | N147: 4082.1 | O147: 2815400 | P147: 0.40%
A148: 138 | B148: Automobile | C148: MOTHERSUMI | D148: 2022-03-31 | E148: 132.50 | F148: 132.75 | G148: 130.40 | H148: 128.30 | I148: 125.95 | J148: 134.85 | K148: 137.20 | L148: 139.30 | M148: 135.1 | N148: 130.65 | O148: 36652000 | P148: 1.36%
A149: 139 | B149: Technology | C149: MPHASIS | D149: 2022-03-31 | E149: 3345.10 | F149: 3315.12 | G149: 3271.98 | H149: 3198.87 | I149: 3155.73 | J149: 3388.23 | K149: 3431.37 | L149: 3504.48 | M149: 3358.25 | N149: 3242 | O149: 1576575 | P149: -2.28%
A150: 140 | B150: Automobile | C150: MRF | D150: 2022-03-31 | E150: 66740.65 | F150: 66800.68 | G150: 66101.52 | H150: 65462.38 | I150: 64763.22 | J150: 67439.82 | K150: 68138.98 | L150: 68778.12 | M150: 67499.85 | N150: 66161.55 | O150: 87310 | P150: -0.25%
A151: 141 | B151: Finance | C151: MUTHOOTFIN | D151: 2022-03-31 | E151: 1353.05 | F151: 1347.43 | G151: 1336.02 | H151: 1318.98 | I151: 1307.57 | J151: 1364.47 | K151: 1375.88 | L151: 1392.92 | M151: 1358.85 | N151: 1330.4 | O151: 3664500 | P151: 1.70%
A152: 142 | B152: Others | C152: NAM-INDIA | D152: 2022-03-31 | E152: 339.10 | F152: 338.80 | G152: 335.95 | H152: 332.80 | I152: 329.95 | J152: 341.95 | K152: 344.80 | L152: 347.95 | M152: 341.65 | N152: 335.65 | O152: 4080000 | P152: 0.63%
A153: 143 | B153: Metals | C153: NATIONALUM | D153: 2022-03-31 | E153: 124.75 | F153: 125.60 | G153: 123.20 | H153: 121.65 | I153: 119.25 | J153: 127.15 | K153: 129.55 | L153: 131.10 | M153: 128 | N153: 124.05 | O153: 94809000 | P153: 5.84%
A154: 144 | B154: Others | C154: NAUKRI | D154: 2022-03-31 | E154: 4547.50 | F154: 4575.70 | G154: 4499.05 | H154: 4450.60 | I154: 4373.95 | J154: 4624.15 | K154: 4700.80 | L154: 4749.25 | M154: 4652.35 | N154: 4527.25 | O154: 1752125 | P154: 3.96%
A155: 145 | B155: Chemical | C155: NAVINFLUOR | D155: 2022-03-31 | E155: 3982.80 | F155: 4014.03 | G155: 3921.67 | H155: 3860.53 | I155: 3768.17 | J155: 4075.17 | K155: 4167.53 | L155: 4228.67 | M155: 4106.4 | N155: 3952.9 | O155: 416925 | P155: 7.48%
A156: 146 | B156: Others | C156: NBCC | D156: 2022-03-31 | E156: 38.35 | F156: 38.52 | G156: 37.93 | H156: 37.52 | I156: 36.93 | J156: 38.93 | K156: 39.52 | L156: 39.93 | M156: 39.1 | N156: 38.1 | O156: 26064000 | P156: 3.38%
A157: 147 | B157: FMCG | C157: NESTLEIND | D157: 2022-03-31 | E157: 17422.90 | F157: 17422.98 | G157: 17309.27 | H157: 17195.63 | I157: 17081.92 | J157: 17536.62 | K157: 17650.33 | L157: 17763.97 | M157: 17536.7 | N157: 17309.35 | O157: 368150 | P157: 0.00%
A158: 148 | B158: Metals | C158: NMDC | D158: 2022-03-31 | E158: 157.55 | F158: 155.93 | G158: 153.27 | H158: 148.98 | I158: 146.32 | J158: 160.22 | K158: 162.88 | L158: 167.17 | M158: 158.6 | N158: 151.65 | O158: 73592800 | P158: -0.34%
A159: 149 | B159: Power | C159: NTPC | D159: 2022-03-31 | E159: 135.50 | F159: 135.12 | G159: 134.28 | H159: 133.07 | I159: 132.23 | J159: 136.33 | K159: 137.17 | L159: 138.38 | M159: 135.95 | N159: 133.9 | O159: 54993600 | P159: 11.59%
A160: 150 | B160: Realty | C160: OBEROIRLTY | D160: 2022-03-31 | E160: 934.75 | F160: 932.13 | G160: 909.27 | H160: 883.78 | I160: 860.92 | J160: 957.62 | K160: 980.48 | L160: 1005.97 | M160: 955 | N160: 906.65 | O160: 3444700 | P160: 13.78%
A161: 151 | B161: Technology | C161: OFSS | D161: 2022-03-31 | E161: 3637.75 | F161: 3621.57 | G161: 3596.13 | H161: 3554.52 | I161: 3529.08 | J161: 3663.18 | K161: 3688.62 | L161: 3730.23 | M161: 3647 | N161: 3579.95 | O161: 527375 | P161: 1.22%
A162: 152 | B162: Oil_Gas | C162: ONGC | D162: 2022-03-31 | E162: 178.00 | F162: 178.53 | G162: 176.57 | H162: 175.13 | I162: 173.17 | J162: 179.97 | K162: 181.93 | L162: 183.37 | M162: 180.5 | N162: 177.1 | O162: 48286700 | P162: -0.70%
A163: 153 | B163: Textile | C163: PAGEIND | D163: 2022-03-31 | E163: 41565.75 | F163: 41741.83 | G163: 41234.67 | H163: 40903.58 | I163: 40396.42 | J163: 42072.92 | K163: 42580.08 | L163: 42911.17 | M163: 42249 | N163: 41410.75 | O163: 96990 | P163: 0.12%
A164: 154 | B164: Pharma | C164: PEL | D164: 2022-03-31 | E164: 2248.50 | F164: 2240.93 | G164: 2222.07 | H164: 2195.63 | I164: 2176.77 | J164: 2267.37 | K164: 2286.23 | L164: 2312.67 | M164: 2259.8 | N164: 2214.5 | O164: 4408250 | P164: -1.52%
A165: 155 | B165: Technology | C165: PERSISTENT | D165: 2022-03-31 | E165: 4660.95 | F165: 4603.80 | G165: 4533.50 | H165: 4406.05 | I165: 4335.75 | J165: 4731.25 | K165: 4801.55 | L165: 4929.00 | M165: 4674.1 | N165: 4476.35 | O165: 379500 | P165: 11.95%
A166: 156 | B166: Oil_Gas | C166: PETRONET | D166: 2022-03-31 | E166: 198.00 | F166: 197.23 | G166: 196.12 | H166: 194.23 | I166: 193.12 | J166: 199.12 | K166: 200.23 | L166: 202.12 | M166: 198.35 | N166: 195.35 | O166: 24534000 | P166: -1.54%
A167: 157 | B167: Finance | C167: PFC | D167: 2022-03-31 | E167: 116.35 | F167: 116.38 | G167: 115.62 | H167: 114.88 | I167: 114.12 | J167: 117.12 | K167: 117.88 | L167: 118.62 | M167: 117.15 | N167: 115.65 | O167: 40944800 | P167: 2.61%
A168: 158 | B168: Pharma | C168: PFIZER | D168: 2022-03-31 | E168: 4485.40 | F168: 4476.22 | G168: 4456.18 | H168: 4426.97 | I168: 4406.93 | J168: 4505.43 | K168: 4525.47 | L168: 4554.68 | M168: 4496.25 | N168: 4447 | O168: 138250 | P168: -0.72%
A169: 159 | B169: FMCG | C169: PIDILITIND | D169: 2022-03-31 | E169: 2428.90 | F169: 2427.73 | G169: 2411.27 | H169: 2393.63 | I169: 2377.17 | J169: 2445.37 | K169: 2461.83 | L169: 2479.47 | M169: 2444.2 | N169: 2410.1 | O169: 2788500 | P169: 0.64%
A170: 160 | B170: Chemical | C170: PIIND | D170: 2022-03-31 | E170: 2758.75 | F170: 2758.68 | G170: 2730.77 | H170: 2702.78 | I170: 2674.87 | J170: 2786.67 | K170: 2814.58 | L170: 2842.57 | M170: 2786.6 | N170: 2730.7 | O170: 1725500 | P170: 0.28%
A171: 161 | B171: Banking | C171: PNB | D171: 2022-03-31 | E171: 35.70 | F171: 35.80 | G171: 35.50 | H171: 35.30 | I171: 35.00 | J171: 36.00 | K171: 36.30 | L171: 36.50 | M171: 36.1 | N171: 35.6 | O171: 224400000 | P171: 2.84%
A172: 162 | B172: Others | C172: POLYCAB | D172: 2022-03-31 | E172: 2416.05 | F172: 2422.23 | G172: 2400.37 | H172: 2384.68 | I172: 2362.82 | J172: 2437.92 | K172: 2459.78 | L172: 2475.47 | M172: 2444.1 | N172: 2406.55 | O172: 629100 | P172: 1.80%
A173: 163 | B173: Power | C173: POWERGRID | D173: 2022-03-31 | E173: 211.05 | F173: 210.48 | G173: 209.42 | H173: 207.78 | I173: 206.72 | J173: 212.12 | K173: 213.18 | L173: 214.82 | M173: 211.55 | N173: 208.85 | O173: 35405787 | P173: 1.65%
A174: 164 | B174: Media | C174: PVR | D174: 2022-03-31 | E174: 1778.70 | F174: 1774.23 | G174: 1762.02 | H174: 1745.33 | I174: 1733.12 | J174: 1790.92 | K174: 1803.13 | L174: 1819.82 | M174: 1786.45 | N174: 1757.55 | O174: 3066338 | P174: 0.51%
A175: 165 | B175: Others | C175: RAIN | D175: 2022-03-31 | E175: 198.75 | F175: 197.08 | G175: 193.17 | H175: 187.58 | I175: 183.67 | J175: 202.67 | K175: 206.58 | L175: 212.17 | M175: 201 | N175: 191.5 | O175: 6845000 | P175: 1.78%
A176: 166 | B176: Cement | C176: RAMCOCEM | D176: 2022-03-31 | E176: 729.90 | F176: 728.92 | G176: 724.83 | H176: 719.77 | I176: 715.68 | J176: 733.98 | K176: 738.07 | L176: 743.13 | M176: 733 | N176: 723.85 | O176: 3478200 | P176: -1.63%
A177: 167 | B177: Banking | C177: RBLBANK | D177: 2022-03-31 | E177: 135.35 | F177: 135.17 | G177: 133.83 | H177: 132.32 | I177: 130.98 | J177: 136.68 | K177: 138.02 | L177: 139.53 | M177: 136.5 | N177: 133.65 | O177: 47690500 | P177: 2.28%
A178: 168 | B178: Power | C178: RECLTD | D178: 2022-03-31 | E178: 125.45 | F178: 125.90 | G178: 124.55 | H178: 123.65 | I178: 122.30 | J178: 126.80 | K178: 128.15 | L178: 129.05 | M178: 127.25 | N178: 125 | O178: 28656000 | P178: 2.45%
A179: 169 | B179: Oil_Gas | C179: RELIANCE | D179: 2022-03-31 | E179: 2580.50 | F179: 2562.00 | G179: 2536.15 | H179: 2491.80 | I179: 2465.95 | J179: 2606.35 | K179: 2632.20 | L179: 2676.55 | M179: 2587.85 | N179: 2517.65 | O179: 35234750 | P179: 2.72%
A180: 170 | B180: Metals | C180: SAIL | D180: 2022-03-31 | E180: 101.65 | F180: 102.00 | G180: 99.75 | H180: 97.85 | I180: 95.60 | J180: 103.90 | K180: 106.15 | L180: 108.05 | M180: 104.25 | N180: 100.1 | O180: 160744750 | P180: -5.99%
A181: 171 | B181: Banking | C181: SBICARD | D181: 2022-03-31 | E181: 843.60 | F181: 848.55 | G181: 835.10 | H181: 826.60 | I181: 813.15 | J181: 857.05 | K181: 870.50 | L181: 879.00 | M181: 862 | N181: 840.05 | O181: 4304500 | P181: -0.08%
A182: 172 | B182: Finance | C182: SBILIFE | D182: 2022-03-31 | E182: 1089.80 | F182: 1091.40 | G182: 1084.85 | H182: 1079.90 | I182: 1073.35 | J182: 1096.35 | K182: 1102.90 | L182: 1107.85 | M182: 1097.95 | N182: 1086.45 | O182: 7662000 | P182: -0.25%
A183: 173 | B183: Banking | C183: SBIN | D183: 2022-03-31 | E183: 488.75 | F183: 489.78 | G183: 483.27 | H183: 477.78 | I183: 471.27 | J183: 495.27 | K183: 501.78 | L183: 507.27 | M183: 496.3 | N183: 484.3 | O183: 71131500 | P183: 1.73%
A184: 174 | B184: Cement | C184: SHREECEM | D184: 2022-03-31 | E184: 23361.30 | F184: 23428.32 | G184: 23216.63 | H184: 23071.97 | I184: 22860.28 | J184: 23572.98 | K184: 23784.67 | L184: 23929.33 | M184: 23640 | N184: 23283.65 | O184: 244375 | P184: 1.69%
A185: 175 | B185: Capital_Goods | C185: SIEMENS | D185: 2022-03-31 | E185: 2296.80 | F185: 2291.12 | G185: 2276.83 | H185: 2256.87 | I185: 2242.58 | J185: 2311.08 | K185: 2325.37 | L185: 2345.33 | M185: 2305.4 | N185: 2271.15 | O185: 1673100 | P185: 2.46%
A186: 176 | B186: Textile | C186: SRF | D186: 2022-03-31 | E186: 2615.60 | F186: 2593.87 | G186: 2556.18 | H186: 2496.77 | I186: 2459.08 | J186: 2653.28 | K186: 2690.97 | L186: 2750.38 | M186: 2631.55 | N186: 2534.45 | O186: 3118500 | P186: -2.45%
A187: 177 | B187: Finance | C187: SRTRANSFIN | D187: 2022-03-31 | E187: 1096.05 | F187: 1085.33 | G187: 1065.72 | H187: 1035.38 | I187: 1015.77 | J187: 1115.67 | K187: 1135.28 | L187: 1165.62 | M187: 1104.95 | N187: 1055 | O187: 4628000 | P187: 0.06%
A188: 178 | B188: Pharma | C188: STAR | D188: 2022-03-31 | E188: 364.05 | F188: 363.35 | G188: 357.65 | H188: 351.25 | I188: 345.55 | J188: 369.75 | K188: 375.45 | L188: 381.85 | M188: 369.05 | N188: 356.95 | O188: 5061600 | P188: 2.40%
A189: 179 | B189: Pharma | C189: SUNPHARMA | D189: 2022-03-31 | E189: 909.65 | F189: 904.23 | G189: 893.42 | H189: 877.18 | I189: 866.37 | J189: 920.47 | K189: 931.28 | L189: 947.52 | M189: 915.05 | N189: 888 | O189: 21293300 | P189: 1.33%
A190: 180 | B190: Media | C190: SUNTV | D190: 2022-03-31 | E190: 467.25 | F190: 467.60 | G190: 462.20 | H190: 457.15 | I190: 451.75 | J190: 472.65 | K190: 478.05 | L190: 483.10 | M190: 473 | N190: 462.55 | O190: 15225000 | P190: -2.88%
A191: 181 | B191: Pharma | C191: SYNGENE | D191: 2022-03-31 | E191: 590.75 | F191: 594.58 | G191: 583.12 | H191: 575.48 | I191: 564.02 | J191: 602.22 | K191: 613.68 | L191: 621.32 | M191: 606.05 | N191: 586.95 | O191: 1093950 | P191: 5.67%
A192: 182 | B192: Chemical | C192: TATACHEM | D192: 2022-03-31 | E192: 974.15 | F192: 967.63 | G192: 957.62 | H192: 941.08 | I192: 931.07 | J192: 984.17 | K192: 994.18 | L192: 1010.72 | M192: 977.65 | N192: 951.1 | O192: 5677000 | P192: 1.32%
A193: 183 | B193: Telecom | C193: TATACOMM | D193: 2022-03-31 | E193: 1169.10 | F193: 1171.58 | G193: 1156.17 | H193: 1143.23 | I193: 1127.82 | J193: 1184.52 | K193: 1199.93 | L193: 1212.87 | M193: 1187 | N193: 1158.65 | O193: 3374400 | P193: 3.31%
A194: 184 | B194: FMCG | C194: TATACONSUM | D194: 2022-03-31 | E194: 742.25 | F194: 745.43 | G194: 737.27 | H194: 732.28 | I194: 724.12 | J194: 750.42 | K194: 758.58 | L194: 763.57 | M194: 753.6 | N194: 740.45 | O194: 9941400 | P194: -0.14%
A195: 185 | B195: Automobile | C195: TATAMOTORS | D195: 2022-03-31 | E195: 434.45 | F195: 432.90 | G195: 429.40 | H195: 424.35 | I195: 420.85 | J195: 437.95 | K195: 441.45 | L195: 446.50 | M195: 436.4 | N195: 427.85 | O195: 82404900 | P195: -0.50%
A196: 186 | B196: Power | C196: TATAPOWER | D196: 2022-03-31 | E196: 240.45 | F196: 238.65 | G196: 235.30 | H196: 230.15 | I196: 226.80 | J196: 243.80 | K196: 247.15 | L196: 252.30 | M196: 242 | N196: 233.5 | O196: 103335750 | P196: 3.05%
A197: 187 | B197: Metals | C197: TATASTEEL | D197: 2022-03-31 | E197: 1351.10 | F197: 1347.83 | G197: 1333.27 | H197: 1315.43 | I197: 1300.87 | J197: 1365.67 | K197: 1380.23 | L197: 1398.07 | M197: 1362.4 | N197: 1330 | O197: 36730625 | P197: -1.06%
A198: 188 | B198: Technology | C198: TCS | D198: 2022-03-31 | E198: 3751.50 | F198: 3737.83 | G198: 3715.67 | H198: 3679.83 | I198: 3657.67 | J198: 3773.67 | K198: 3795.83 | L198: 3831.67 | M198: 3760 | N198: 3702 | O198: 11411550 | P198: -6.03%
A199: 189 | B199: Technology | C199: TECHM | D199: 2022-03-31 | E199: 1569.20 | F199: 1560.08 | G199: 1547.12 | H199: 1525.03 | I199: 1512.07 | J199: 1582.17 | K199: 1595.13 | L199: 1617.22 | M199: 1573.05 | N199: 1538 | O199: 13822800 | P199: -0.13%
A200: 190 | B200: FMCG | C200: TITAN | D200: 2022-03-31 | E200: 2627.35 | F200: 2645.22 | G200: 2603.93 | H200: 2580.52 | I200: 2539.23 | J200: 2668.63 | K200: 2709.92 | L200: 2733.33 | M200: 2686.5 | N200: 2621.8 | O200: 5343750 | P200: 3.19%
A201: 191 | B201: Pharma | C201: TORNTPHARM | D201: 2022-03-31 | E201: 2841.15 | F201: 2840.82 | G201: 2807.33 | H201: 2773.52 | I201: 2740.03 | J201: 2874.63 | K201: 2908.12 | L201: 2941.93 | M201: 2874.3 | N201: 2807 | O201: 719500 | P201: -3.16%
A202: 192 | B202: Power | C202: TORNTPOWER | D202: 2022-03-31 | E202: 494.40 | F202: 490.35 | G202: 484.70 | H202: 475.00 | I202: 469.35 | J202: 500.05 | K202: 505.70 | L202: 515.40 | M202: 496 | N202: 480.65 | O202: 3231000 | P202: 1.41%
A203: 193 | B203: Others | C203: TRENT | D203: 2022-03-31 | E203: 1279.45 | F203: 1288.88 | G203: 1265.67 | H203: 1251.88 | I203: 1228.67 | J203: 1302.67 | K203: 1325.88 | L203: 1339.67 | M203: 1312.1 | N203: 1275.1 | O203: 2825325 | P203: 1.33%
A204: 194 | B204: Automobile | C204: TVSMOTOR | D204: 2022-03-31 | E204: 607.45 | F204: 608.52 | G204: 603.13 | H204: 598.82 | I204: 593.43 | J204: 612.83 | K204: 618.22 | L204: 622.53 | M204: 613.9 | N204: 604.2 | O204: 7988400 | P204: 0.62%
A205: 195 | B205: FMCG | C205: UBL | D205: 2022-03-31 | E205: 1454.90 | F205: 1455.50 | G205: 1438.05 | H205: 1421.20 | I205: 1403.75 | J205: 1472.35 | K205: 1489.80 | L205: 1506.65 | M205: 1472.95 | N205: 1438.65 | O205: 1263850 | P205: -2.75%
A206: 196 | B206: Cement | C206: ULTRACEMCO | D206: 2022-03-31 | E206: 6354.50 | F206: 6318.58 | G206: 6253.47 | H206: 6152.43 | I206: 6087.32 | J206: 6419.62 | K206: 6484.73 | L206: 6585.77 | M206: 6383.7 | N206: 6217.55 | O206: 2602900 | P206: -6.17%
... 22 more rows

Sheet Cash Intra
M5: Back to Main Page
A6: FOR INTRA DAY TRADING | K6: =Main!B10 -> 2022-03-25
A8: Sr.no | C8: CLOSE RATE | D8: Pivot Point | E8: Supports | H8: Resistances
E9: S1 | F9: S2 | G9: S3 | H9: R1 | I9: R2 | J9: R3 | K9: HIGH | L9: LOW | M9: Total Trade Quanity in Lakhs
A10: 1 | B10: Nifty 50 | C10: 17222.75 | D10: 17201.88 | E10: 17112.02 | F10: 17001.28 | G10: 16911.42 | H10: 17312.62 | I10: 17402.48 | J10: 17513.22 | K10: 17291.75 | L10: 17091.15
A11: 2 | B11: Nifty Bank | C11: 35527.1 | D11: 35635.50 | E11: 35313.30 | F11: 35099.50 | G11: 34777.30 | H11: 35849.30 | I11: 36171.50 | J11: 36385.30 | K11: 35957.7 | L11: 35421.7
A12: 3 | B12: Nifty CPSE | C12: 2532 | D12: 2526.05 | E12: 2516.30 | F12: 2500.60 | G12: 2490.85 | H12: 2541.75 | I12: 2551.50 | J12: 2567.20 | K12: 2535.8 | L12: 2510.35
A13: 4 | B13: Nifty Infra | C13: 4916.8 | D13: 4897.85 | E13: 4874.35 | F13: 4831.90 | G13: 4808.40 | H13: 4940.30 | I13: 4963.80 | J13: 5006.25 | K13: 4921.35 | L13: 4855.4
A14: 5 | B14: Nifty IT | C14: 36516.75 | D14: 36322.55 | E14: 36047.30 | F14: 35577.85 | G14: 35302.60 | H14: 36792.00 | I14: 37067.25 | J14: 37536.70 | K14: 36597.8 | L14: 35853.1
A15: 6 | B15: Nifty PSE | C15: 4102.45 | D15: 4097.35 | E15: 4082.20 | F15: 4061.95 | G15: 4046.80 | H15: 4117.60 | I15: 4132.75 | J15: 4153.00 | K15: 4112.5 | L15: 4077.1
A16: 7 | B16: Nifty Midcap 50 | C16: 8087.9 | D16: 8062.77 | E16: 8030.73 | F16: 7973.57 | G16: 7941.53 | H16: 8119.93 | I16: 8151.97 | J16: 8209.13 | K16: 8094.8 | L16: 8005.6
A17: 8 | B17: ACC | C17: 2080.4 | D17: 2074.50 | E17: 2056.05 | F17: 2031.70 | G17: 2013.25 | H17: 2098.85 | I17: 2117.30 | J17: 2141.65 | K17: 2092.95 | L17: 2050.15 | M17: 2.94252
A18: 9 | B18: AUBANK | C18: 1241.45 | D18: 1241.77 | E18: 1224.68 | F18: 1207.92 | G18: 1190.83 | H18: 1258.53 | I18: 1275.62 | J18: 1292.38 | K18: 1258.85 | L18: 1225 | M18: 10.78509
A19: 10 | B19: AARTIIND | C19: 919.4 | D19: 918.28 | E19: 910.72 | F19: 902.03 | G19: 894.47 | H19: 926.97 | I19: 934.53 | J19: 943.22 | K19: 925.85 | L19: 909.6 | M19: 4.46309
A20: 11 | B20: ADANIENT | C20: 1832.8 | D20: 1824.17 | E20: 1808.78 | F20: 1784.77 | G20: 1769.38 | H20: 1848.18 | I20: 1863.57 | J20: 1887.58 | K20: 1839.55 | L20: 1800.15 | M20: 10.30145
A21: 12 | B21: ADANIGREEN | C21: 1911.4 | D21: 1907.47 | E21: 1890.93 | F21: 1870.47 | G21: 1853.93 | H21: 1927.93 | I21: 1944.47 | J21: 1964.93 | K21: 1924 | L21: 1887 | M21: 4.77913
A22: 13 | B22: ADANIPORTS | C22: 733.45 | D22: 735.58 | E22: 728.87 | F22: 724.28 | G22: 717.57 | H22: 740.17 | I22: 746.88 | J22: 751.47 | K22: 742.3 | L22: 731 | M22: 29.14647
A23: 14 | B23: ATGL | C23: 1979.75 | D23: 1942.55 | E23: 1892.20 | F23: 1804.65 | G23: 1754.30 | H23: 2030.10 | I23: 2080.45 | J23: 2168.00 | K23: 1992.9 | L23: 1855 | M23: 2.94149
A24: 15 | B24: ADANITRANS | C24: 2414.4 | D24: 2407.03 | E24: 2379.12 | F24: 2343.83 | G24: 2315.92 | H24: 2442.32 | I24: 2470.23 | J24: 2505.52 | K24: 2434.95 | L24: 2371.75 | M24: 2.99163
A25: 16 | B25: ABCAPITAL | C25: 109.95 | D25: 110.20 | E25: 108.00 | F25: 106.05 | G25: 103.85 | H25: 112.15 | I25: 114.35 | J25: 116.30 | K25: 112.4 | L25: 108.25 | M25: 48.28323
A26: 17 | B26: ABFRL | C26: 296.25 | D26: 293.50 | E26: 288.00 | F26: 279.75 | G26: 274.25 | H26: 301.75 | I26: 307.25 | J26: 315.50 | K26: 299 | L26: 285.25 | M26: 34.32943
A27: 18 | B27: AJANTPHARM | C27: 1979.9 | D27: 1977.17 | E27: 1965.33 | F27: 1950.77 | G27: 1938.93 | H27: 1991.73 | I27: 2003.57 | J27: 2018.13 | K27: 1989 | L27: 1962.6 | M27: 0.43402
A28: 19 | B28: APLLTD | C28: 765.35 | D28: 755.95 | E28: 740.90 | F28: 716.45 | G28: 701.40 | H28: 780.40 | I28: 795.45 | J28: 819.90 | K28: 771 | L28: 731.5 | M28: 3.69125
A29: 20 | B29: ALKEM | C29: 3609.5 | D29: 3622.95 | E29: 3557.35 | F29: 3505.20 | G29: 3439.60 | H29: 3675.10 | I29: 3740.70 | J29: 3792.85 | K29: 3688.55 | L29: 3570.8 | M29: 0.67094
A30: 21 | B30: AMARAJABAT | C30: 568 | D30: 569.33 | E30: 562.72 | F30: 557.43 | G30: 550.82 | H30: 574.62 | I30: 581.23 | J30: 586.52 | K30: 575.95 | L30: 564.05 | M30: 5.31259
A31: 22 | B31: AMBUJACEM | C31: 297.05 | D31: 297.23 | E31: 294.82 | F31: 292.58 | G31: 290.17 | H31: 299.47 | I31: 301.88 | J31: 304.12 | K31: 299.65 | L31: 295 | M31: 40.48136
A32: 23 | B32: APOLLOHOSP | C32: 4628.55 | D32: 4624.05 | E32: 4563.10 | F32: 4497.65 | G32: 4436.70 | H32: 4689.50 | I32: 4750.45 | J32: 4815.90 | K32: 4685 | L32: 4558.6 | M32: 7.19101
A33: 24 | B33: APOLLOTYRE | C33: 186.65 | D33: 187.23 | E33: 184.77 | F33: 182.88 | G33: 180.42 | H33: 189.12 | I33: 191.58 | J33: 193.47 | K33: 189.7 | L33: 185.35 | M33: 18.22259
A34: 25 | B34: ASHOKLEY | C34: 112.05 | D34: 111.88 | E34: 110.42 | F34: 108.78 | G34: 107.32 | H34: 113.52 | I34: 114.98 | J34: 116.62 | K34: 113.35 | L34: 110.25 | M34: 120.2489
A35: 26 | B35: ASIANPAINT | C35: 3025.35 | D35: 3004.95 | E35: 2970.95 | F35: 2916.55 | G35: 2882.55 | H35: 3059.35 | I35: 3093.35 | J35: 3147.75 | K35: 3038.95 | L35: 2950.55 | M35: 12.43917
A36: 27 | B36: ASTRAL | C36: 2036.25 | D36: 2026.42 | E36: 1996.98 | F36: 1957.72 | G36: 1928.28 | H36: 2065.68 | I36: 2095.12 | J36: 2134.38 | K36: 2055.85 | L36: 1987.15 | M36: 2.29606
A37: 28 | B37: AUROPHARMA | C37: 721.15 | D37: 711.35 | E37: 698.70 | F37: 676.25 | G37: 663.60 | H37: 733.80 | I37: 746.45 | J37: 768.90 | K37: 724 | L37: 688.9 | M37: 49.71872
A38: 29 | B38: DMART | C38: 4042.85 | D38: 4053.55 | E38: 4020.85 | F38: 3998.85 | G38: 3966.15 | H38: 4075.55 | I38: 4108.25 | J38: 4130.25 | K38: 4086.25 | L38: 4031.55 | M38: 3.74573
A39: 30 | B39: AXISBANK | C39: 722.25 | D39: 723.90 | E39: 717.35 | F39: 712.45 | G39: 705.90 | H39: 728.80 | I39: 735.35 | J39: 740.25 | K39: 730.45 | L39: 719 | M39: 75.59843
A40: 31 | B40: BAJAJ-AUTO | C40: 3583.9 | D40: 3597.17 | E40: 3556.43 | F40: 3528.97 | G40: 3488.23 | H40: 3624.63 | I40: 3665.37 | J40: 3692.83 | K40: 3637.9 | L40: 3569.7 | M40: 3.85957
A41: 32 | B41: BAJFINANCE | C41: 6997.55 | D41: 6971.45 | E41: 6907.35 | F41: 6817.15 | G41: 6753.05 | H41: 7061.65 | I41: 7125.75 | J41: 7215.95 | K41: 7035.55 | L41: 6881.25 | M41: 7.83716
A42: 33 | B42: BAJAJFINSV | C42: 16378.7 | D42: 16386.90 | E42: 16261.80 | F42: 16144.90 | G42: 16019.80 | H42: 16503.80 | I42: 16628.90 | J42: 16745.80 | K42: 16512 | L42: 16270 | M42: 1.83924
A43: 34 | B43: BAJAJHLDNG | C43: 5057.65 | D43: 5051.68 | E43: 5019.22 | F43: 4980.78 | G43: 4948.32 | H43: 5090.12 | I43: 5122.58 | J43: 5161.02 | K43: 5084.15 | L43: 5013.25 | M43: 3.21942
A44: 35 | B44: BALKRISIND | C44: 2064.9 | D44: 2074.80 | E44: 2037.25 | F44: 2009.60 | G44: 1972.05 | H44: 2102.45 | I44: 2140.00 | J44: 2167.65 | K44: 2112.35 | L44: 2047.15 | M44: 1.54912
A45: 36 | B45: BANDHANBNK | C45: 297.25 | D45: 298.38 | E45: 292.87 | F45: 288.48 | G45: 282.97 | H45: 302.77 | I45: 308.28 | J45: 312.67 | K45: 303.9 | L45: 294 | M45: 103.25063
A46: 37 | B46: BANKBARODA | C46: 106.15 | D46: 106.40 | E46: 104.80 | F46: 103.45 | G46: 101.85 | H46: 107.75 | I46: 109.35 | J46: 110.70 | K46: 108 | L46: 105.05 | M46: 265.45928
A47: 38 | B47: BANKINDIA | C47: 47.2 | D47: 47.33 | E47: 46.87 | F47: 46.53 | G47: 46.07 | H47: 47.67 | I47: 48.13 | J47: 48.47 | K47: 47.8 | L47: 47 | M47: 29.4001
A48: 39 | B48: BATAINDIA | C48: 1915.35 | D48: 1920.08 | E48: 1906.82 | F48: 1898.28 | G48: 1885.02 | H48: 1928.62 | I48: 1941.88 | J48: 1950.42 | K48: 1933.35 | L48: 1911.55 | M48: 1.53718
A49: 40 | B49: BERGEPAINT | C49: 684.05 | D49: 681.65 | E49: 673.40 | F49: 662.75 | G49: 654.50 | H49: 692.30 | I49: 700.55 | J49: 711.20 | K49: 689.9 | L49: 671 | M49: 6.14363
A50: 41 | B50: BEL | C50: 207.5 | D50: 206.93 | E50: 204.82 | F50: 202.13 | G50: 200.02 | H50: 209.62 | I50: 211.73 | J50: 214.42 | K50: 209.05 | L50: 204.25 | M50: 52.031
A51: 42 | B51: BHARATFORG | C51: 694.25 | D51: 689.57 | E51: 680.28 | F51: 666.32 | G51: 657.03 | H51: 703.53 | I51: 712.82 | J51: 726.78 | K51: 698.85 | L51: 675.6 | M51: 16.13089
A52: 43 | B52: BHEL | C52: 51.35 | D52: 51.42 | E52: 50.83 | F52: 50.32 | G52: 49.73 | H52: 51.93 | I52: 52.52 | J52: 53.03 | K52: 52 | L52: 50.9 | M52: 175.03276
A53: 44 | B53: BPCL | C53: 362.6 | D53: 363.73 | E53: 359.67 | F53: 356.73 | G53: 352.67 | H53: 366.67 | I53: 370.73 | J53: 373.67 | K53: 367.8 | L53: 360.8 | M53: 48.48379
A54: 45 | B54: BHARTIARTL | C54: 706.35 | D54: 704.35 | E54: 699.85 | F54: 693.35 | G54: 688.85 | H54: 710.85 | I54: 715.35 | J54: 721.85 | K54: 708.85 | L54: 697.85 | M54: 35.97143
A55: 46 | B55: BIOCON | C55: 342.3 | D55: 340.25 | E55: 337.25 | F55: 332.20 | G55: 329.20 | H55: 345.30 | I55: 348.30 | J55: 353.35 | K55: 343.25 | L55: 335.2 | M55: 17.79377
A56: 47 | B56: BOSCHLTD | C56: 14153.8 | D56: 14127.90 | E56: 14025.90 | F56: 13898.00 | G56: 13796.00 | H56: 14255.80 | I56: 14357.80 | J56: 14485.70 | K56: 14229.9 | L56: 14000 | M56: 0.16425
A57: 48 | B57: BRITANNIA | C57: 3103.85 | D57: 3104.80 | E57: 3079.60 | F57: 3055.35 | G57: 3030.15 | H57: 3129.05 | I57: 3154.25 | J57: 3178.50 | K57: 3130 | L57: 3080.55 | M57: 4.59226
A58: 49 | B58: INTELLECT | C58: 849.6 | D58: 843.87 | E58: 833.73 | F58: 817.87 | G58: 807.73 | H58: 859.73 | I58: 869.87 | J58: 885.73 | K58: 854 | L58: 828 | M58: 5.95354
A59: 50 | B59: CANBK | C59: 225.65 | D59: 225.38 | E59: 222.87 | F59: 220.08 | G59: 217.57 | H59: 228.17 | I59: 230.68 | J59: 233.47 | K59: 227.9 | L59: 222.6 | M59: 60.67113
A60: 51 | B60: CASTROLIND | C60: 103.6 | D60: 104.20 | E60: 102.75 | F60: 101.90 | G60: 100.45 | H60: 105.05 | I60: 106.50 | J60: 107.35 | K60: 105.65 | L60: 103.35 | M60: 13.28803
A61: 52 | B61: CHOLAFIN | C61: 731.35 | D61: 727.45 | E61: 720.40 | F61: 709.45 | G61: 702.40 | H61: 738.40 | I61: 745.45 | J61: 756.40 | K61: 734.5 | L61: 716.5 | M61: 19.4492
A62: 53 | B62: CIPLA | C62: 1029 | D62: 1023.62 | E62: 1007.13 | F62: 985.27 | G62: 968.78 | H62: 1045.48 | I62: 1061.97 | J62: 1083.83 | K62: 1040.1 | L62: 1001.75 | M62: 33.44649
A63: 54 | B63: CUB | C63: 124.05 | D63: 124.73 | E63: 123.12 | F63: 122.18 | G63: 120.57 | H63: 125.67 | I63: 127.28 | J63: 128.22 | K63: 126.35 | L63: 123.8 | M63: 15.69339
A64: 55 | B64: COALINDIA | C64: 187.4 | D64: 186.40 | E64: 184.30 | F64: 181.20 | G64: 179.10 | H64: 189.50 | I64: 191.60 | J64: 194.70 | K64: 188.5 | L64: 183.3 | M64: 163.23203
A65: 56 | B65: COFORGE | C65: 4478.95 | D65: 4459.68 | E65: 4420.37 | F65: 4361.78 | G65: 4322.47 | H65: 4518.27 | I65: 4557.58 | J65: 4616.17 | K65: 4499 | L65: 4401.1 | M65: 3.15979
A66: 57 | B66: COLPAL | C66: 1508.7 | D66: 1514.83 | E66: 1499.77 | F66: 1490.83 | G66: 1475.77 | H66: 1523.77 | I66: 1538.83 | J66: 1547.77 | K66: 1529.9 | L66: 1505.9 | M66: 4.32415
A67: 58 | B67: CONCOR | C67: 621.5 | D67: 620.28 | E67: 610.47 | F67: 599.43 | G67: 589.62 | H67: 631.32 | I67: 641.13 | J67: 652.17 | K67: 630.1 | L67: 609.25 | M67: 14.19932
A68: 59 | B68: COROMANDEL | C68: 808.85 | D68: 812.93 | E68: 798.02 | F68: 787.18 | G68: 772.27 | H68: 823.77 | I68: 838.68 | J68: 849.52 | K68: 827.85 | L68: 802.1 | M68: 4.40707
A69: 60 | B69: CROMPTON | C69: 378.25 | D69: 380.55 | E69: 373.30 | F69: 368.35 | G69: 361.10 | H69: 385.50 | I69: 392.75 | J69: 397.70 | K69: 387.8 | L69: 375.6 | M69: 20.43527
A70: 61 | B70: CUMMINSIND | C70: 1094 | D70: 1089.58 | E70: 1067.42 | F70: 1040.83 | G70: 1018.67 | H70: 1116.17 | I70: 1138.33 | J70: 1164.92 | K70: 1111.75 | L70: 1063 | M70: 21.68244
A71: 62 | B71: DLF | C71: 356.6 | D71: 356.62 | E71: 351.98 | F71: 347.37 | G71: 342.73 | H71: 361.23 | I71: 365.87 | J71: 370.48 | K71: 361.25 | L71: 352 | M71: 41.11307
A72: 63 | B72: DABUR | C72: 523.75 | D72: 524.73 | E72: 518.67 | F72: 513.58 | G72: 507.52 | H72: 529.82 | I72: 535.88 | J72: 540.97 | K72: 530.8 | L72: 519.65 | M72: 25.28645
A73: 64 | B73: DALBHARAT | C73: 1388.45 | D73: 1393.90 | E73: 1375.70 | F73: 1362.95 | G73: 1344.75 | H73: 1406.65 | I73: 1424.85 | J73: 1437.60 | K73: 1412.1 | L73: 1381.15 | M73: 1.65414
A74: 65 | B74: DEEPAKNTR | C74: 2240.35 | D74: 2235.62 | E74: 2209.23 | F74: 2178.12 | G74: 2151.73 | H74: 2266.73 | I74: 2293.12 | J74: 2324.23 | K74: 2262 | L74: 2204.5 | M74: 4.32601
A75: 66 | B75: DHANI | C75: 65.65 | D75: 63.13 | E75: 60.62 | F75: 55.58 | G75: 53.07 | H75: 68.17 | I75: 70.68 | J75: 75.72 | K75: 65.65 | L75: 58.1 | M75: 70.32527
A76: 67 | B76: DIVISLAB | C76: 4494.65 | D76: 4503.78 | E76: 4457.62 | F76: 4420.58 | G76: 4374.42 | H76: 4540.82 | I76: 4586.98 | J76: 4624.02 | K76: 4549.95 | L76: 4466.75 | M76: 4.67266
A77: 68 | B77: DIXON | C77: 4323.15 | D77: 4341.05 | E77: 4282.10 | F77: 4241.05 | G77: 4182.10 | H77: 4382.10 | I77: 4441.05 | J77: 4482.10 | K77: 4400 | L77: 4300 | M77: 1.36201
A78: 69 | B78: LALPATHLAB | C78: 2658.5 | D78: 2652.22 | E78: 2626.43 | F78: 2594.37 | G78: 2568.58 | H78: 2684.28 | I78: 2710.07 | J78: 2742.13 | K78: 2678 | L78: 2620.15 | M78: 1.33964
A79: 70 | B79: DRREDDY | C79: 4328.5 | D79: 4259.50 | E79: 4170.45 | F79: 4012.40 | G79: 3923.35 | H79: 4417.55 | I79: 4506.60 | J79: 4664.65 | K79: 4348.55 | L79: 4101.45 | M79: 17.38147
A80: 71 | B80: EICHERMOT | C80: 2369.65 | D80: 2369.28 | E80: 2350.37 | F80: 2331.08 | G80: 2312.17 | H80: 2388.57 | I80: 2407.48 | J80: 2426.77 | K80: 2388.2 | L80: 2350 | M80: 5.68611
A81: 72 | B81: EMAMILTD | C81: 450.6 | D81: 452.03 | E81: 445.57 | F81: 440.53 | G81: 434.07 | H81: 457.07 | I81: 463.53 | J81: 468.57 | K81: 458.5 | L81: 447 | M81: 7.57636
A82: 73 | B82: ENDURANCE | C82: 1198.85 | D82: 1202.05 | E82: 1169.10 | F82: 1139.35 | G82: 1106.40 | H82: 1231.80 | I82: 1264.75 | J82: 1294.50 | K82: 1235 | L82: 1172.3 | M82: 2.12207
A83: 74 | B83: ESCORTS | C83: 1858.1 | D83: 1856.37 | E83: 1843.73 | F83: 1829.37 | G83: 1816.73 | H83: 1870.73 | I83: 1883.37 | J83: 1897.73 | K83: 1869 | L83: 1842 | M83: 4.93126
A84: 75 | B84: EXIDEIND | C84: 154.2 | D84: 154.45 | E84: 153.25 | F84: 152.30 | G84: 151.10 | H84: 155.40 | I84: 156.60 | J84: 157.55 | K84: 155.65 | L84: 153.5 | M84: 12.88337
A85: 76 | B85: FEDERALBNK | C85: 98 | D85: 98.28 | E85: 97.42 | F85: 96.83 | G85: 95.97 | H85: 98.87 | I85: 99.73 | J85: 100.32 | K85: 99.15 | L85: 97.7 | M85: 103.20726
A86: 77 | B86: FORTIS | C86: 280.2 | D86: 276.52 | E86: 268.13 | F86: 256.07 | G86: 247.68 | H86: 288.58 | I86: 296.97 | J86: 309.03 | K86: 284.9 | L86: 264.45 | M86: 38.16666
A87: 78 | B87: GAIL | C87: 147.1 | D87: 146.33 | E87: 144.82 | F87: 142.53 | G87: 141.02 | H87: 148.62 | I87: 150.13 | J87: 152.42 | K87: 147.85 | L87: 144.05 | M87: 118.88684
A88: 79 | B88: GMRINFRA | C88: 36.85 | D88: 36.93 | E88: 36.67 | F88: 36.48 | G88: 36.22 | H88: 37.12 | I88: 37.38 | J88: 37.57 | K88: 37.2 | L88: 36.75 | M88: 122.03143
A89: 80 | B89: GLAND | C89: 3233.1 | D89: 3243.02 | E89: 3194.08 | F89: 3155.07 | G89: 3106.13 | H89: 3282.03 | I89: 3330.97 | J89: 3369.98 | K89: 3291.95 | L89: 3204 | M89: 3.52735
A90: 81 | B90: GLENMARK | C90: 464.1 | D90: 461.28 | E90: 452.87 | F90: 441.63 | G90: 433.22 | H90: 472.52 | I90: 480.93 | J90: 492.17 | K90: 469.7 | L90: 450.05 | M90: 11.66331
A91: 82 | B91: GODREJCP | C91: 695 | D91: 694.40 | E91: 685.60 | F91: 676.20 | G91: 667.40 | H91: 703.80 | I91: 712.60 | J91: 722.00 | K91: 703.2 | L91: 685 | M91: 20.17206
A92: 83 | B92: GODREJIND | C92: 479.2 | D92: 481.75 | E92: 474.50 | F92: 469.80 | G92: 462.55 | H92: 486.45 | I92: 493.70 | J92: 498.40 | K92: 489 | L92: 477.05 | M92: 1.25141
A93: 84 | B93: GODREJPROP | C93: 1569.65 | D93: 1559.10 | E93: 1543.75 | F93: 1517.85 | G93: 1502.50 | H93: 1585.00 | I93: 1600.35 | J93: 1626.25 | K93: 1574.45 | L93: 1533.2 | M93: 7.9058
A94: 85 | B94: GRASIM | C94: 1599.4 | D94: 1590.80 | E94: 1577.70 | F94: 1556.00 | G94: 1542.90 | H94: 1612.50 | I94: 1625.60 | J94: 1647.30 | K94: 1603.9 | L94: 1569.1 | M94: 10.76441
A95: 86 | B95: GUJGASLTD | C95: 499.65 | D95: 500.07 | E95: 492.93 | F95: 486.22 | G95: 479.08 | H95: 506.78 | I95: 513.92 | J95: 520.63 | K95: 507.2 | L95: 493.35 | M95: 12.38558
A96: 87 | B96: GSPL | C96: 270.85 | D96: 271.08 | E96: 267.77 | F96: 264.68 | G96: 261.37 | H96: 274.17 | I96: 277.48 | J96: 280.57 | K96: 274.4 | L96: 268 | M96: 10.39743
A97: 88 | B97: HCLTECH | C97: 1192.1 | D97: 1185.03 | E97: 1176.07 | F97: 1160.03 | G97: 1151.07 | H97: 1201.07 | I97: 1210.03 | J97: 1226.07 | K97: 1194 | L97: 1169 | M97: 23.51703
A98: 89 | B98: HDFCAMC | C98: 2180.15 | D98: 2191.72 | E98: 2158.43 | F98: 2136.72 | G98: 2103.43 | H98: 2213.43 | I98: 2246.72 | J98: 2268.43 | K98: 2225 | L98: 2170 | M98: 2.89097
A99: 90 | B99: HDFCBANK | C99: 1442.65 | D99: 1448.95 | E99: 1428.25 | F99: 1413.85 | G99: 1393.15 | H99: 1463.35 | I99: 1484.05 | J99: 1498.45 | K99: 1469.65 | L99: 1434.55 | M99: 100.80022
A100: 91 | B100: HDFCLIFE | C100: 522.35 | D100: 522.45 | E100: 518.90 | F100: 515.45 | G100: 511.90 | H100: 525.90 | I100: 529.45 | J100: 532.90 | K100: 526 | L100: 519 | M100: 31.92575
A101: 92 | B101: HAVELLS | C101: 1146.15 | D101: 1141.83 | E101: 1130.97 | F101: 1115.78 | G101: 1104.92 | H101: 1157.02 | I101: 1167.88 | J101: 1183.07 | K101: 1152.7 | L101: 1126.65 | M101: 8.38633
A102: 93 | B102: HEROMOTOCO | C102: 2412.15 | D102: 2390.80 | E102: 2354.35 | F102: 2296.55 | G102: 2260.10 | H102: 2448.60 | I102: 2485.05 | J102: 2542.85 | K102: 2427.25 | L102: 2333 | M102: 6.92836
A103: 94 | B103: HINDALCO | C103: 621.95 | D103: 619.38 | E103: 612.57 | F103: 603.18 | G103: 596.37 | H103: 628.77 | I103: 635.58 | J103: 644.97 | K103: 626.2 | L103: 610 | M103: 121.39664
A104: 95 | B104: HAL | C104: 1405.9 | D104: 1409.62 | E104: 1378.28 | F104: 1350.67 | G104: 1319.33 | H104: 1437.23 | I104: 1468.57 | J104: 1496.18 | K104: 1440.95 | L104: 1382 | M104: 11.75539
A105: 96 | B105: HINDCOPPER | C105: 117.3 | D105: 117.93 | E105: 115.92 | F105: 114.53 | G105: 112.52 | H105: 119.32 | I105: 121.33 | J105: 122.72 | K105: 119.95 | L105: 116.55 | M105: 44.98389
A106: 97 | B106: HINDPETRO | C106: 275 | D106: 276.47 | E106: 271.13 | F106: 267.27 | G106: 261.93 | H106: 280.33 | I106: 285.67 | J106: 289.53 | K106: 281.8 | L106: 272.6 | M106: 65.66646
A107: 98 | B107: HINDUNILVR | C107: 1965.9 | D107: 1969.53 | E107: 1947.72 | F107: 1929.53 | G107: 1907.72 | H107: 1987.72 | I107: 2009.53 | J107: 2027.72 | K107: 1991.35 | L107: 1951.35 | M107: 30.54664
A108: 99 | B108: HINDZINC | C108: 311.05 | D108: 313.45 | E108: 308.00 | F108: 304.95 | G108: 299.50 | H108: 316.50 | I108: 321.95 | J108: 325.00 | K108: 318.9 | L108: 310.4 | M108: 20.43996
A109: 100 | B109: HDFC | C109: 2310.5 | D109: 2323.67 | E109: 2290.38 | F109: 2270.27 | G109: 2236.98 | H109: 2343.78 | I109: 2377.07 | J109: 2397.18 | K109: 2356.95 | L109: 2303.55 | M109: 39.94199
A110: 101 | B110: ICICIBANK | C110: 704.2 | D110: 704.97 | E110: 697.23 | F110: 690.27 | G110: 682.53 | H110: 711.93 | I110: 719.67 | J110: 726.63 | K110: 712.7 | L110: 698 | M110: 177.27969
A111: 102 | B111: ICICIGI | C111: 1244.15 | D111: 1246.17 | E111: 1235.58 | F111: 1227.02 | G111: 1216.43 | H111: 1254.73 | I111: 1265.32 | J111: 1273.88 | K111: 1256.75 | L111: 1237.6 | M111: 5.32228
A112: 103 | B112: ICICIPRULI | C112: 482.9 | D112: 479.92 | E112: 475.83 | F112: 468.77 | G112: 464.68 | H112: 486.98 | I112: 491.07 | J112: 498.13 | K112: 484 | L112: 472.85 | M112: 8.54779
A113: 104 | B113: ISEC | C113: 642.9 | D113: 645.20 | E113: 636.70 | F113: 630.50 | G113: 622.00 | H113: 651.40 | I113: 659.90 | J113: 666.10 | K113: 653.7 | L113: 639 | M113: 2.72358
A114: 105 | B114: IDFCFIRSTB | C114: 40.05 | D114: 40.32 | E114: 39.63 | F114: 39.22 | G114: 38.53 | H114: 40.73 | I114: 41.42 | J114: 41.83 | K114: 41 | L114: 39.9 | M114: 714.58804
A115: 106 | B115: ITC | C115: 254.85 | D115: 254.27 | E115: 252.03 | F115: 249.22 | G115: 246.98 | H115: 257.08 | I115: 259.32 | J115: 262.13 | K115: 256.5 | L115: 251.45 | M115: 382.39419
A116: 107 | B116: INDIAMART | C116: 4508 | D116: 4502.02 | E116: 4462.03 | F116: 4416.07 | G116: 4376.08 | H116: 4547.98 | I116: 4587.97 | J116: 4633.93 | K116: 4542 | L116: 4456.05 | M116: 0.59943
A117: 108 | B117: INDIANB | C117: 149.85 | D117: 150.57 | E117: 148.48 | F117: 147.12 | G117: 145.03 | H117: 151.93 | I117: 154.02 | J117: 155.38 | K117: 152.65 | L117: 149.2 | M117: 11.24453
A118: 109 | B118: INDHOTEL | C118: 219.1 | D118: 217.83 | E118: 215.77 | F118: 212.43 | G118: 210.37 | H118: 221.17 | I118: 223.23 | J118: 226.57 | K118: 219.9 | L118: 214.5 | M118: 52.38276
A119: 110 | B119: IOC | C119: 120.6 | D119: 121.03 | E119: 119.92 | F119: 119.23 | G119: 118.12 | H119: 121.72 | I119: 122.83 | J119: 123.52 | K119: 122.15 | L119: 120.35 | M119: 82.51754
A120: 111 | B120: IRCTC | C120: 772.5 | D120: 770.73 | E120: 762.07 | F120: 751.63 | G120: 742.97 | H120: 781.17 | I120: 789.83 | J120: 800.27 | K120: 779.4 | L120: 760.3 | M120: 18.03315
A121: 112 | B121: IRFC | C121: 22.3 | D121: 22.33 | E121: 22.22 | F121: 22.13 | G121: 22.02 | H121: 22.42 | I121: 22.53 | J121: 22.62 | K121: 22.45 | L121: 22.25 | M121: 44.05621
A122: 113 | B122: IGL | C122: 377.4 | D122: 377.00 | E122: 374.25 | F122: 371.10 | G122: 368.35 | H122: 380.15 | I122: 382.90 | J122: 386.05 | K122: 379.75 | L122: 373.85 | M122: 19.2295
A123: 114 | B123: INDUSTOWER | C123: 213.8 | D123: 213.90 | E123: 211.90 | F123: 210.00 | G123: 208.00 | H123: 215.80 | I123: 217.80 | J123: 219.70 | K123: 215.9 | L123: 212 | M123: 30.06407
A124: 115 | B124: INDUSINDBK | C124: 924.8 | D124: 925.98 | E124: 914.02 | F124: 903.23 | G124: 891.27 | H124: 936.77 | I124: 948.73 | J124: 959.52 | K124: 937.95 | L124: 915.2 | M124: 29.23793
A125: 116 | B125: NAUKRI | C125: 4529.95 | D125: 4560.15 | E125: 4484.80 | F125: 4439.65 | G125: 4364.30 | H125: 4605.30 | I125: 4680.65 | J125: 4725.80 | K125: 4635.5 | L125: 4515 | M125: 4.75967
A126: 117 | B126: INFY | C126: 1886.7 | D126: 1879.15 | E126: 1863.70 | F126: 1840.70 | G126: 1825.25 | H126: 1902.15 | I126: 1917.60 | J126: 1940.60 | K126: 1894.6 | L126: 1856.15 | M126: 37.84303
A127: 118 | B127: INDIGO | C127: 1863.1 | D127: 1843.47 | E127: 1816.03 | F127: 1768.97 | G127: 1741.53 | H127: 1890.53 | I127: 1917.97 | J127: 1965.03 | K127: 1870.9 | L127: 1796.4 | M127: 7.70859
A128: 119 | B128: IPCALAB | C128: 1008.4 | D128: 1005.63 | E128: 993.27 | F128: 978.13 | G128: 965.77 | H128: 1020.77 | I128: 1033.13 | J128: 1048.27 | K128: 1018 | L128: 990.5 | M128: 2.14498
A129: 120 | B129: JSWENERGY | C129: 301.95 | D129: 300.47 | E129: 297.23 | F129: 292.52 | G129: 289.28 | H129: 305.18 | I129: 308.42 | J129: 313.13 | K129: 303.7 | L129: 295.75 | M129: 1.64892
A130: 121 | B130: JSWSTEEL | C130: 715.1 | D130: 712.93 | E130: 706.37 | F130: 697.63 | G130: 691.07 | H130: 721.67 | I130: 728.23 | J130: 736.97 | K130: 719.5 | L130: 704.2 | M130: 60.69039
A131: 122 | B131: JINDALSTEL | C131: 521.65 | D131: 520.60 | E131: 511.85 | F131: 502.05 | G131: 493.30 | H131: 530.40 | I131: 539.15 | J131: 548.95 | K131: 529.35 | L131: 510.8 | M131: 102.08046
A132: 123 | B132: JUBLFOOD | C132: 2618.95 | D132: 2625.87 | E132: 2597.43 | F132: 2575.92 | G132: 2547.48 | H132: 2647.38 | I132: 2675.82 | J132: 2697.33 | K132: 2654.3 | L132: 2604.35 | M132: 7.13562
A133: 124 | B133: KOTAKBANK | C133: 1714.15 | D133: 1714.68 | E133: 1700.47 | F133: 1686.78 | G133: 1672.57 | H133: 1728.37 | I133: 1742.58 | J133: 1756.27 | K133: 1728.9 | L133: 1701 | M133: 197.10178
A134: 125 | B134: L&TFH | C134: 80.05 | D134: 83.15 | E134: 76.50 | F134: 72.95 | G134: 66.30 | H134: 86.70 | I134: 93.35 | J134: 96.90 | K134: 89.8 | L134: 79.6 | M134: 879.68595
A135: 126 | B135: LTTS | C135: 5037.3 | D135: 4980.97 | E135: 4899.98 | F135: 4762.67 | G135: 4681.68 | H135: 5118.28 | I135: 5199.27 | J135: 5336.58 | K135: 5061.95 | L135: 4843.65 | M135: 3.38729
A136: 127 | B136: LICHSGFIN | C136: 366.15 | D136: 365.57 | E136: 361.63 | F136: 357.12 | G136: 353.18 | H136: 370.08 | I136: 374.02 | J136: 378.53 | K136: 369.5 | L136: 361.05 | M136: 16.29109
A137: 128 | B137: LTI | C137: 6177.35 | D137: 6143.05 | E137: 6084.30 | F137: 5991.25 | G137: 5932.50 | H137: 6236.10 | I137: 6294.85 | J137: 6387.90 | K137: 6201.8 | L137: 6050 | M137: 2.93186
A138: 129 | B138: LT | C138: 1771.55 | D138: 1767.42 | E138: 1755.13 | F138: 1738.72 | G138: 1726.43 | H138: 1783.83 | I138: 1796.12 | J138: 1812.53 | K138: 1779.7 | L138: 1751 | M138: 15.80887
A139: 130 | B139: LAURUSLABS | C139: 604.25 | D139: 605.05 | E139: 599.30 | F139: 594.35 | G139: 588.60 | H139: 610.00 | I139: 615.75 | J139: 620.70 | K139: 610.8 | L139: 600.1 | M139: 17.29329
A140: 131 | B140: LUPIN | C140: 774.6 | D140: 764.85 | E140: 751.95 | F140: 729.30 | G140: 716.40 | H140: 787.50 | I140: 800.40 | J140: 823.05 | K140: 777.75 | L140: 742.2 | M140: 21.61602
A141: 132 | B141: MRF | C141: 66718.75 | D141: 66856.23 | E141: 66312.52 | F141: 65906.28 | G141: 65362.57 | H141: 67262.47 | I141: 67806.18 | J141: 68212.42 | K141: 67399.95 | L141: 66450 | M141: 0.074
A142: 133 | B142: MGL | C142: 769.85 | D142: 767.30 | E142: 759.00 | F142: 748.15 | G142: 739.85 | H142: 778.15 | I142: 786.45 | J142: 797.30 | K142: 775.6 | L142: 756.45 | M142: 3.627
A143: 134 | B143: M&MFIN | C143: 157.25 | D143: 157.82 | E143: 155.88 | F143: 154.52 | G143: 152.58 | H143: 159.18 | I143: 161.12 | J143: 162.48 | K143: 159.75 | L143: 156.45 | M143: 59.89246
A144: 135 | B144: M&M | C144: 765.65 | D144: 769.43 | E144: 758.87 | F144: 752.08 | G144: 741.52 | H144: 776.22 | I144: 786.78 | J144: 793.57 | K144: 780 | L144: 762.65 | M144: 22.48114
A145: 136 | B145: MANAPPURAM | C145: 117.1 | D145: 117.02 | E145: 116.08 | F145: 115.07 | G145: 114.13 | H145: 118.03 | I145: 118.97 | J145: 119.98 | K145: 117.95 | L145: 116 | M145: 25.77467
A146: 137 | B146: MARICO | C146: 482.4 | D146: 482.43 | E146: 478.87 | F146: 475.33 | G146: 471.77 | H146: 485.97 | I146: 489.53 | J146: 493.07 | K146: 486 | L146: 478.9 | M146: 29.41035
A147: 138 | B147: MARUTI | C147: 7556.95 | D147: 7579.43 | E147: 7503.87 | F147: 7450.78 | G147: 7375.22 | H147: 7632.52 | I147: 7708.08 | J147: 7761.17 | K147: 7655 | L147: 7526.35 | M147: 5.65485
A148: 139 | B148: MFSL | C148: 747.65 | D148: 753.58 | E148: 738.82 | F148: 729.98 | G148: 715.22 | H148: 762.42 | I148: 777.18 | J148: 786.02 | K148: 768.35 | L148: 744.75 | M148: 7.3175
A149: 140 | B149: MINDTREE | C149: 4277.5 | D149: 4213.50 | E149: 4139.00 | F149: 4000.50 | G149: 3926.00 | H149: 4352.00 | I149: 4426.50 | J149: 4565.00 | K149: 4288 | L149: 4075 | M149: 10.77491
A150: 141 | B150: MPHASIS | C150: 3333.25 | D150: 3304.18 | E150: 3261.07 | F150: 3188.88 | G150: 3145.77 | H150: 3376.37 | I150: 3419.48 | J150: 3491.67 | K150: 3347.3 | L150: 3232 | M150: 5.51259
A151: 142 | B151: MUTHOOTFIN | C151: 1350.8 | D151: 1344.68 | E151: 1334.47 | F151: 1318.13 | G151: 1307.92 | H151: 1361.02 | I151: 1371.23 | J151: 1387.57 | K151: 1354.9 | L151: 1328.35 | M151: 3.82004
A152: 143 | B152: NATCOPHARM | C152: 783.2 | D152: 787.73 | E152: 771.47 | F152: 759.73 | G152: 743.47 | H152: 799.47 | I152: 815.73 | J152: 827.47 | K152: 804 | L152: 776 | M152: 3.77021
A153: 144 | B153: NMDC | C153: 157.1 | D153: 155.40 | E153: 152.85 | F153: 148.60 | G153: 146.05 | H153: 159.65 | I153: 162.20 | J153: 166.45 | K153: 157.95 | L153: 151.15 | M153: 179.76962
A154: 145 | B154: NTPC | C154: 135.4 | D154: 134.82 | E154: 133.93 | F154: 132.47 | G154: 131.58 | H154: 136.28 | I154: 137.17 | J154: 138.63 | K154: 135.7 | L154: 133.35 | M154: 112.76181
A155: 146 | B155: NATIONALUM | C155: 124.1 | D155: 124.98 | E155: 122.52 | F155: 120.93 | G155: 118.47 | H155: 126.57 | I155: 129.03 | J155: 130.62 | K155: 127.45 | L155: 123.4 | M155: 406.40878
A156: 147 | B156: NAVINFLUOR | C156: 3967.5 | D156: 3987.70 | E156: 3882.80 | F156: 3798.10 | G156: 3693.20 | H156: 4072.40 | I156: 4177.30 | J156: 4262.00 | K156: 4092.6 | L156: 3903 | M156: 2.30986
A157: 148 | B157: NESTLEIND | C157: 17408.1 | D157: 17389.37 | E157: 17278.73 | F157: 17149.37 | G157: 17038.73 | H157: 17518.73 | I157: 17629.37 | J157: 17758.73 | K157: 17500 | L157: 17260 | M157: 0.43181
A158: 149 | B158: NAM-INDIA | C158: 337.8 | D158: 338.13 | E158: 335.67 | F158: 333.53 | G158: 331.07 | H158: 340.27 | I158: 342.73 | J158: 344.87 | K158: 340.6 | L158: 336 | M158: 6.03942
A159: 150 | B159: OBEROIRLTY | C159: 930.6 | D159: 929.87 | E159: 906.73 | F159: 882.87 | G159: 859.73 | H159: 953.73 | I159: 976.87 | J159: 1000.73 | K159: 953 | L159: 906 | M159: 16.89476
A160: 151 | B160: ONGC | C160: 177.45 | D160: 178.12 | E160: 175.83 | F160: 174.22 | G160: 171.93 | H160: 179.73 | I160: 182.02 | J160: 183.63 | K160: 180.4 | L160: 176.5 | M160: 203.32589
A161: 152 | B161: OIL | C161: 235.45 | D161: 235.62 | E161: 232.38 | F161: 229.32 | G161: 226.08 | H161: 238.68 | I161: 241.92 | J161: 244.98 | K161: 238.85 | L161: 232.55 | M161: 31.98005
A162: 153 | B162: PIIND | C162: 2751.65 | D162: 2741.35 | E162: 2700.30 | F162: 2648.95 | G162: 2607.90 | H162: 2792.70 | I162: 2833.75 | J162: 2885.10 | K162: 2782.4 | L162: 2690 | M162: 1.27876
A163: 154 | B163: PAGEIND | C163: 41383.55 | D163: 41585.70 | E163: 40959.45 | F163: 40535.35 | G163: 39909.10 | H163: 42009.80 | I163: 42636.05 | J163: 43060.15 | K163: 42211.95 | L163: 41161.6 | M163: 0.17977
A164: 155 | B164: PETRONET | C164: 197.35 | D164: 196.50 | E164: 195.35 | F164: 193.35 | G164: 192.20 | H164: 198.50 | I164: 199.65 | J164: 201.65 | K164: 197.65 | L164: 194.5 | M164: 30.04727
A165: 156 | B165: PFIZER | C165: 4470.7 | D165: 4464.88 | E165: 4440.87 | F165: 4411.03 | G165: 4387.02 | H165: 4494.72 | I165: 4518.73 | J165: 4548.57 | K165: 4488.9 | L165: 4435.05 | M165: 0.29436
A166: 157 | B166: PIDILITIND | C166: 2423.65 | D166: 2427.35 | E166: 2406.95 | F166: 2390.25 | G166: 2369.85 | H166: 2444.05 | I166: 2464.45 | J166: 2481.15 | K166: 2447.75 | L166: 2410.65 | M166: 2.17061
A167: 158 | B167: PEL | C167: 2246.7 | D167: 2237.73 | E167: 2217.67 | F167: 2188.63 | G167: 2168.57 | H167: 2266.77 | I167: 2286.83 | J167: 2315.87 | K167: 2257.8 | L167: 2208.7 | M167: 4.03343
A168: 159 | B168: POLYCAB | C168: 2405.6 | D168: 2413.53 | E168: 2387.27 | F168: 2368.93 | G168: 2342.67 | H168: 2431.87 | I168: 2458.13 | J168: 2476.47 | K168: 2439.8 | L168: 2395.2 | M168: 1.71484
A169: 160 | B169: PFC | C169: 116.25 | D169: 116.12 | E169: 115.43 | F169: 114.62 | G169: 113.93 | H169: 116.93 | I169: 117.62 | J169: 118.43 | K169: 116.8 | L169: 115.3 | M169: 20.44853
A170: 161 | B170: POWERGRID | C170: 210.75 | D170: 209.98 | E170: 208.77 | F170: 206.78 | G170: 205.57 | H170: 211.97 | I170: 213.18 | J170: 215.17 | K170: 211.2 | L170: 208 | M170: 83.91719
A171: 162 | B171: PRESTIGE | C171: 461.55 | D171: 466.12 | E171: 452.33 | F171: 443.12 | G171: 429.33 | H171: 475.33 | I171: 489.12 | J171: 498.33 | K171: 479.9 | L171: 456.9 | M171: 4.58066
A172: 163 | B172: PGHH | C172: 14970.65 | D172: 15092.82 | E172: 14786.23 | F172: 14601.82 | G172: 14295.23 | H172: 15277.23 | I172: 15583.82 | J172: 15768.23 | K172: 15399.4 | L172: 14908.4 | M172: 0.03631
A173: 164 | B173: PNB | C173: 35.55 | D173: 35.68 | E173: 35.37 | F173: 35.18 | G173: 34.87 | H173: 35.87 | I173: 36.18 | J173: 36.37 | K173: 36 | L173: 35.5 | M173: 279.69611
A174: 165 | B174: RBLBANK | C174: 135 | D174: 134.70 | E174: 133.30 | F174: 131.60 | G174: 130.20 | H174: 136.40 | I174: 137.80 | J174: 139.50 | K174: 136.1 | L174: 133 | M174: 78.45186
A175: 166 | B175: RECLTD | C175: 125.1 | D175: 125.60 | E175: 124.30 | F175: 123.50 | G175: 122.20 | H175: 126.40 | I175: 127.70 | J175: 128.50 | K175: 126.9 | L175: 124.8 | M175: 27.71423
A176: 167 | B176: RELIANCE | C176: 2578.65 | D176: 2557.60 | E176: 2531.05 | F176: 2483.45 | G176: 2456.90 | H176: 2605.20 | I176: 2631.75 | J176: 2679.35 | K176: 2584.15 | L176: 2510 | M176: 60.77153
A177: 168 | B177: SBICARD | C177: 843.55 | D177: 848.70 | E177: 834.90 | F177: 826.25 | G177: 812.45 | H177: 857.35 | I177: 871.15 | J177: 879.80 | K177: 862.5 | L177: 840.05 | M177: 9.383
A178: 169 | B178: SBILIFE | C178: 1088.95 | D178: 1090.25 | E178: 1083.00 | F178: 1077.05 | G178: 1069.80 | H178: 1096.20 | I178: 1103.45 | J178: 1109.40 | K178: 1097.5 | L178: 1084.3 | M178: 5.26345
A179: 170 | B179: SRF | C179: 2608.1 | D179: 2587.35 | E179: 2550.75 | F179: 2493.40 | G179: 2456.80 | H179: 2644.70 | I179: 2681.30 | J179: 2738.65 | K179: 2623.95 | L179: 2530 | M179: 8.34422
A180: 171 | B180: SANOFI | C180: 7317 | D180: 7366.67 | E180: 7245.33 | F180: 7173.67 | G180: 7052.33 | H180: 7438.33 | I180: 7559.67 | J180: 7631.33 | K180: 7488 | L180: 7295 | M180: 0.53335
A181: 172 | B181: SHREECEM | C181: 23273.75 | D181: 23367.98 | E181: 23105.97 | F181: 22938.18 | G181: 22676.17 | H181: 23535.77 | I181: 23797.78 | J181: 23965.57 | K181: 23630 | L181: 23200.2 | M181: 0.29951
A182: 173 | B182: SRTRANSFIN | C182: 1092.4 | D182: 1093.53 | E182: 1085.47 | F182: 1078.53 | G182: 1070.47 | H182: 1100.47 | I182: 1108.53 | J182: 1115.47 | K182: 1101.6 | L182: 1086.6 | M182: 6.65807
A183: 174 | B183: SIEMENS | C183: 2294.3 | D183: 2287.33 | E183: 2272.97 | F183: 2251.63 | G183: 2237.27 | H183: 2308.67 | I183: 2323.03 | J183: 2344.37 | K183: 2301.7 | L183: 2266 | M183: 2.1474
A184: 175 | B184: SBIN | C184: 487.1 | D184: 488.47 | E184: 482.13 | F184: 477.17 | G184: 470.83 | H184: 493.43 | I184: 499.77 | J184: 504.73 | K184: 494.8 | L184: 483.5 | M184: 181.74877
A185: 176 | B185: SAIL | C185: 104 | D185: 103.82 | E185: 102.68 | F185: 101.37 | G185: 100.23 | H185: 105.13 | I185: 106.27 | J185: 107.58 | K185: 104.95 | L185: 102.5 | M185: 410.16068
A186: 177 | B186: SUNPHARMA | C186: 908.85 | D186: 903.02 | E186: 891.33 | F186: 873.82 | G186: 862.13 | H186: 920.53 | I186: 932.22 | J186: 949.73 | K186: 914.7 | L186: 885.5 | M186: 31.41478
A187: 178 | B187: SUNTV | C187: 466 | D187: 466.62 | E187: 460.38 | F187: 454.77 | G187: 448.53 | H187: 472.23 | I187: 478.47 | J187: 484.08 | K187: 472.85 | L187: 461 | M187: 19.22557
A188: 179 | B188: SYNGENE | C188: 588.95 | D188: 593.88 | E188: 581.02 | F188: 573.08 | G188: 560.22 | H188: 601.82 | I188: 614.68 | J188: 622.62 | K188: 606.75 | L188: 585.95 | M188: 3.67061
A189: 180 | B189: TVSMOTOR | C189: 608.95 | D189: 610.35 | E189: 603.90 | F189: 598.85 | G189: 592.40 | H189: 615.40 | I189: 621.85 | J189: 626.90 | K189: 616.8 | L189: 605.3 | M189: 7.89555
A190: 181 | B190: TATACHEM | C190: 972.7 | D190: 966.25 | E190: 957.60 | F190: 942.50 | G190: 933.85 | H190: 981.35 | I190: 990.00 | J190: 1005.10 | K190: 974.9 | L190: 951.15 | M190: 18.26181
A191: 182 | B191: TATACOMM | C191: 1164.85 | D191: 1168.25 | E191: 1150.90 | F191: 1136.95 | G191: 1119.60 | H191: 1182.20 | I191: 1199.55 | J191: 1213.50 | K191: 1185.6 | L191: 1154.3 | M191: 6.1281
A192: 183 | B192: TCS | C192: 3749.85 | D192: 3734.35 | E192: 3710.50 | F192: 3671.15 | G192: 3647.30 | H192: 3773.70 | I192: 3797.55 | J192: 3836.90 | K192: 3758.2 | L192: 3695 | M192: 18.79046
A193: 184 | B193: TATACONSUM | C193: 740.5 | D193: 743.60 | E193: 735.60 | F193: 730.70 | G193: 722.70 | H193: 748.50 | I193: 756.50 | J193: 761.40 | K193: 751.6 | L193: 738.7 | M193: 11.79087
A194: 185 | B194: TATAELXSI | C194: 7606.9 | D194: 7649.50 | E194: 7524.00 | F194: 7441.10 | G194: 7315.60 | H194: 7732.40 | I194: 7857.90 | J194: 7940.80 | K194: 7775 | L194: 7566.6 | M194: 2.86798
A195: 186 | B195: TATAMOTORS | C195: 433.2 | D195: 432.05 | E195: 428.70 | F195: 424.20 | G195: 420.85 | H195: 436.55 | I195: 439.90 | J195: 444.40 | K195: 435.4 | L195: 427.55 | M195: 171.09723
A196: 187 | B196: TATAPOWER | C196: 239.5 | D196: 237.82 | E196: 234.63 | F196: 229.77 | G196: 226.58 | H196: 242.68 | I196: 245.87 | J196: 250.73 | K196: 241 | L196: 232.95 | M196: 315.25902
A197: 188 | B197: TATASTEEL | C197: 1350.55 | D197: 1345.33 | E197: 1331.17 | F197: 1311.78 | G197: 1297.62 | H197: 1364.72 | I197: 1378.88 | J197: 1398.27 | K197: 1359.5 | L197: 1325.95 | M197: 94.60527
A198: 189 | B198: TECHM | C198: 1568.55 | D198: 1556.88 | E198: 1541.82 | F198: 1515.08 | G198: 1500.02 | H198: 1583.62 | I198: 1598.68 | J198: 1625.42 | K198: 1571.95 | L198: 1530.15 | M198: 20.85571
A199: 190 | B199: RAMCOCEM | C199: 729.55 | D199: 728.38 | E199: 722.82 | F199: 716.08 | G199: 710.52 | H199: 735.12 | I199: 740.68 | J199: 747.42 | K199: 733.95 | L199: 721.65 | M199: 3.32492
A200: 191 | B200: TITAN | C200: 2618.5 | D200: 2641.68 | E200: 2589.37 | F200: 2560.23 | G200: 2507.92 | H200: 2670.82 | I200: 2723.13 | J200: 2752.27 | K200: 2694 | L200: 2612.55 | M200: 18.3538
A201: 192 | B201: TORNTPHARM | C201: 2828.4 | D201: 2828.90 | E201: 2792.15 | F201: 2755.90 | G201: 2719.15 | H201: 2865.15 | I201: 2901.90 | J201: 2938.15 | K201: 2865.65 | L201: 2792.65 | M201: 1.48987
A202: 193 | B202: TORNTPOWER | C202: 494.4 | D202: 490.07 | E202: 484.33 | F202: 474.27 | G202: 468.53 | H202: 500.13 | I202: 505.87 | J202: 515.93 | K202: 495.8 | L202: 480 | M202: 4.25873
A203: 194 | B203: TRENT | C203: 1276.85 | D203: 1285.93 | E203: 1261.92 | F203: 1246.98 | G203: 1222.97 | H203: 1300.87 | I203: 1324.88 | J203: 1339.82 | K203: 1309.95 | L203: 1271 | M203: 4.53482
A204: 195 | B204: UPL | C204: 799.1 | D204: 796.67 | E204: 791.48 | F204: 783.87 | G204: 778.68 | H204: 804.28 | I204: 809.47 | J204: 817.08 | K204: 801.85 | L204: 789.05 | M204: 21.17672
A205: 196 | B205: ULTRACEMCO | C205: 6351.85 | D205: 6310.47 | E205: 6241.38 | F205: 6130.92 | G205: 6061.83 | H205: 6420.93 | I205: 6490.02 | J205: 6600.48 | K205: 6379.55 | L205: 6200 | M205: 6.42226
... 29 more rows

Sheet MidCap Intra
L5: Back To Main Page
A6: FOR INTRA DAY TRADING | K6: =Main!B10 -> 2022-03-25
A9: Sr.no | B9: Scrip | C9: CLOSE RATE | D9: Pivot Point | E9: Supports | H9: Resistances
E10: S1 | F10: S2 | G10: S3 | H10: R1 | I10: R2 | J10: R3 | K10: HIGH | L10: LOW | M10: Total Trade Quanity in Lakhs
A11: 1 | B11: 3MINDIA | C11: 19976.8 | D11: 20067.10 | E11: 19809.55 | F11: 19642.30 | G11: 19384.75 | H11: 20234.35 | I11: 20491.90 | J11: 20659.15 | K11: 20324.65 | L11: 19899.85 | M11: 0.02642
A12: 2 | B12: AARTIDRUGS | C12: 438.65 | D12: 440.63 | E12: 434.02 | F12: 429.38 | G12: 422.77 | H12: 445.27 | I12: 451.88 | J12: 456.52 | K12: 447.25 | L12: 436 | M12: 1.92727
A13: 3 | B13: AARTIIND | C13: 919.4 | D13: 918.28 | E13: 910.72 | F13: 902.03 | G13: 894.47 | H13: 926.97 | I13: 934.53 | J13: 943.22 | K13: 925.85 | L13: 909.6 | M13: 4.46309
A14: 4 | B14: AAVAS | C14: 2258.2 | D14: 2271.37 | E14: 2224.78 | F14: 2191.37 | G14: 2144.78 | H14: 2304.78 | I14: 2351.37 | J14: 2384.78 | K14: 2317.95 | L14: 2237.95 | M14: 1.81406
A15: 5 | B15: ABB | C15: 2038.65 | D15: 2024.88 | E15: 1995.77 | F15: 1952.88 | G15: 1923.77 | H15: 2067.77 | I15: 2096.88 | J15: 2139.77 | K15: 2054 | L15: 1982 | M15: 2.51286
A16: 6 | B16: ABBOTINDIA | C16: 16469.25 | D16: 16522.72 | E16: 16346.53 | F16: 16223.82 | G16: 16047.63 | H16: 16645.43 | I16: 16821.62 | J16: 16944.33 | K16: 16698.9 | L16: 16400 | M16: 0.09497
A17: 7 | B17: ABCAPITAL | C17: 109.95 | D17: 110.20 | E17: 108.00 | F17: 106.05 | G17: 103.85 | H17: 112.15 | I17: 114.35 | J17: 116.30 | K17: 112.4 | L17: 108.25 | M17: 48.28323
A18: 8 | B18: ABFRL | C18: 296.25 | D18: 293.50 | E18: 288.00 | F18: 279.75 | G18: 274.25 | H18: 301.75 | I18: 307.25 | J18: 315.50 | K18: 299 | L18: 285.25 | M18: 34.32943
A19: 9 | B19: ACC | C19: 2080.4 | D19: 2074.50 | E19: 2056.05 | F19: 2031.70 | G19: 2013.25 | H19: 2098.85 | I19: 2117.30 | J19: 2141.65 | K19: 2092.95 | L19: 2050.15 | M19: 2.94252
A20: 10 | B20: ADANIENT | C20: 1832.8 | D20: 1824.17 | E20: 1808.78 | F20: 1784.77 | G20: 1769.38 | H20: 1848.18 | I20: 1863.57 | J20: 1887.58 | K20: 1839.55 | L20: 1800.15 | M20: 10.30145
A21: 11 | B21: ADANIGREEN | C21: 1911.4 | D21: 1907.47 | E21: 1890.93 | F21: 1870.47 | G21: 1853.93 | H21: 1927.93 | I21: 1944.47 | J21: 1964.93 | K21: 1924 | L21: 1887 | M21: 4.77913
A22: 12 | B22: ADANIPORTS | C22: 733.45 | D22: 735.58 | E22: 728.87 | F22: 724.28 | G22: 717.57 | H22: 740.17 | I22: 746.88 | J22: 751.47 | K22: 742.3 | L22: 731 | M22: 29.14647
A23: 13 | B23: ADANITRANS | C23: 2414.4 | D23: 2407.03 | E23: 2379.12 | F23: 2343.83 | G23: 2315.92 | H23: 2442.32 | I23: 2470.23 | J23: 2505.52 | K23: 2434.95 | L23: 2371.75 | M23: 2.99163
A24: 14 | B24: ADVENZYMES | C24: 295.8 | D24: 298.28 | E24: 292.12 | F24: 288.43 | G24: 282.27 | H24: 301.97 | I24: 308.13 | J24: 311.82 | K24: 304.45 | L24: 294.6 | M24: 1.71968
A25: 15 | B25: AEGISCHEM | C25: 202 | D25: 201.88 | E25: 199.87 | F25: 197.73 | G25: 195.72 | H25: 204.02 | I25: 206.03 | J25: 208.17 | K25: 203.9 | L25: 199.75 | M25: 7.38063
A26: 16 | B26: AFFLE | C26: 1219.5 | D26: 1223.35 | E26: 1208.55 | F26: 1197.60 | G26: 1182.80 | H26: 1234.30 | I26: 1249.10 | J26: 1260.05 | K26: 1238.15 | L26: 1212.4 | M26: 1.59177
A27: 17 | B27: AIAENG | C27: 1708.3 | D27: 1713.40 | E27: 1685.95 | F27: 1663.60 | G27: 1636.15 | H27: 1735.75 | I27: 1763.20 | J27: 1785.55 | K27: 1740.85 | L27: 1691.05 | M27: 0.16782
A28: 18 | B28: AJANTPHARM | C28: 1979.9 | D28: 1977.17 | E28: 1965.33 | F28: 1950.77 | G28: 1938.93 | H28: 1991.73 | I28: 2003.57 | J28: 2018.13 | K28: 1989 | L28: 1962.6 | M28: 0.43402
A29: 19 | B29: ALEMBICLTD | C29: 79.95 | D29: 80.38 | E29: 79.07 | F29: 78.18 | G29: 76.87 | H29: 81.27 | I29: 82.58 | J29: 83.47 | K29: 81.7 | L29: 79.5 | M29: 3.04962
A30: 20 | B30: ALKEM | C30: 3609.5 | D30: 3622.95 | E30: 3557.35 | F30: 3505.20 | G30: 3439.60 | H30: 3675.10 | I30: 3740.70 | J30: 3792.85 | K30: 3688.55 | L30: 3570.8 | M30: 0.67094
A31: 21 | B31: ALKYLAMINE | C31: 2899.9 | D31: 2901.47 | E31: 2874.93 | F31: 2849.97 | G31: 2823.43 | H31: 2926.43 | I31: 2952.97 | J31: 2977.93 | K31: 2928 | L31: 2876.5 | M31: 0.57821
A32: 22 | B32: ALOKINDS | C32: 26 | D32: 26.20 | E32: 25.50 | F32: 25.00 | G32: 24.30 | H32: 26.70 | I32: 27.40 | J32: 27.90 | K32: 26.9 | L32: 25.7 | M32: 107.22754
A33: 23 | B33: AMARAJABAT | C33: 568 | D33: 569.33 | E33: 562.72 | F33: 557.43 | G33: 550.82 | H33: 574.62 | I33: 581.23 | J33: 586.52 | K33: 575.95 | L33: 564.05 | M33: 5.31259
A34: 24 | B34: AMBER | C34: 3607.8 | D34: 3620.27 | E34: 3543.08 | F34: 3478.37 | G34: 3401.18 | H34: 3684.98 | I34: 3762.17 | J34: 3826.88 | K34: 3697.45 | L34: 3555.55 | M34: 0.77116
A35: 25 | B35: AMBUJACEM | C35: 297.05 | D35: 297.23 | E35: 294.82 | F35: 292.58 | G35: 290.17 | H35: 299.47 | I35: 301.88 | J35: 304.12 | K35: 299.65 | L35: 295 | M35: 40.48136
A36: 26 | B36: ANGELONE | C36: 1615.15 | D36: 1627.17 | E36: 1594.33 | F36: 1573.52 | G36: 1540.68 | H36: 1647.98 | I36: 1680.82 | J36: 1701.63 | K36: 1660 | L36: 1606.35 | M36: 4.28232
A37: 27 | B37: ANURAS | C37: 864.45 | D37: 868.32 | E37: 852.33 | F37: 840.22 | G37: 824.23 | H37: 880.43 | I37: 896.42 | J37: 908.53 | K37: 884.3 | L37: 856.2 | M37: 1.14793
A38: 28 | B38: APLAPOLLO | C38: 901.75 | D38: 908.42 | E38: 890.33 | F38: 878.92 | G38: 860.83 | H38: 919.83 | I38: 937.92 | J38: 949.33 | K38: 926.5 | L38: 897 | M38: 4.13287
A39: 29 | B39: APLLTD | C39: 765.35 | D39: 755.95 | E39: 740.90 | F39: 716.45 | G39: 701.40 | H39: 780.40 | I39: 795.45 | J39: 819.90 | K39: 771 | L39: 731.5 | M39: 3.69125
A40: 30 | B40: APOLLOHOSP | C40: 4628.55 | D40: 4624.05 | E40: 4563.10 | F40: 4497.65 | G40: 4436.70 | H40: 4689.50 | I40: 4750.45 | J40: 4815.90 | K40: 4685 | L40: 4558.6 | M40: 7.19101
A41: 31 | B41: APOLLOTYRE | C41: 186.65 | D41: 187.23 | E41: 184.77 | F41: 182.88 | G41: 180.42 | H41: 189.12 | I41: 191.58 | J41: 193.47 | K41: 189.7 | L41: 185.35 | M41: 18.22259
A42: 32 | B42: ASAHIINDIA | C42: 419.2 | D42: 421.23 | E42: 414.97 | F42: 410.73 | G42: 404.47 | H42: 425.47 | I42: 431.73 | J42: 435.97 | K42: 427.5 | L42: 417 | M42: 1.61402
A43: 33 | B43: ASHOKA | C43: 89.75 | D43: 89.75 | E43: 88.95 | F43: 88.15 | G43: 87.35 | H43: 90.55 | I43: 91.35 | J43: 92.15 | K43: 90.55 | L43: 88.95 | M43: 3.79751
A44: 34 | B44: ASHOKLEY | C44: 112.05 | D44: 111.88 | E44: 110.42 | F44: 108.78 | G44: 107.32 | H44: 113.52 | I44: 114.98 | J44: 116.62 | K44: 113.35 | L44: 110.25 | M44: 120.2489
A45: 35 | B45: ASIANPAINT | C45: 3025.35 | D45: 3004.95 | E45: 2970.95 | F45: 2916.55 | G45: 2882.55 | H45: 3059.35 | I45: 3093.35 | J45: 3147.75 | K45: 3038.95 | L45: 2950.55 | M45: 12.43917
A46: 36 | B46: ASTERDM | C46: 175 | D46: 174.12 | E46: 172.43 | F46: 169.87 | G46: 168.18 | H46: 176.68 | I46: 178.37 | J46: 180.93 | K46: 175.8 | L46: 171.55 | M46: 2.62031
A47: 37 | B47: ASTRAL | C47: 2036.25 | D47: 2026.42 | E47: 1996.98 | F47: 1957.72 | G47: 1928.28 | H47: 2065.68 | I47: 2095.12 | J47: 2134.38 | K47: 2055.85 | L47: 1987.15 | M47: 2.29606
A48: 38 | B48: ASTRAZEN | C48: 2622.15 | D48: 2619.90 | E48: 2597.25 | F48: 2572.35 | G48: 2549.70 | H48: 2644.80 | I48: 2667.45 | J48: 2692.35 | K48: 2642.55 | L48: 2595 | M48: 0.11501
A49: 39 | B49: ATGL | C49: 1979.75 | D49: 1942.55 | E49: 1892.20 | F49: 1804.65 | G49: 1754.30 | H49: 2030.10 | I49: 2080.45 | J49: 2168.00 | K49: 1992.9 | L49: 1855 | M49: 2.94149
A50: 40 | B50: ATUL | C50: 9877.15 | D50: 9823.22 | E50: 9693.93 | F50: 9510.72 | G50: 9381.43 | H50: 10006.43 | I50: 10135.72 | J50: 10318.93 | K50: 9952.5 | L50: 9640 | M50: 0.35311
A51: 41 | B51: AUBANK | C51: 1241.45 | D51: 1241.77 | E51: 1224.68 | F51: 1207.92 | G51: 1190.83 | H51: 1258.53 | I51: 1275.62 | J51: 1292.38 | K51: 1258.85 | L51: 1225 | M51: 10.78509
A52: 42 | B52: AUROPHARMA | C52: 721.15 | D52: 711.35 | E52: 698.70 | F52: 676.25 | G52: 663.60 | H52: 733.80 | I52: 746.45 | J52: 768.90 | K52: 724 | L52: 688.9 | M52: 49.71872
A53: 43 | B53: AVANTIFEED | C53: 427.1 | D53: 429.03 | E53: 424.07 | F53: 421.03 | G53: 416.07 | H53: 432.07 | I53: 437.03 | J53: 440.07 | K53: 434 | L53: 426 | M53: 2.12148
A54: 44 | B54: AXISBANK | C54: 722.25 | D54: 723.90 | E54: 717.35 | F54: 712.45 | G54: 705.90 | H54: 728.80 | I54: 735.35 | J54: 740.25 | K54: 730.45 | L54: 719 | M54: 75.59843
A55: 45 | B55: BAJAJ-AUTO | C55: 3583.9 | D55: 3597.17 | E55: 3556.43 | F55: 3528.97 | G55: 3488.23 | H55: 3624.63 | I55: 3665.37 | J55: 3692.83 | K55: 3637.9 | L55: 3569.7 | M55: 3.85957
A56: 46 | B56: BAJAJCON | C56: 158.05 | D56: 158.42 | E56: 156.98 | F56: 155.92 | G56: 154.48 | H56: 159.48 | I56: 160.92 | J56: 161.98 | K56: 159.85 | L56: 157.35 | M56: 4.81821
A57: 47 | B57: BAJAJELEC | C57: 1060.55 | D57: 1064.63 | E57: 1045.92 | F57: 1031.28 | G57: 1012.57 | H57: 1079.27 | I57: 1097.98 | J57: 1112.62 | K57: 1083.35 | L57: 1050 | M57: 1.54153
A58: 48 | B58: BAJAJFINSV | C58: 16378.7 | D58: 16386.90 | E58: 16261.80 | F58: 16144.90 | G58: 16019.80 | H58: 16503.80 | I58: 16628.90 | J58: 16745.80 | K58: 16512 | L58: 16270 | M58: 1.83924
A59: 49 | B59: BAJAJHLDNG | C59: 5057.65 | D59: 5051.68 | E59: 5019.22 | F59: 4980.78 | G59: 4948.32 | H59: 5090.12 | I59: 5122.58 | J59: 5161.02 | K59: 5084.15 | L59: 5013.25 | M59: 3.21942
A60: 50 | B60: BAJFINANCE | C60: 6997.55 | D60: 6971.45 | E60: 6907.35 | F60: 6817.15 | G60: 6753.05 | H60: 7061.65 | I60: 7125.75 | J60: 7215.95 | K60: 7035.55 | L60: 6881.25 | M60: 7.83716
A61: 51 | B61: BALAMINES | C61: 3055.5 | D61: 3068.88 | E61: 3033.22 | F61: 3010.93 | G61: 2975.27 | H61: 3091.17 | I61: 3126.83 | J61: 3149.12 | K61: 3104.55 | L61: 3046.6 | M61: 0.34827
A62: 52 | B62: BALKRISIND | C62: 2064.9 | D62: 2074.80 | E62: 2037.25 | F62: 2009.60 | G62: 1972.05 | H62: 2102.45 | I62: 2140.00 | J62: 2167.65 | K62: 2112.35 | L62: 2047.15 | M62: 1.54912
A63: 53 | B63: BALRAMCHIN | C63: 490 | D63: 493.50 | E63: 484.50 | F63: 479.00 | G63: 470.00 | H63: 499.00 | I63: 508.00 | J63: 513.50 | K63: 502.5 | L63: 488 | M63: 29.87434
A64: 54 | B64: BANDHANBNK | C64: 297.25 | D64: 298.38 | E64: 292.87 | F64: 288.48 | G64: 282.97 | H64: 302.77 | I64: 308.28 | J64: 312.67 | K64: 303.9 | L64: 294 | M64: 103.25063
A65: 55 | B65: BANKBARODA | C65: 106.15 | D65: 106.40 | E65: 104.80 | F65: 103.45 | G65: 101.85 | H65: 107.75 | I65: 109.35 | J65: 110.70 | K65: 108 | L65: 105.05 | M65: 265.45928
A66: 56 | B66: BANKINDIA | C66: 47.2 | D66: 47.33 | E66: 46.87 | F66: 46.53 | G66: 46.07 | H66: 47.67 | I66: 48.13 | J66: 48.47 | K66: 47.8 | L66: 47 | M66: 29.4001
A67: 57 | B67: BASF | C67: 2931.45 | D67: 2947.53 | E67: 2905.07 | F67: 2878.68 | G67: 2836.22 | H67: 2973.92 | I67: 3016.38 | J67: 3042.77 | K67: 2990 | L67: 2921.15 | M67: 0.42789
A68: 58 | B68: BATAINDIA | C68: 1915.35 | D68: 1920.08 | E68: 1906.82 | F68: 1898.28 | G68: 1885.02 | H68: 1928.62 | I68: 1941.88 | J68: 1950.42 | K68: 1933.35 | L68: 1911.55 | M68: 1.53718
A69: 59 | B69: BAYERCROP | C69: 4628.35 | D69: 4652.87 | E69: 4570.18 | F69: 4512.02 | G69: 4429.33 | H69: 4711.03 | I69: 4793.72 | J69: 4851.88 | K69: 4735.55 | L69: 4594.7 | M69: 0.11248
A70: 60 | B70: BBTC | C70: 899.1 | D70: 901.92 | E70: 889.18 | F70: 879.27 | G70: 866.53 | H70: 911.83 | I70: 924.57 | J70: 934.48 | K70: 914.65 | L70: 892 | M70: 0.56533
A71: 61 | B71: BDL | C71: 562.85 | D71: 565.15 | E71: 555.70 | F71: 548.55 | G71: 539.10 | H71: 572.30 | I71: 581.75 | J71: 588.90 | K71: 574.6 | L71: 558 | M71: 5.31977
A72: 62 | B72: BEL | C72: 207.5 | D72: 206.93 | E72: 204.82 | F72: 202.13 | G72: 200.02 | H72: 209.62 | I72: 211.73 | J72: 214.42 | K72: 209.05 | L72: 204.25 | M72: 52.031
A73: 63 | B73: BEML | C73: 1509.9 | D73: 1518.30 | E73: 1494.60 | F73: 1479.30 | G73: 1455.60 | H73: 1533.60 | I73: 1557.30 | J73: 1572.60 | K73: 1542 | L73: 1503 | M73: 0.90514
A74: 64 | B74: BERGEPAINT | C74: 684.05 | D74: 681.65 | E74: 673.40 | F74: 662.75 | G74: 654.50 | H74: 692.30 | I74: 700.55 | J74: 711.20 | K74: 689.9 | L74: 671 | M74: 6.14363
A75: 65 | B75: BHARATFORG | C75: 694.25 | D75: 689.57 | E75: 680.28 | F75: 666.32 | G75: 657.03 | H75: 703.53 | I75: 712.82 | J75: 726.78 | K75: 698.85 | L75: 675.6 | M75: 16.13089
A76: 66 | B76: BHARATRAS | C76: 12299.9 | D76: 12335.15 | E76: 12105.80 | F76: 11911.70 | G76: 11682.35 | H76: 12529.25 | I76: 12758.60 | J76: 12952.70 | K76: 12564.5 | L76: 12141.05 | M76: 0.01301
A77: 67 | B77: BHARTIARTL | C77: 706.35 | D77: 704.35 | E77: 699.85 | F77: 693.35 | G77: 688.85 | H77: 710.85 | I77: 715.35 | J77: 721.85 | K77: 708.85 | L77: 697.85 | M77: 35.97143
A78: 68 | B78: BHEL | C78: 51.35 | D78: 51.42 | E78: 50.83 | F78: 50.32 | G78: 49.73 | H78: 51.93 | I78: 52.52 | J78: 53.03 | K78: 52 | L78: 50.9 | M78: 175.03276
A79: 69 | B79: BIOCON | C79: 342.3 | D79: 340.25 | E79: 337.25 | F79: 332.20 | G79: 329.20 | H79: 345.30 | I79: 348.30 | J79: 353.35 | K79: 343.25 | L79: 335.2 | M79: 17.79377
A80: 70 | B80: BIRLACORPN | C80: 1024.8 | D80: 1033.43 | E80: 1012.37 | F80: 999.93 | G80: 978.87 | H80: 1045.87 | I80: 1066.93 | J80: 1079.37 | K80: 1054.5 | L80: 1021 | M80: 1.45275
A81: 71 | B81: BLUEDART | C81: 6379.7 | D81: 6329.00 | E81: 6259.00 | F81: 6138.30 | G81: 6068.30 | H81: 6449.70 | I81: 6519.70 | J81: 6640.40 | K81: 6399 | L81: 6208.3 | M81: 0.08919
A82: 72 | B82: BLUESTARCO | C82: 1000.1 | D82: 995.37 | E82: 986.73 | F82: 973.37 | G82: 964.73 | H82: 1008.73 | I82: 1017.37 | J82: 1030.73 | K82: 1004 | L82: 982 | M82: 0.40455
A83: 73 | B83: BOSCHLTD | C83: 14153.8 | D83: 14127.90 | E83: 14025.90 | F83: 13898.00 | G83: 13796.00 | H83: 14255.80 | I83: 14357.80 | J83: 14485.70 | K83: 14229.9 | L83: 14000 | M83: 0.16425
A84: 74 | B84: BPCL | C84: 362.6 | D84: 363.73 | E84: 359.67 | F84: 356.73 | G84: 352.67 | H84: 366.67 | I84: 370.73 | J84: 373.67 | K84: 367.8 | L84: 360.8 | M84: 48.48379
A85: 75 | B85: BRIGADE | C85: 517 | D85: 517.77 | E85: 510.73 | F85: 504.47 | G85: 497.43 | H85: 524.03 | I85: 531.07 | J85: 537.33 | K85: 524.8 | L85: 511.5 | M85: 4.06979
A86: 76 | B86: BRITANNIA | C86: 3103.85 | D86: 3104.80 | E86: 3079.60 | F86: 3055.35 | G86: 3030.15 | H86: 3129.05 | I86: 3154.25 | J86: 3178.50 | K86: 3130 | L86: 3080.55 | M86: 4.59226
A87: 77 | B87: BSE | C87: 932.55 | D87: 936.45 | E87: 926.10 | F87: 919.65 | G87: 909.30 | H87: 942.90 | I87: 953.25 | J87: 959.70 | K87: 946.8 | L87: 930 | M87: 8.2773
A88: 78 | B88: BSOFT | C88: 480.1 | D88: 476.03 | E88: 469.12 | F88: 458.13 | G88: 451.22 | H88: 487.02 | I88: 493.93 | J88: 504.92 | K88: 482.95 | L88: 465.05 | M88: 40.84827
A89: 79 | B89: INTELLECT | C89: 849.6 | D89: 843.87 | E89: 833.73 | F89: 817.87 | G89: 807.73 | H89: 859.73 | I89: 869.87 | J89: 885.73 | K89: 854 | L89: 828 | M89: 5.95354
A90: 80 | B90: CAMS | C90: 2380.85 | D90: 2384.28 | E90: 2366.57 | F90: 2352.28 | G90: 2334.57 | H90: 2398.57 | I90: 2416.28 | J90: 2430.57 | K90: 2402 | L90: 2370 | M90: 1.5544
A91: 81 | B91: CANBK | C91: 225.65 | D91: 225.38 | E91: 222.87 | F91: 220.08 | G91: 217.57 | H91: 228.17 | I91: 230.68 | J91: 233.47 | K91: 227.9 | L91: 222.6 | M91: 60.67113
A92: 82 | B92: CANFINHOME | C92: 599.2 | D92: 599.52 | E92: 594.18 | F92: 589.17 | G92: 583.83 | H92: 604.53 | I92: 609.87 | J92: 614.88 | K92: 604.85 | L92: 594.5 | M92: 3.30823
A93: 83 | B93: CAPLIPOINT | C93: 717.15 | D93: 720.85 | E93: 712.30 | F93: 707.45 | G93: 698.90 | H93: 725.70 | I93: 734.25 | J93: 739.10 | K93: 729.4 | L93: 716 | M93: 0.43348
A94: 84 | B94: CARBORUNIV | C94: 764 | D94: 763.57 | E94: 756.18 | F94: 748.37 | G94: 740.98 | H94: 771.38 | I94: 778.77 | J94: 786.58 | K94: 770.95 | L94: 755.75 | M94: 0.74673
A95: 85 | B95: CASTROLIND | C95: 103.6 | D95: 104.20 | E95: 102.75 | F95: 101.90 | G95: 100.45 | H95: 105.05 | I95: 106.50 | J95: 107.35 | K95: 105.65 | L95: 103.35 | M95: 13.28803
A96: 86 | B96: CCL | C96: 405.7 | D96: 403.77 | E96: 398.73 | F96: 391.77 | G96: 386.73 | H96: 410.73 | I96: 415.77 | J96: 422.73 | K96: 408.8 | L96: 396.8 | M96: 3.68277
A97: 87 | B97: CDSL | C97: 1496.6 | D97: 1486.45 | E97: 1471.90 | F97: 1447.20 | G97: 1432.65 | H97: 1511.15 | I97: 1525.70 | J97: 1550.40 | K97: 1501 | L97: 1461.75 | M97: 7.1444
A98: 88 | B98: CEATLTD | C98: 971.2 | D98: 974.20 | E98: 964.50 | F98: 957.80 | G98: 948.10 | H98: 980.90 | I98: 990.60 | J98: 997.30 | K98: 983.9 | L98: 967.5 | M98: 0.58722
A99: 89 | B99: CENTRALBK | C99: 18.65 | D99: 18.72 | E99: 18.53 | F99: 18.42 | G99: 18.23 | H99: 18.83 | I99: 19.02 | J99: 19.13 | K99: 18.9 | L99: 18.6 | M99: 23.93192
A100: 90 | B100: CENTURYPLY | C100: 699.05 | D100: 704.28 | E100: 686.57 | F100: 674.08 | G100: 656.37 | H100: 716.77 | I100: 734.48 | J100: 746.97 | K100: 722 | L100: 691.8 | M100: 4.53618
A101: 91 | B101: CENTURYTEX | C101: 864.5 | D101: 856.85 | E101: 842.70 | F101: 820.90 | G101: 806.75 | H101: 878.65 | I101: 892.80 | J101: 914.60 | K101: 871 | L101: 835.05 | M101: 4.99956
A102: 92 | B102: CERA | C102: 4759.55 | D102: 4780.58 | E102: 4728.97 | F102: 4698.38 | G102: 4646.77 | H102: 4811.17 | I102: 4862.78 | J102: 4893.37 | K102: 4832.2 | L102: 4750 | M102: 0.1444
A103: 93 | B103: CESC | C103: 75.65 | D103: 75.53 | E103: 75.07 | F103: 74.48 | G103: 74.02 | H103: 76.12 | I103: 76.58 | J103: 77.17 | K103: 76 | L103: 74.95 | M103: 18.41196
A104: 94 | B104: CGCL | C104: 616.2 | D104: 618.28 | E104: 612.92 | F104: 609.63 | G104: 604.27 | H104: 621.57 | I104: 626.93 | J104: 630.22 | K104: 623.65 | L104: 615 | M104: 2.15695
A105: 95 | B105: CGPOWER | C105: 183.4 | D105: 182.17 | E105: 179.53 | F105: 175.67 | G105: 173.03 | H105: 186.03 | I105: 188.67 | J105: 192.53 | K105: 184.8 | L105: 178.3 | M105: 22.70294
A106: 96 | B106: CHALET | C106: 300 | D106: 301.88 | E106: 293.12 | F106: 286.23 | G106: 277.47 | H106: 308.77 | I106: 317.53 | J106: 324.42 | K106: 310.65 | L106: 295 | M106: 6.08315
A107: 97 | B107: CHAMBLFERT | C107: 415.3 | D107: 417.43 | E107: 410.87 | F107: 406.43 | G107: 399.87 | H107: 421.87 | I107: 428.43 | J107: 432.87 | K107: 424 | L107: 413 | M107: 28.33348
A108: 98 | B108: CHOLAFIN | C108: 731.35 | D108: 727.45 | E108: 720.40 | F108: 709.45 | G108: 702.40 | H108: 738.40 | I108: 745.45 | J108: 756.40 | K108: 734.5 | L108: 716.5 | M108: 19.4492
A109: 99 | B109: CHOLAHLDNG | C109: 636.65 | D109: 635.80 | E109: 626.65 | F109: 616.65 | G109: 607.50 | H109: 645.80 | I109: 654.95 | J109: 664.95 | K109: 644.95 | L109: 625.8 | M109: 1.46112
A110: 100 | B110: CIPLA | C110: 1029 | D110: 1023.62 | E110: 1007.13 | F110: 985.27 | G110: 968.78 | H110: 1045.48 | I110: 1061.97 | J110: 1083.83 | K110: 1040.1 | L110: 1001.75 | M110: 33.44649
A111: 101 | B111: COALINDIA | C111: 187.4 | D111: 186.40 | E111: 184.30 | F111: 181.20 | G111: 179.10 | H111: 189.50 | I111: 191.60 | J111: 194.70 | K111: 188.5 | L111: 183.3 | M111: 163.23203
A112: 102 | B112: COCHINSHIP | C112: 301.35 | D112: 302.03 | E112: 298.57 | F112: 295.78 | G112: 292.32 | H112: 304.82 | I112: 308.28 | J112: 311.07 | K112: 305.5 | L112: 299.25 | M112: 1.27593
A113: 103 | B113: COFORGE | C113: 4478.95 | D113: 4459.68 | E113: 4420.37 | F113: 4361.78 | G113: 4322.47 | H113: 4518.27 | I113: 4557.58 | J113: 4616.17 | K113: 4499 | L113: 4401.1 | M113: 3.15979
A114: 104 | B114: COLPAL | C114: 1508.7 | D114: 1514.83 | E114: 1499.77 | F114: 1490.83 | G114: 1475.77 | H114: 1523.77 | I114: 1538.83 | J114: 1547.77 | K114: 1529.9 | L114: 1505.9 | M114: 4.32415
A115: 105 | B115: CONCOR | C115: 621.5 | D115: 620.28 | E115: 610.47 | F115: 599.43 | G115: 589.62 | H115: 631.32 | I115: 641.13 | J115: 652.17 | K115: 630.1 | L115: 609.25 | M115: 14.19932
A116: 106 | B116: COROMANDEL | C116: 808.85 | D116: 812.93 | E116: 798.02 | F116: 787.18 | G116: 772.27 | H116: 823.77 | I116: 838.68 | J116: 849.52 | K116: 827.85 | L116: 802.1 | M116: 4.40707
A117: 107 | B117: CREDITACC | C117: 808.5 | D117: 813.50 | E117: 797.00 | F117: 785.50 | G117: 769.00 | H117: 825.00 | I117: 841.50 | J117: 853.00 | K117: 830 | L117: 802 | M117: 2.32363
A118: 108 | B118: CRISIL | C118: 3059.2 | D118: 3051.93 | E118: 3003.87 | F118: 2948.53 | G118: 2900.47 | H118: 3107.27 | I118: 3155.33 | J118: 3210.67 | K118: 3100 | L118: 2996.6 | M118: 0.49975
A119: 109 | B119: CROMPTON | C119: 378.25 | D119: 380.55 | E119: 373.30 | F119: 368.35 | G119: 361.10 | H119: 385.50 | I119: 392.75 | J119: 397.70 | K119: 387.8 | L119: 375.6 | M119: 20.43527
A120: 110 | B120: CSBBANK | C120: 217.55 | D120: 216.93 | E120: 212.62 | F120: 207.68 | G120: 203.37 | H120: 221.87 | I120: 226.18 | J120: 231.12 | K120: 221.25 | L120: 212 | M120: 1.37313
A121: 111 | B121: CUB | C121: 124.05 | D121: 124.73 | E121: 123.12 | F121: 122.18 | G121: 120.57 | H121: 125.67 | I121: 127.28 | J121: 128.22 | K121: 126.35 | L121: 123.8 | M121: 15.69339
A122: 112 | B122: CUMMINSIND | C122: 1094 | D122: 1089.58 | E122: 1067.42 | F122: 1040.83 | G122: 1018.67 | H122: 1116.17 | I122: 1138.33 | J122: 1164.92 | K122: 1111.75 | L122: 1063 | M122: 21.68244
A123: 113 | B123: CYIENT | C123: 921.65 | D123: 923.55 | E123: 907.10 | F123: 892.55 | G123: 876.10 | H123: 938.10 | I123: 954.55 | J123: 969.10 | K123: 940 | L123: 909 | M123: 3.37126
A124: 114 | B124: DABUR | C124: 523.75 | D124: 524.73 | E124: 518.67 | F124: 513.58 | G124: 507.52 | H124: 529.82 | I124: 535.88 | J124: 540.97 | K124: 530.8 | L124: 519.65 | M124: 25.28645
A125: 115 | B125: DALBHARAT | C125: 1388.45 | D125: 1393.90 | E125: 1375.70 | F125: 1362.95 | G125: 1344.75 | H125: 1406.65 | I125: 1424.85 | J125: 1437.60 | K125: 1412.1 | L125: 1381.15 | M125: 1.65414
A126: 116 | B126: DBL | C126: 243.95 | D126: 244.55 | E126: 241.10 | F126: 238.25 | G126: 234.80 | H126: 247.40 | I126: 250.85 | J126: 253.70 | K126: 248 | L126: 241.7 | M126: 3.88294
A127: 117 | B127: DCBBANK | C127: 73.75 | D127: 73.53 | E127: 72.57 | F127: 71.38 | G127: 70.42 | H127: 74.72 | I127: 75.68 | J127: 76.87 | K127: 74.5 | L127: 72.35 | M127: 11.36928
A128: 118 | B128: DCMSHRIRAM | C128: 1064.75 | D128: 1065.25 | E128: 1053.50 | F128: 1042.25 | G128: 1030.50 | H128: 1076.50 | I128: 1088.25 | J128: 1099.50 | K128: 1077 | L128: 1054 | M128: 0.52094
A129: 119 | B129: DEEPAKNTR | C129: 2240.35 | D129: 2235.62 | E129: 2209.23 | F129: 2178.12 | G129: 2151.73 | H129: 2266.73 | I129: 2293.12 | J129: 2324.23 | K129: 2262 | L129: 2204.5 | M129: 4.32601
A130: 120 | B130: DELTACORP | C130: 313.05 | D130: 310.33 | E130: 305.97 | F130: 298.88 | G130: 294.52 | H130: 317.42 | I130: 321.78 | J130: 328.87 | K130: 314.7 | L130: 303.25 | M130: 55.08043
A131: 121 | B131: DHANI | C131: 65.65 | D131: 63.13 | E131: 60.62 | F131: 55.58 | G131: 53.07 | H131: 68.17 | I131: 70.68 | J131: 75.72 | K131: 65.65 | L131: 58.1 | M131: 70.32527
A132: 122 | B132: DHANUKA | C132: 717.4 | D132: 720.55 | E132: 706.15 | F132: 694.90 | G132: 680.50 | H132: 731.80 | I132: 746.20 | J132: 757.45 | K132: 734.95 | L132: 709.3 | M132: 0.57006
A133: 123 | B133: DIVISLAB | C133: 4494.65 | D133: 4503.78 | E133: 4457.62 | F133: 4420.58 | G133: 4374.42 | H133: 4540.82 | I133: 4586.98 | J133: 4624.02 | K133: 4549.95 | L133: 4466.75 | M133: 4.67266
A134: 124 | B134: DIXON | C134: 4323.15 | D134: 4341.05 | E134: 4282.10 | F134: 4241.05 | G134: 4182.10 | H134: 4382.10 | I134: 4441.05 | J134: 4482.10 | K134: 4400 | L134: 4300 | M134: 1.36201
A135: 125 | B135: DLF | C135: 356.6 | D135: 356.62 | E135: 351.98 | F135: 347.37 | G135: 342.73 | H135: 361.23 | I135: 365.87 | J135: 370.48 | K135: 361.25 | L135: 352 | M135: 41.11307
A136: 126 | B136: DMART | C136: 4042.85 | D136: 4053.55 | E136: 4020.85 | F136: 3998.85 | G136: 3966.15 | H136: 4075.55 | I136: 4108.25 | J136: 4130.25 | K136: 4086.25 | L136: 4031.55 | M136: 3.74573
A137: 127 | B137: DRREDDY | C137: 4328.5 | D137: 4259.50 | E137: 4170.45 | F137: 4012.40 | G137: 3923.35 | H137: 4417.55 | I137: 4506.60 | J137: 4664.65 | K137: 4348.55 | L137: 4101.45 | M137: 17.38147
A138: 128 | B138: ECLERX | C138: 2349.8 | D138: 2335.67 | E138: 2277.68 | F138: 2205.57 | G138: 2147.58 | H138: 2407.78 | I138: 2465.77 | J138: 2537.88 | K138: 2393.65 | L138: 2263.55 | M138: 1.14113
A139: 129 | B139: EDELWEISS | C139: 53 | D139: 53.32 | E139: 52.38 | F139: 51.77 | G139: 50.83 | H139: 53.93 | I139: 54.87 | J139: 55.48 | K139: 54.25 | L139: 52.7 | M139: 34.96218
A140: 130 | B140: EICHERMOT | C140: 2369.65 | D140: 2369.28 | E140: 2350.37 | F140: 2331.08 | G140: 2312.17 | H140: 2388.57 | I140: 2407.48 | J140: 2426.77 | K140: 2388.2 | L140: 2350 | M140: 5.68611
A141: 131 | B141: EIDPARRY | C141: 438.4 | D141: 441.52 | E141: 434.03 | F141: 429.67 | G141: 422.18 | H141: 445.88 | I141: 453.37 | J141: 457.73 | K141: 449 | L141: 437.15 | M141: 1.81479
A142: 132 | B142: EIHOTEL | C142: 138.7 | D142: 138.28 | E142: 136.62 | F142: 134.53 | G142: 132.87 | H142: 140.37 | I142: 142.03 | J142: 144.12 | K142: 139.95 | L142: 136.2 | M142: 2.81707
A143: 133 | B143: ELGIEQUIP | C143: 285.1 | D143: 285.90 | E143: 281.80 | F143: 278.50 | G143: 274.40 | H143: 289.20 | I143: 293.30 | J143: 296.60 | K143: 290 | L143: 282.6 | M143: 1.95161
A144: 134 | B144: EMAMILTD | C144: 450.6 | D144: 452.03 | E144: 445.57 | F144: 440.53 | G144: 434.07 | H144: 457.07 | I144: 463.53 | J144: 468.57 | K144: 458.5 | L144: 447 | M144: 7.57636
A145: 135 | B145: ENDURANCE | C145: 1198.85 | D145: 1202.05 | E145: 1169.10 | F145: 1139.35 | G145: 1106.40 | H145: 1231.80 | I145: 1264.75 | J145: 1294.50 | K145: 1235 | L145: 1172.3 | M145: 2.12207
A146: 136 | B146: ENGINERSIN | C146: 62.2 | D146: 62.30 | E146: 61.90 | F146: 61.60 | G146: 61.20 | H146: 62.60 | I146: 63.00 | J146: 63.30 | K146: 62.7 | L146: 62 | M146: 10.03732
A147: 137 | B147: EPL | C147: 159.05 | D147: 157.58 | E147: 155.27 | F147: 151.48 | G147: 149.17 | H147: 161.37 | I147: 163.68 | J147: 167.47 | K147: 159.9 | L147: 153.8 | M147: 3.70289
A148: 138 | B148: EQUITAS | C148: 110.35 | D148: 109.37 | E148: 107.33 | F148: 104.32 | G148: 102.28 | H148: 112.38 | I148: 114.42 | J148: 117.43 | K148: 111.4 | L148: 106.35 | M148: 7.84751
A149: 139 | B149: EQUITASBNK | C149: 53.25 | D149: 53.40 | E149: 52.90 | F149: 52.55 | G149: 52.05 | H149: 53.75 | I149: 54.25 | J149: 54.60 | K149: 53.9 | L149: 53.05 | M149: 4.70005
A150: 140 | B150: ERIS | C150: 704.5 | D150: 708.02 | E150: 694.03 | F150: 683.57 | G150: 669.58 | H150: 718.48 | I150: 732.47 | J150: 742.93 | K150: 722 | L150: 697.55 | M150: 0.44881
A151: 141 | B151: ESCORTS | C151: 1858.1 | D151: 1856.37 | E151: 1843.73 | F151: 1829.37 | G151: 1816.73 | H151: 1870.73 | I151: 1883.37 | J151: 1897.73 | K151: 1869 | L151: 1842 | M151: 4.93126
A152: 142 | B152: EXIDEIND | C152: 154.2 | D152: 154.45 | E152: 153.25 | F152: 152.30 | G152: 151.10 | H152: 155.40 | I152: 156.60 | J152: 157.55 | K152: 155.65 | L152: 153.5 | M152: 12.88337
A153: 143 | B153: FACT | C153: 131.65 | D153: 132.58 | E153: 129.27 | F153: 126.88 | G153: 123.57 | H153: 134.97 | I153: 138.28 | J153: 140.67 | K153: 135.9 | L153: 130.2 | M153: 4.13995
A154: 144 | B154: FDC | C154: 259.65 | D154: 260.47 | E154: 258.18 | F154: 256.72 | G154: 254.43 | H154: 261.93 | I154: 264.22 | J154: 265.68 | K154: 262.75 | L154: 259 | M154: 1.80395
A155: 145 | B155: FEDERALBNK | C155: 98 | D155: 98.28 | E155: 97.42 | F155: 96.83 | G155: 95.97 | H155: 98.87 | I155: 99.73 | J155: 100.32 | K155: 99.15 | L155: 97.7 | M155: 103.20726
A156: 146 | B156: FINCABLES | C156: 389.3 | D156: 391.20 | E156: 382.10 | F156: 374.90 | G156: 365.80 | H156: 398.40 | I156: 407.50 | J156: 414.70 | K156: 400.3 | L156: 384 | M156: 2.58254
A157: 147 | B157: FINEORG | C157: 4007.65 | D157: 3988.20 | E157: 3951.40 | F157: 3895.15 | G157: 3858.35 | H157: 4044.45 | I157: 4081.25 | J157: 4137.50 | K157: 4025 | L157: 3931.95 | M157: 0.12323
A158: 148 | B158: FINPIPE | C158: 152.25 | D158: 153.02 | E158: 151.08 | F158: 149.92 | G158: 147.98 | H158: 154.18 | I158: 156.12 | J158: 157.28 | K158: 154.95 | L158: 151.85 | M158: 3.82337
A159: 149 | B159: FLUOROCHEM | C159: 2944 | D159: 2929.50 | E159: 2904.50 | F159: 2865.00 | G159: 2840.00 | H159: 2969.00 | I159: 2994.00 | J159: 3033.50 | K159: 2954.5 | L159: 2890 | M159: 0.53173
A160: 150 | B160: FORTIS | C160: 280.2 | D160: 276.52 | E160: 268.13 | F160: 256.07 | G160: 247.68 | H160: 288.58 | I160: 296.97 | J160: 309.03 | K160: 284.9 | L160: 264.45 | M160: 38.16666
A161: 151 | B161: FRETAIL | C161: 36.65 | D161: 35.87 | E161: 35.08 | F161: 33.52 | G161: 32.73 | H161: 37.43 | I161: 38.22 | J161: 39.78 | K161: 36.65 | L161: 34.3 | M161: 60.98725
A162: 152 | B162: FSL | C162: 133.5 | D162: 131.12 | E162: 127.38 | F162: 121.27 | G162: 117.53 | H162: 137.23 | I162: 140.97 | J162: 147.08 | K162: 134.85 | L162: 125 | M162: 100.04021
A163: 153 | B163: GAEL | C163: 251.35 | D163: 249.45 | E163: 243.90 | F163: 236.45 | G163: 230.90 | H163: 256.90 | I163: 262.45 | J163: 269.90 | K163: 255 | L163: 242 | M163: 3.44661
A164: 154 | B164: GAIL | C164: 147.1 | D164: 146.33 | E164: 144.82 | F164: 142.53 | G164: 141.02 | H164: 148.62 | I164: 150.13 | J164: 152.42 | K164: 147.85 | L164: 144.05 | M164: 118.88684
A165: 155 | B165: GALAXYSURF | C165: 2931.05 | D165: 2926.35 | E165: 2877.70 | F165: 2824.35 | G165: 2775.70 | H165: 2979.70 | I165: 3028.35 | J165: 3081.70 | K165: 2975 | L165: 2873 | M165: 0.22005
A166: 156 | B166: GARFIBRES | C166: 2703.2 | D166: 2691.82 | E166: 2673.63 | F166: 2644.07 | G166: 2625.88 | H166: 2721.38 | I166: 2739.57 | J166: 2769.13 | K166: 2710 | L166: 2662.25 | M166: 0.07298
A167: 157 | B167: GESHIP | C167: 341.65 | D167: 339.37 | E167: 332.28 | F167: 322.92 | G167: 315.83 | H167: 348.73 | I167: 355.82 | J167: 365.18 | K167: 346.45 | L167: 330 | M167: 2.9115
A168: 158 | B168: GICRE | C168: 115.15 | D168: 115.42 | E168: 114.58 | F168: 114.02 | G168: 113.18 | H168: 115.98 | I168: 116.82 | J168: 117.38 | K168: 116.25 | L168: 114.85 | M168: 3.00715
A169: 159 | B169: GILLETTE | C169: 4902.65 | D169: 4888.05 | E169: 4866.10 | F169: 4829.55 | G169: 4807.60 | H169: 4924.60 | I169: 4946.55 | J169: 4983.10 | K169: 4910 | L169: 4851.5 | M169: 0.054
A170: 160 | B170: GLAND | C170: 3233.1 | D170: 3243.02 | E170: 3194.08 | F170: 3155.07 | G170: 3106.13 | H170: 3282.03 | I170: 3330.97 | J170: 3369.98 | K170: 3291.95 | L170: 3204 | M170: 3.52735
A171: 161 | B171: GLAXO | C171: 1544.9 | D171: 1555.63 | E171: 1526.27 | F171: 1507.63 | G171: 1478.27 | H171: 1574.27 | I171: 1603.63 | J171: 1622.27 | K171: 1585 | L171: 1537 | M171: 0.28608
A172: 162 | B172: GLENMARK | C172: 464.1 | D172: 461.28 | E172: 452.87 | F172: 441.63 | G172: 433.22 | H172: 472.52 | I172: 480.93 | J172: 492.17 | K172: 469.7 | L172: 450.05 | M172: 11.66331
A173: 163 | B173: GMMPFAUDLR | C173: 4502.95 | D173: 4503.37 | E173: 4457.73 | F173: 4412.52 | G173: 4366.88 | H173: 4548.58 | I173: 4594.22 | J173: 4639.43 | K173: 4549 | L173: 4458.15 | M173: 0.08463
A174: 164 | B174: GNFC | C174: 798.85 | D174: 789.13 | E174: 775.22 | F174: 751.58 | G174: 737.67 | H174: 812.77 | I174: 826.68 | J174: 850.32 | K174: 803.05 | L174: 765.5 | M174: 47.22537
A175: 165 | B175: GODFRYPHLP | C175: 1096.3 | D175: 1094.08 | E175: 1071.47 | F175: 1046.63 | G175: 1024.02 | H175: 1118.92 | I175: 1141.53 | J175: 1166.37 | K175: 1116.7 | L175: 1069.25 | M175: 0.46441
A176: 166 | B176: GODREJAGRO | C176: 460.55 | D176: 460.88 | E176: 457.87 | F176: 455.18 | G176: 452.17 | H176: 463.57 | I176: 466.58 | J176: 469.27 | K176: 463.9 | L176: 458.2 | M176: 1.00675
A177: 167 | B177: GODREJCP | C177: 695 | D177: 694.40 | E177: 685.60 | F177: 676.20 | G177: 667.40 | H177: 703.80 | I177: 712.60 | J177: 722.00 | K177: 703.2 | L177: 685 | M177: 20.17206
A178: 168 | B178: GODREJIND | C178: 479.2 | D178: 481.75 | E178: 474.50 | F178: 469.80 | G178: 462.55 | H178: 486.45 | I178: 493.70 | J178: 498.40 | K178: 489 | L178: 477.05 | M178: 1.25141
A179: 169 | B179: GODREJPROP | C179: 1569.65 | D179: 1559.10 | E179: 1543.75 | F179: 1517.85 | G179: 1502.50 | H179: 1585.00 | I179: 1600.35 | J179: 1626.25 | K179: 1574.45 | L179: 1533.2 | M179: 7.9058
A180: 170 | B180: GPPL | C180: 81.75 | D180: 82.08 | E180: 81.17 | F180: 80.58 | G180: 79.67 | H180: 82.67 | I180: 83.58 | J180: 84.17 | K180: 83 | L180: 81.5 | M180: 4.15132
A181: 171 | B181: GRANULES | C181: 315.95 | D181: 315.22 | E181: 308.43 | F181: 300.92 | G181: 294.13 | H181: 322.73 | I181: 329.52 | J181: 337.03 | K181: 322 | L181: 307.7 | M181: 29.17594
A182: 172 | B182: GRAPHITE | C182: 514.1 | D182: 514.50 | E182: 508.75 | F182: 503.40 | G182: 497.65 | H182: 519.85 | I182: 525.60 | J182: 530.95 | K182: 520.25 | L182: 509.15 | M182: 8.49122
A183: 173 | B183: GRASIM | C183: 1599.4 | D183: 1590.80 | E183: 1577.70 | F183: 1556.00 | G183: 1542.90 | H183: 1612.50 | I183: 1625.60 | J183: 1647.30 | K183: 1603.9 | L183: 1569.1 | M183: 10.76441
A184: 174 | B184: GREAVESCOT | C184: 182.2 | D184: 183.75 | E184: 179.20 | F184: 176.20 | G184: 171.65 | H184: 186.75 | I184: 191.30 | J184: 194.30 | K184: 188.3 | L184: 180.75 | M184: 28.7501
A185: 175 | B185: GRINDWELL | C185: 1755.4 | D185: 1762.83 | E185: 1735.67 | F185: 1715.93 | G185: 1688.77 | H185: 1782.57 | I185: 1809.73 | J185: 1829.47 | K185: 1790 | L185: 1743.1 | M185: 0.52499
A186: 176 | B186: GSFC | C186: 148.25 | D186: 147.50 | E186: 146.00 | F186: 143.75 | G186: 142.25 | H186: 149.75 | I186: 151.25 | J186: 153.50 | K186: 149 | L186: 145.25 | M186: 25.30947
A187: 177 | B187: GSPL | C187: 270.85 | D187: 271.08 | E187: 267.77 | F187: 264.68 | G187: 261.37 | H187: 274.17 | I187: 277.48 | J187: 280.57 | K187: 274.4 | L187: 268 | M187: 10.39743
A188: 178 | B188: GUJALKALI | C188: 787.4 | D188: 788.25 | E188: 774.15 | F188: 760.90 | G188: 746.80 | H188: 801.50 | I188: 815.60 | J188: 828.85 | K188: 802.35 | L188: 775 | M188: 6.38073
A189: 179 | B189: GUJGASLTD | C189: 499.65 | D189: 500.07 | E189: 492.93 | F189: 486.22 | G189: 479.08 | H189: 506.78 | I189: 513.92 | J189: 520.63 | K189: 507.2 | L189: 493.35 | M189: 12.38558
A190: 180 | B190: HAL | C190: 1405.9 | D190: 1409.62 | E190: 1378.28 | F190: 1350.67 | G190: 1319.33 | H190: 1437.23 | I190: 1468.57 | J190: 1496.18 | K190: 1440.95 | L190: 1382 | M190: 11.75539
A191: 181 | B191: HAPPSTMNDS | C191: 1133.05 | D191: 1139.65 | E191: 1123.30 | F191: 1113.55 | G191: 1097.20 | H191: 1149.40 | I191: 1165.75 | J191: 1175.50 | K191: 1156 | L191: 1129.9 | M191: 1.78276
A192: 182 | B192: HATHWAY | C192: 18.6 | D192: 18.65 | E192: 18.40 | F192: 18.20 | G192: 17.95 | H192: 18.85 | I192: 19.10 | J192: 19.30 | K192: 18.9 | L192: 18.45 | M192: 31.85597
A193: 183 | B193: HATSUN | C193: 1131.3 | D193: 1135.72 | E193: 1108.38 | F193: 1085.47 | G193: 1058.13 | H193: 1158.63 | I193: 1185.97 | J193: 1208.88 | K193: 1163.05 | L193: 1112.8 | M193: 0.46585
A194: 184 | B194: HAVELLS | C194: 1146.15 | D194: 1141.83 | E194: 1130.97 | F194: 1115.78 | G194: 1104.92 | H194: 1157.02 | I194: 1167.88 | J194: 1183.07 | K194: 1152.7 | L194: 1126.65 | M194: 8.38633
A195: 185 | B195: HCLTECH | C195: 1192.1 | D195: 1185.03 | E195: 1176.07 | F195: 1160.03 | G195: 1151.07 | H195: 1201.07 | I195: 1210.03 | J195: 1226.07 | K195: 1194 | L195: 1169 | M195: 23.51703
A196: 186 | B196: HDFC | C196: 2310.5 | D196: 2323.67 | E196: 2290.38 | F196: 2270.27 | G196: 2236.98 | H196: 2343.78 | I196: 2377.07 | J196: 2397.18 | K196: 2356.95 | L196: 2303.55 | M196: 39.94199
A197: 187 | B197: HDFCAMC | C197: 2180.15 | D197: 2191.72 | E197: 2158.43 | F197: 2136.72 | G197: 2103.43 | H197: 2213.43 | I197: 2246.72 | J197: 2268.43 | K197: 2225 | L197: 2170 | M197: 2.89097
A198: 188 | B198: HDFCBANK | C198: 1442.65 | D198: 1448.95 | E198: 1428.25 | F198: 1413.85 | G198: 1393.15 | H198: 1463.35 | I198: 1484.05 | J198: 1498.45 | K198: 1469.65 | L198: 1434.55 | M198: 100.80022
A199: 189 | B199: HDFCLIFE | C199: 522.35 | D199: 522.45 | E199: 518.90 | F199: 515.45 | G199: 511.90 | H199: 525.90 | I199: 529.45 | J199: 532.90 | K199: 526 | L199: 519 | M199: 31.92575
A200: 190 | B200: HEG | C200: 1313.1 | D200: 1306.37 | E200: 1287.73 | F200: 1262.37 | G200: 1243.73 | H200: 1331.73 | I200: 1350.37 | J200: 1375.73 | K200: 1325 | L200: 1281 | M200: 3.65518
A201: 191 | B201: HEIDELBERG | C201: 190.7 | D201: 191.43 | E201: 189.52 | F201: 188.33 | G201: 186.42 | H201: 192.62 | I201: 194.53 | J201: 195.72 | K201: 193.35 | L201: 190.25 | M201: 1.36812
A202: 192 | B202: HEMIPROP | C202: 121 | D202: 121.85 | E202: 119.70 | F202: 118.40 | G202: 116.25 | H202: 123.15 | I202: 125.30 | J202: 126.60 | K202: 124 | L202: 120.55 | M202: 9.29148
A203: 193 | B203: HEROMOTOCO | C203: 2412.15 | D203: 2390.80 | E203: 2354.35 | F203: 2296.55 | G203: 2260.10 | H203: 2448.60 | I203: 2485.05 | J203: 2542.85 | K203: 2427.25 | L203: 2333 | M203: 6.92836
A204: 194 | B204: HFCL | C204: 72.55 | D204: 72.98 | E204: 71.82 | F204: 71.08 | G204: 69.92 | H204: 73.72 | I204: 74.88 | J204: 75.62 | K204: 74.15 | L204: 72.25 | M204: 65.10558
A205: 195 | B205: HGS | C205: 1102.75 | D205: 1105.68 | E205: 1092.07 | F205: 1081.38 | G205: 1067.77 | H205: 1116.37 | I205: 1129.98 | J205: 1140.67 | K205: 1119.3 | L205: 1095 | M205: 0.98213
A206: 196 | B206: HIKAL | C206: 397 | D206: 396.13 | E206: 389.32 | F206: 381.63 | G206: 374.82 | H206: 403.82 | I206: 410.63 | J206: 418.32 | K206: 402.95 | L206: 388.45 | M206: 0.91467
... 320 more rows

Sheet Bulk Deals
E6: Back To Main Page
A7: Subject : | B7: BULK DEAL | D7: =Main!B10 -> 2022-03-25
A9: Date | B9: Scrip code | C9: Scrip Name | D9: Client Name | E9: Buy / Sell | F9: Quantity Traded | G9: Trade Price / Wt.Avg.trade price | H9: Exchange
A10: 2022-03-24 | B10: 542670 | C10: AEPL | D10: SANJEEV HARBANSLAL BHATIA | E10: BUY | F10: 300,000 | G10: 51.44 | H10: BSE
A11: 2022-03-24 | B11: 542670 | C11: AEPL | D11: NNM SECURITIES PVT LTD | E11: SELL | F11: 300,000 | G11: 51.44 | H11: BSE
A12: 2022-03-24 | B12: 540718 | C12: AKM | D12: ADITYA SONI | E12: SELL | F12: 24,000 | G12: 29.95 | H12: BSE
A13: 2022-03-24 | B13: 540718 | C13: AKM | D13: SUNRISE ENTERPRISES | E13: BUY | F13: 24,000 | G13: 29.95 | H13: BSE
A14: 2022-03-24 | B14: 539621 | C14: BCLENTERPR | D14: DHARMESH MALDEVBHAI GODHANIA | E14: SELL | F14: 814,209 | G14: 4.26 | H14: BSE
A15: 2022-03-24 | B15: 531900 | C15: CCLINTER | D15: AAR INFRACITY LIMITED | E15: BUY | F15: 150,000 | G15: 17.2 | H15: BSE
A16: 2022-03-24 | B16: 531900 | C16: CCLINTER | D16: TANVI FINCAP PRIVATE LIMITED | E16: SELL | F16: 150,000 | G16: 17.2 | H16: BSE
A17: 2022-03-24 | B17: 532701 | C17: CELLA | D17: SEETHARAMAN ANANTHARAMAN TRIKKUR | E17: BUY | F17: 100,000 | G17: 5.5 | H17: BSE
A18: 2022-03-24 | B18: 532701 | C18: CELLA | D18: INBOT PROPERTIES PRIVATE LTD | E18: BUY | F18: 494,760 | G18: 5.5 | H18: BSE
A19: 2022-03-24 | B19: 532701 | C19: CELLA | D19: RAJA RAM | E19: SELL | F19: 600,000 | G19: 5.5 | H19: BSE
A20: 2022-03-24 | B20: 539986 | C20: COMSYN | D20: MINAKSHI RAJENDRA SARAF | E20: BUY | F20: 75,000 | G20: 278.89 | H20: BSE
A21: 2022-03-24 | B21: 539986 | C21: COMSYN | D21: RATHOD MANOJ CHHAGANLAL HUF | E21: BUY | F21: 75,000 | G21: 279.98 | H21: BSE
A22: 2022-03-24 | B22: 539986 | C22: COMSYN | D22: RATHOD MANOJ CHHAGANLAL HUF | E22: SELL | F22: 55,000 | G22: 253.07 | H22: BSE
A23: 2022-03-24 | B23: 539986 | C23: COMSYN | D23: ASHOK KESHAVLAL SANGHVI HUF | E23: BUY | F23: 73,831 | G23: 274.95 | H23: BSE
A24: 2022-03-24 | B24: 539986 | C24: COMSYN | D24: ASHOK KESHAVLAL SANGHVI HUF | E24: SELL | F24: 73,831 | G24: 279.99 | H24: BSE
A25: 2022-03-24 | B25: 532640 | C25: CYBERMEDIA | D25: ALPHA LEON ENTERPRISES LLP | E25: BUY | F25: 100,000 | G25: 31.75 | H25: BSE
A26: 2022-03-24 | B26: 532640 | C26: CYBERMEDIA | D26: ALPHA LEON ENTERPRISES LLP | E26: SELL | F26: 142 | G26: 31.75 | H26: BSE
A27: 2022-03-24 | B27: 540268 | C27: DHANVARSHA | D27: GILANI INFRA PRIVATE LIMITED | E27: BUY | F27: 500,000 | G27: 111.23 | H27: BSE
A28: 2022-03-24 | B28: 540811 | C28: DML | D28: VISHAL VIPINBHAI BHATT | E28: BUY | F28: 50,000 | G28: 13.47 | H28: BSE
A29: 2022-03-24 | B29: 532751 | C29: EASUNREYRL | D29: HARIPRASAD SANJAY KUMAR HUF | E29: BUY | F29: 170,000 | G29: 3 | H29: BSE
A30: 2022-03-24 | B30: 532751 | C30: EASUNREYRL | D30: HARI PRASAD BHUWANIA | E30: SELL | F30: 170,004 | G30: 3 | H30: BSE
A31: 2022-03-24 | B31: 540204 | C31: EIKO | D31: LENUS FINVEST PRIVATE LIMITED | E31: BUY | F31: 44,145 | G31: 47.6 | H31: BSE
A32: 2022-03-24 | B32: 543475 | C32: EKENNIS | D32: UMESHKUMAR | E32: SELL | F32: 24,000 | G32: 95.75 | H32: BSE
A33: 2022-03-24 | B33: 543475 | C33: EKENNIS | D33: JAYSHRI SUNILKUMAR MEHTA | E33: BUY | F33: 9,600 | G33: 101.19 | H33: BSE
A34: 2022-03-24 | B34: 513452 | C34: ELANGO | D34: VISHALKUMARSINGH | E34: BUY | F34: 21,000 | G34: 14.63 | H34: BSE
A35: 2022-03-24 | B35: 526473 | C35: ELEFLOR | D35: AAKANKSHA SHIVHARI GARG | E35: SELL | F35: 100,500 | G35: 34.35 | H35: BSE
A36: 2022-03-24 | B36: 505744 | C36: FMGOETZE | D36: RAJASTHAN GLOBAL SECURITIES PRIVATE LIMITED | E36: BUY | F36: 383,000 | G36: 266.25 | H36: BSE
A37: 2022-03-24 | B37: 505744 | C37: FMGOETZE | D37: LRSD SECURITIES PVT LTD | E37: SELL | F37: 383,000 | G37: 266.25 | H37: BSE
A38: 2022-03-24 | B38: 540614 | C38: GGENG | D38: ANUSTUP TRADING PRIVATE LIMITED | E38: BUY | F38: 408,615 | G38: 6.99 | H38: BSE
A39: 2022-03-24 | B39: 540614 | C39: GGENG | D39: ANUSTUP TRADING PRIVATE LIMITED | E39: SELL | F39: 261,653 | G39: 6.96 | H39: BSE
A40: 2022-03-24 | B40: 530663 | C40: GOYALASS | D40: VINAY AGRAWAL | E40: SELL | F40: 260,000 | G40: 1.92 | H40: BSE
A41: 2022-03-24 | B41: 532847 | C41: HILTON | D41: HARDIK INDRAMAL JAIN | E41: BUY | F41: 66,819 | G41: 31.3 | H41: BSE
A42: 2022-03-24 | B42: 539692 | C42: IFINSER | D42: NNM SECURITIES PVT LTD | E42: BUY | F42: 20,885 | G42: 7.27 | H42: BSE
A43: 2022-03-24 | B43: 531129 | C43: INANI | D43: SURESH KUMAR INANI | E43: BUY | F43: 115,000 | G43: 21.5 | H43: BSE
A44: 2022-03-24 | B44: 531129 | C44: INANI | D44: INDRA DEVI INANI | E44: BUY | F44: 240,000 | G44: 21.9 | H44: BSE
A45: 2022-03-24 | B45: 531129 | C45: INANI | D45: VIMLA DEVI INANI | E45: BUY | F45: 260,030 | G45: 21.95 | H45: BSE
A46: 2022-03-24 | B46: 531129 | C46: INANI | D46: INANI SECURITIES AND INVESTMENTS LIMITED | E46: SELL | F46: 655,030 | G46: 21.81 | H46: BSE
A47: 2022-03-24 | B47: 543286 | C47: JETMALL | D47: JINESH SURESHBHAI SHAH HUF | E47: BUY | F47: 30,000 | G47: 19.3 | H47: BSE
A48: 2022-03-24 | B48: 543286 | C48: JETMALL | D48: JINESH SURESHBHAI SHAH HUF | E48: SELL | F48: 24,000 | G48: 19.3 | H48: BSE
A49: 2022-03-24 | B49: 543286 | C49: JETMALL | D49: REKHA M JAIN* | E49: BUY | F49: 36,000 | G49: 19.19 | H49: BSE
A50: 2022-03-24 | B50: 539910 | C50: KOCL | D50: HARDIK HIMMATBHAI MUNJPARA | E50: BUY | F50: 100,000 | G50: 9.19 | H50: BSE
A51: 2022-03-24 | B51: 539910 | C51: KOCL | D51: ANKIT AJITBHAI PANCHAL | E51: BUY | F51: 100,000 | G51: 9.19 | H51: BSE
A52: 2022-03-24 | B52: 539910 | C52: KOCL | D52: NAYAN MAHENDRABHAI THAKKAR | E52: BUY | F52: 91,539 | G52: 9.19 | H52: BSE
A53: 2022-03-24 | B53: 539910 | C53: KOCL | D53: MANOJ RAMESHBHAI SOLANKI | E53: BUY | F53: 100,001 | G53: 9.19 | H53: BSE
A54: 2022-03-24 | B54: 539910 | C54: KOCL | D54: NAYAN MAHENDRABHAI THAKKAR | E54: SELL | F54: 8,580 | G54: 9.19 | H54: BSE
A55: 2022-03-24 | B55: 539910 | C55: KOCL | D55: ARTLINK VINTRADE LIMITED | E55: SELL | F55: 629,000 | G55: 9.19 | H55: BSE
A56: 2022-03-24 | B56: 539910 | C56: KOCL | D56: MANJULABEN PARMAR | E56: BUY | F56: 160,004 | G56: 9.19 | H56: BSE
A57: 2022-03-24 | B57: 539910 | C57: KOCL | D57: GIRISH KANTILAL PARMAR | E57: BUY | F57: 130,000 | G57: 9.19 | H57: BSE
A58: 2022-03-24 | B58: 500247 | C58: KOTAKBANK | D58: THE REGENTS OF THE UNIVERSITY OF CALIFORNIA | E58: BUY | F58: 11,227,404 | G58: 1699.05 | H58: BSE
A59: 2022-03-24 | B59: 500247 | C59: KOTAKBANK | D59: CANADA PENSION PLAN INVESTMENT BOARD | E59: SELL | F59: 40,000,000 | G59: 1700.1 | H59: BSE
A60: 2022-03-24 | B60: 531328 | C60: KRETTOSYS | D60: RITE DEVELOPERS PVT LTD | E60: SELL | F60: 1,157,941 | G60: 0.99 | H60: BSE
A61: 2022-03-24 | B61: 539410 | C61: MUZALI | D61: VIVEK KANDA | E61: BUY | F61: 300,000 | G61: 3.19 | H61: BSE
A62: 2022-03-24 | B62: 539410 | C62: MUZALI | D62: DIVYA KANDA | E62: SELL | F62: 300,000 | G62: 3.19 | H62: BSE
A63: 2022-03-24 | B63: 531834 | C63: NATHUEC | D63: SHREE GAJRAJ FINLEASE PRIVATE LIMITED | E63: BUY | F63: 22,500 | G63: 7.55 | H63: BSE
A64: 2022-03-24 | B64: 531834 | C64: NATHUEC | D64: SHREE GAJRAJ FINLEASE PRIVATE LIMITED | E64: SELL | F64: 7,500 | G64: 6.96 | H64: BSE
A65: 2022-03-24 | B65: 531494 | C65: NAVKAR | D65: SHITALNATH CONSULTANT PRIVATE LIMITED | E65: SELL | F65: 190,000 | G65: 55 | H65: BSE
A66: 2022-03-24 | B66: 531494 | C66: NAVKAR | D66: PARIMAL JASWANTRAI MEHTA | E66: BUY | F66: 175,000 | G66: 55 | H66: BSE
A67: 2022-03-24 | B67: 511535 | C67: NDASEC | D67: SONU GUPTA | E67: SELL | F67: 27,731 | G67: 12.2 | H67: BSE
A68: 2022-03-24 | B68: 517230 | C68: PAEL | D68: PRIYADARSHANI ARVIND DOSHI | E68: BUY | F68: 2,850,000 | G68: 6.27 | H68: BSE
A69: 2022-03-24 | B69: 517230 | C69: PAEL | D69: ARVIND RAOJI DOSHI | E69: SELL | F69: 775,000 | G69: 6.27 | H69: BSE
A70: 2022-03-24 | B70: 517230 | C70: PAEL | D70: PRITAM ARVIND DOSHI | E70: SELL | F70: 975,000 | G70: 6.27 | H70: BSE
A71: 2022-03-24 | B71: 517230 | C71: PAEL | D71: PRATIBHA ARVIND DOSHI | E71: SELL | F71: 1,000,000 | G71: 6.27 | H71: BSE
A72: 2022-03-24 | B72: 511702 | C72: PARSHINV | D72: DIVYA KANDA | E72: BUY | F72: 5,000 | G72: 15.85 | H72: BSE
A73: 2022-03-24 | B73: 511702 | C73: PARSHINV | D73: VIVEK KANDA | E73: BUY | F73: 45,000 | G73: 15.85 | H73: BSE
A74: 2022-03-24 | B74: 511702 | C74: PARSHINV | D74: DIVYA KANDA | E74: SELL | F74: 45,000 | G74: 15.85 | H74: BSE
A75: 2022-03-24 | B75: 500330 | C75: RAYMOND | D75: J.K INVESTORS (BOMBAY) LIMITED | E75: BUY | F75: 550,000 | G75: 758 | H75: BSE
A76: 2022-03-24 | B76: 500330 | C76: RAYMOND | D76: J K SPORTS FOUNDATION | E76: SELL | F76: 550,000 | G76: 758 | H76: BSE
A77: 2022-03-24 | B77: 539673 | C77: RCL | D77: SUSHIL KUMAR AGRAWAL | E77: SELL | F77: 9,890 | G77: 17.52 | H77: BSE
A78: 2022-03-24 | B78: 534708 | C78: RCRL | D78: KIRTIR SHAH SHARES AND STOCK BROKERS PVT LTD | E78: BUY | F78: 120,000 | G78: 4.83 | H78: BSE
A79: 2022-03-24 | B79: 534708 | C79: RCRL | D79: PURVI KETAN SHAH | E79: SELL | F79: 120,000 | G79: 4.83 | H79: BSE
A80: 2022-03-24 | B80: 540143 | C80: SAGARSOFT | D80: RAJASEKHAR GUTTIKONDA | E80: BUY | F80: 76,068 | G80: 179.5 | H80: BSE
A81: 2022-03-24 | B81: 540143 | C81: SAGARSOFT | D81: GUTTIKONDA VARA LAKSHMI | E81: SELL | F81: 76,068 | G81: 179.5 | H81: BSE
A82: 2022-03-24 | B82: 501423 | C82: SHAILY | D82: RAJEN SANGHVI | E82: SELL | F82: 75,426 | G82: 1702 | H82: BSE
A83: 2022-03-24 | B83: 501423 | C83: SHAILY | D83: LIGHTHOUSE INDIA III EQUITY INVESTORS,LIMITED | E83: BUY | F83: 225,407 | G83: 1701.97 | H83: BSE
A84: 2022-03-24 | B84: 501423 | C84: SHAILY | D84: RASHMI BHARAT SANGHVI | E84: SELL | F84: 69,426 | G84: 1702.01 | H84: BSE
A85: 2022-03-24 | B85: 501423 | C85: SHAILY | D85: BHARAT BHOGILAL SANGHVI | E85: SELL | F85: 83,084 | G85: 1702.02 | H85: BSE
A86: 2022-03-24 | B86: 540079 | C86: SPRAYKING | D86: SANJAY POPATLAL JAIN | E86: BUY | F86: 24,000 | G86: 25.85 | H86: BSE
A87: 2022-03-24 | B87: 530177 | C87: SPSINT | D87: RAHUL ANANTRAI MEHTA | E87: BUY | F87: 27,000 | G87: 15.46 | H87: BSE
A88: 2022-03-24 | B88: 530177 | C88: SPSINT | D88: PRACHI JAIN | E88: BUY | F88: 22,000 | G88: 15.46 | H88: BSE
A89: 2022-03-24 | B89: 530177 | C89: SPSINT | D89: ALPHA LEON ENTERPRISES LLP | E89: SELL | F89: 17,183 | G89: 15.46 | H89: BSE
A90: 2022-03-24 | B90: 530177 | C90: SPSINT | D90: YASIN LUKAMANBHAI GADHIA | E90: SELL | F90: 27,211 | G90: 15.46 | H90: BSE
A91: 2022-03-24 | B91: 538496 | C91: TARINI | D91: NU HEIGHTS AGENCY PRIVATE LIMITED | E91: SELL | F91: 153,000 | G91: 5.54 | H91: BSE
A92: 2022-03-24 | B92: 538496 | C92: TARINI | D92: ABHISHEK AGARWAL | E92: BUY | F92: 66,000 | G92: 5.61 | H92: BSE
A93: 2022-03-24 | B93: 539310 | C93: THINKINK | D93: VIKRAM JAYANTILAL LODHA | E93: SELL | F93: 250,000 | G93: 53.5 | H93: BSE
A94: 2022-03-24 | B94: 519367 | C94: TRANSFD | D94: DEEPAK KUMAR | E94: BUY | F94: 1,000 | G94: 104.1 | H94: BSE
A95: 2022-03-24 | B95: 519367 | C95: TRANSFD | D95: NARSING LAXMAN GURAV | E95: SELL | F95: 1,099 | G95: 103.75 | H95: BSE
A96: 2022-03-24 | B96: 513216 | C96: UTTAMSTL | D96: ALPHA LEON ENTERPRISES LLP | E96: SELL | F96: 734,286 | G96: 5.09 | H96: BSE
A97: 2022-03-24 | B97: 540570 | C97: VARIMAN | D97: ERISKA INVESTMENT FUND LTD | E97: BUY | F97: 105,000 | G97: 213.28 | H97: BSE
A98: 2022-03-24 | B98: 532372 | C98: VIRINCHI | D98: PADMAVATI INVESTMENT | E98: SELL | F98: 332,357 | G98: 58.15 | H98: BSE
A99: 2022-03-24 | B99: 542667 | C99: WORL | D99: VIKRAM JAYANTILAL LODHA | E99: BUY | F99: 88,100 | G99: 465.26 | H99: BSE
A100: 2022-03-24 | B100: 542667 | C100: WORL | D100: JAYANTILAL HANSRAJ LODHA | E100: SELL | F100: 89,000 | G100: 465.26 | H100: BSE
A101: 2022-03-24 | B101: ACCURACY | C101: Accuracy Shipping Limited | D101: CNM FINVEST PRIVATE LIMITED . | E101: BUY | F101: 80,000 | G101: 245 | H101: NSE
A102: 2022-03-24 | B102: ACCURACY | C102: Accuracy Shipping Limited | D102: RAJY ADVISORY SERVICES PRIVATE LIMITED | E102: BUY | F102: 99,184 | G102: 247.93 | H102: NSE
A103: 2022-03-24 | B103: ARTNIRMAN | C103: Art Nirman Limited | D103: DINESHBHAI KALUBHAI BHARWAD | E103: BUY | F103: 131,000 | G103: 76.1 | H103: NSE
A104: 2022-03-24 | B104: ARTNIRMAN | C104: Art Nirman Limited | D104: NAVGHANBHAI BHARWAD | E104: BUY | F104: 131,000 | G104: 76.1 | H104: NSE
A105: 2022-03-24 | B105: ATALREAL | C105: Atal Realtech Limited | D105: KAUSHIK MAHESH WAGHELA | E105: BUY | F105: 59,200 | G105: 100.14 | H105: NSE
A106: 2022-03-24 | B106: ATALREAL | C106: Atal Realtech Limited | D106: ACME FINVEST PRIVATE LIMITED | E106: BUY | F106: 49,600 | G106: 100.29 | H106: NSE
A107: 2022-03-24 | B107: ATALREAL | C107: Atal Realtech Limited | D107: JAYSHREE DINESH MEHTA | E107: BUY | F107: 25,600 | G107: 100.97 | H107: NSE
A108: 2022-03-24 | B108: ATALREAL | C108: Atal Realtech Limited | D108: STRATEGIC INVESTMENT SOLUTIONS | E108: BUY | F108: 49,600 | G108: 101 | H108: NSE
A109: 2022-03-24 | B109: ATALREAL | C109: Atal Realtech Limited | D109: SATISH PETER D SOUZA | E109: BUY | F109: 35,200 | G109: 100.2 | H109: NSE
A110: 2022-03-24 | B110: ATALREAL | C110: Atal Realtech Limited | D110: VIPUL DHIRUBHAI DOBARIYA | E110: BUY | F110: 49,600 | G110: 100.5 | H110: NSE
A111: 2022-03-24 | B111: COOLCAPS | C111: Cool Caps Industries Ltd | D111: TIMELY FINANCIAL CONSULTANTS PRIVATE LIMITED | E111: BUY | F111: 222,000 | G111: 36.19 | H111: NSE
A112: 2022-03-24 | B112: COOLCAPS | C112: Cool Caps Industries Ltd | D112: DIPAK KUMAR SHAW | E112: BUY | F112: 135,000 | G112: 36 | H112: NSE
A113: 2022-03-24 | B113: DANGEE | C113: Dangee Dums Limited | D113: H S SHAH | E113: BUY | F113: 100,000 | G113: 344.9 | H113: NSE
A114: 2022-03-24 | B114: FMGOETZE | C114: Federal-Mogul Goetze (I) | D114: RAJASTHAN GLOBAL SECURITIES PRIVATE LIMITED | E114: BUY | F114: 600,000 | G114: 266.6 | H114: NSE
A115: 2022-03-24 | B115: MAHESHWARI | C115: Maheshwari Logistics Limi | D115: ANANT WEALTH CONSULTANTS PRIVATE LIMITED | E115: BUY | F115: 618,814 | G115: 105.04 | H115: NSE
A116: 2022-03-24 | B116: MEGASOFT | C116: Megasoft Limited | D116: NEELIMA VELDI | E116: BUY | F116: 230,000 | G116: 50.49 | H116: NSE
A117: 2022-03-24 | B117: MEGASOFT | C117: Megasoft Limited | D117: LAKSHMI GUTTIKONDA VARA | E117: BUY | F117: 569,900 | G117: 50.58 | H117: NSE
A118: 2022-03-24 | B118: NDL | C118: Nandan Denim Limited | D118: SATHISH SRINIVAS NAYAK | E118: BUY | F118: 351,977 | G118: 60.54 | H118: NSE
A119: 2022-03-24 | B119: PAEL | C119: PAE Limited | D119: ALPHA LEON ENTERPRISES LLP | E119: BUY | F119: 63,452 | G119: 6.25 | H119: NSE
A120: 2022-03-24 | B120: SECURCRED | C120: SecUR Credentials Limited | D120: RAGINI CHETAN MEHTA | E120: BUY | F120: 26,400 | G120: 98.77 | H120: NSE
A121: 2022-03-24 | B121: SPRL | C121: SP Refractories Limited | D121: VENKATESHWARA INDUSTRIAL PROMOTION CO.LIMITED | E121: BUY | F121: 11,200 | G121: 81.4 | H121: NSE
A122: 2022-03-24 | B122: VIKASECO | C122: Vikas EcoTech Limited | D122: NOMURA SINGAPORE LIMITED | E122: BUY | F122: 6,600,000 | G122: 5.35 | H122: NSE
A123: 2022-03-24 | B123: ACCURACY | C123: Accuracy Shipping Limited | D123: CNM FINVEST PRIVATE LIMITED . | E123: SELL | F123: 80,000 | G123: 248.18 | H123: NSE
A124: 2022-03-24 | B124: ACCURACY | C124: Accuracy Shipping Limited | D124: RAJY ADVISORY SERVICES PRIVATE LIMITED | E124: SELL | F124: 2,367 | G124: 245.05 | H124: NSE
A125: 2022-03-24 | B125: ACCURACY | C125: Accuracy Shipping Limited | D125: LOKESH INDER KAPOOR | E125: SELL | F125: 104,432 | G125: 245.12 | H125: NSE
A126: 2022-03-24 | B126: ATALREAL | C126: Atal Realtech Limited | D126: VIJAYGOPAL PARASRAM ATAL | E126: SELL | F126: 300,800 | G126: 100.53 | H126: NSE
A127: 2022-03-24 | B127: ATALREAL | C127: Atal Realtech Limited | D127: KAUSHIK MAHESH WAGHELA | E127: SELL | F127: 59,200 | G127: 101.41 | H127: NSE
A128: 2022-03-24 | B128: COOLCAPS | C128: Cool Caps Industries Ltd | D128: STATSOL RESEARCH LLP | E128: SELL | F128: 66,000 | G128: 35.77 | H128: NSE
A129: 2022-03-24 | B129: COOLCAPS | C129: Cool Caps Industries Ltd | D129: PANKAJ VASUDEO CHHAPARWAL | E129: SELL | F129: 63,000 | G129: 35.9 | H129: NSE
A130: 2022-03-24 | B130: DANGEE | C130: Dangee Dums Limited | D130: DEVDIP BUILDERS PRIVATE LIMITED | E130: SELL | F130: 100,000 | G130: 344.9 | H130: NSE
A131: 2022-03-24 | B131: FMGOETZE | C131: Federal-Mogul Goetze (I) | D131: LRSD SECURITIES PVT LTD | E131: SELL | F131: 600,000 | G131: 266.6 | H131: NSE
A132: 2022-03-24 | B132: FOCE | C132: Foce India Limited | D132: SPECIE FINANCE PVT LTD | E132: SELL | F132: 25,200 | G132: 201.82 | H132: NSE
A133: 2022-03-24 | B133: MAHESHWARI | C133: Maheshwari Logistics Limi | D133: ANANT WEALTH CONSULTANTS PRIVATE LIMITED | E133: SELL | F133: 618,814 | G133: 101.88 | H133: NSE
A134: 2022-03-24 | B134: MEGASOFT | C134: Megasoft Limited | D134: NEELIMA VELDI | E134: SELL | F134: 385,900 | G134: 50.47 | H134: NSE
A135: 2022-03-24 | B135: PAEL | C135: PAE Limited | D135: ALPHA LEON ENTERPRISES LLP | E135: SELL | F135: 63,452 | G135: 6.69 | H135: NSE

Sheet Call Tracker (Equity & F&O)
M5: Back To Main Page
A6: Retail Research Technical Calls & Fundamental Performance Report for the month of Mar-2022
M7: =Main!B10 -> 2022-03-25
B8: Positional Call
A9: Sr.no | B9: Date | D9: Company | E9: Rec | F9: Rec Price | G9: Stop Loss*** | H9: Call Closed At | I9: Target | J9: Remark | K9: Profit / Loss per Share | L9: All charges | M9: Net Gain / Loss % | N9: Status | O9: Closed Date | P9: Market Closing Price
A10: 1 | B10: 2022-01-21 | D10: HCLTECH | E10: Buy | F10: 1160 | G10: 1090 | H10: 1,205.00 | I10: 1250-1300 | J10: Part profit of Rs.45/- | K10: =H10-F10 -> 45 | L10: =(F10*-0.7)/100 -> -8.12 | M10: =(K10+L10)/F10 -> 3.18% | N10: Successful | O10: 2022-03-11 | R10: H
A11: 2 | B11: 2022-01-25 | D11: TRENT | E11: Buy | F11: 1069 | G11: 995 | H11: 1,132.50 | I11: 1150-1200 | J11: Profit of Rs.63.5/- | K11: 63.5 | L11: =(F11*-0.7)/100 -> -7.48 | M11: 5.24% | N11: Successful | O11: 2022-03-03 | R11: H
A12: 3 | B12: 2022-02-11 | D12: CARBORUNIV | E12: Buy | F12: 847.5 | G12: 798 | H12: 798.00 | I12: 920-960 | J12: Loss of Rs.49.5/- | K12: -49.5 | L12: =(F12*-0.7)/100 -> -5.93 | M12: -6.54% | N12: Unsuccessful | O12: 2022-03-03 | R12: H
A13: 4 | B13: 2022-02-28 | D13: REDINGTON | E13: Buy | F13: 148 | G13: 138 | H13: 156.00 | I13: 160-170 | J13: Profit of Rs.8/- | K13: 8 | L13: =(F13*-0.4)/100 -> -0.59 | M13: 5.01% | N13: Successful | O13: 2022-03-03 | R13: H
A14: 5 | B14: 2022-02-28 | D14: HDFC | E14: Buy | F14: 2360 | G14: 2230 | H14: 2,230.00 | I14: 2500-2600 | J14: Loss of Rs.130/- | K14: -130 | L14: =(F14*-0.7)/100 -> -16.52 | M14: -6.21% | N14: Unsuccessful | O14: 2022-03-04 | R14: H
A15: 6 | B15: 2022-02-28 | D15: ICICIBANK | E15: Buy | F15: 715 | G15: 675 | H15: =(675+738.5)/2 -> 706.75 | I15: 750-780 | J15: Loss of Rs.8.25/- | K15: -8.25 | L15: =(F15*-0.4)/100 -> -2.86 | M15: -1.55% | N15: Unsuccessful | O15: 2022-03-08 | R15: H
A16: 7 | B16: 2022-02-28 | D16: AARTIIND | E16: Buy | F16: 925 | G16: 860 | H16: 860.00 | I16: 1000-1050 | J16: Loss of Rs.65/- | K16: -65 | L16: =(F16*-0.7)/100 -> -6.48 | M16: -7.73% | N16: Unsuccessful | O16: 2022-03-04 | R16: H
A17: 8 | B17: 2022-03-02 | D17: BHARTIARTL | E17: Buy | F17: 669 | G17: 618 | H17: 707.50 | I17: 740-780 | J17: Profit of Rs.38.5/- | K17: 38.5 | L17: -4.68 | M17: 5.05% | N17: Successful | O17: 2022-03-15 | R17: H
A18: 9 | B18: 2022-03-03 | D18: ACC | E18: Buy | F18: 1997.5 | G18: 1870 | H18: 2,115.00 | I18: 2150-2250 | J18: Profit of Rs.117.5/- | K18: 117.5 | L18: -13.98 | M18: 5.18% | N18: Successful | O18: 2022-03-16 | R18: H
A19: 10 | B19: 2022-03-07 | D19: TRENT | E19: Buy | F19: 1070 | G19: 990 | H19: 1,132.50 | I19: 1140-1200 | J19: Profit of Rs.62.5/- | K19: 62.5 | L19: -7.49 | M19: 5.14% | N19: Successful | O19: 2022-03-09 | R19: H
A20: 11 | B20: 2022-03-07 | D20: REDINGTON | E20: Buy | F20: 146.5 | G20: 135 | H20: 153.50 | I20: 160-170 | J20: Part profit of Rs.7/- | K20: 7 | L20: -1.03 | M20: 4.08% | N20: Successful | O20: 2022-03-10 | P20: =VLOOKUP(D20,'MidCap Intra'!B16:C571,2,0) -> 151.15 | R20: H
A21: 12 | B21: 2022-03-07 | D21: RELIANCE | E21: Buy | F21: 2280 | G21: 2170 | H21: 2,410.00 | I21: 2450-2550 | J21: Profit of Rs.130/- | K21: 130 | L21: -15.96 | M21: 5.00% | N21: Successful | O21: 2022-03-11 | R21: H
A22: 13 | B22: 2022-03-09 | D22: IRCTC | E22: Buy | F22: 733 | G22: 690 | H22: 777.00 | I22: 790-820 | J22: Profit of Rs.44/- | K22: 44 | L22: -5.13 | M22: 5.30% | N22: Successful | O22: 2022-03-17 | R22: H
A23: 14 | B23: 2022-03-17 | D23: TATACOMM | E23: Buy | F23: 1160-1170 | G23: 1090 | I23: 1250-1300 | J23: Open | P23: =VLOOKUP(D23,'MidCap Intra'!B19:C574,2,0) -> 1164.85 | R23: H
A24: 15 | B24: 2022-03-21 | D24: WHIRLPOOL | E24: Buy | F24: 1630-1650 | G24: 1530 | I24: 1800-1900 | J24: Open | P24: =VLOOKUP(D24,'MidCap Intra'!B20:C575,2,0) -> 1630.55 | R24: H
A25: 16 | B25: 2022-03-21 | D25: PRSMJOHNSN | E25: Buy | F25: 121-122 | G25: 115 | I25: 135 | J25: Open | P25: =VLOOKUP(D25,'MidCap Intra'!B21:C576,2,0) -> 117.85 | R25: N
A26: 17 | B26: 2022-03-22 | D26: INDIGO | E26: Buy | F26: 1795 | G26: 1680 | H26: 1,867.50 | I26: 1950-2000 | J26: Profit of Rs.72.5/- | K26: =H26-F26 -> 72.5 | L26: =(F26*-0.7)/100 -> -12.57 | M26: =(K26+L26)/F26 -> 3.34% | O26: 2022-03-24 | P26: =VLOOKUP(D26,'MidCap Intra'!B22:C577,2,0) -> 1863.1 | R26: H
A31: CLBS = Closing Basis ***
A32: Dividend adjusted <> | F32: Reinitiated $
A33: Part book {} | D33: s | F33: Revised stoploss #
B35: Momentum Call
A36: Sr.no | B36: Date | D36: Company | E36: Rec | F36: Rec Price | G36: Stop Loss | H36: Call Closed At | I36: Target | J36: Remark | K36: Profit / Loss per Share/Lot | L36: All charges | M36: Net Gain / Loss % | N36: Status | O36: Closed Date
A37: 1 | B37: 2022-02-28 | D37: BALKRISIND | E37: Buy | F37: 1812.5 | G37: 1750 | H37: 1862 | I37: 1880-1920 | J37: Profit of Rs.49.5/- | K37: =H37-F37 -> 49.5 | L37: =(F37*-0.7)/100 -> -12.69 | M37: 1.00% | N37: Successful | O37: 2022-03-08 | R37: H
A38: 2 | B38: 2022-03-02 | D38: JSWSTEEL | E38: Buy | F38: 642 | G38: 618 | H38: 661 | I38: 680-690 | J38: Profit of Rs.19/- | K38: 19 | L38: =(F38*-0.7)/100 -> -4.49 | M38: =(K38+L38)/F38 -> 2.26% | N38: Successful | O38: 2022-02-28 | R38: N
A39: 3 | B39: 2022-03-03 | D39: CROMPTON | E39: Buy | F39: 411 | G39: 398 | H39: 398 | I39: 430-440 | J39: Loss of Rs.13/- | K39: -13 | L39: =(F39*-0.07)/100 -> -0.29 | M39: -3.23% | N39: Unsuccessful | O39: 2022-03-04 | R39: N
A40: 4 | B40: 2022-03-03 | D40: BRITANNIA | E40: Buy | F40: 3405 | G40: 3290 | H40: 3290 | I40: 3550-3600 | J40: Loss of Rs.115/- | K40: -115 | L40: -2.38 | M40: -3.45% | N40: Unsuccessful | O40: 2022-03-07 | R40: H
A41: 5 | B41: 2022-03-03 | D41: LT | E41: Buy | F41: 1775 | G41: 1730 | H41: 1730 | I41: 1850-1900 | J41: Loss of Rs.45/- | K41: -45 | L41: -1.24 | M41: -2.61% | N41: Unsuccessful | O41: 2022-03-04 | R41: H
A42: 6 | B42: 2022-03-04 | D42: MAXHEALTH | E42: Buy | F42: 364 | G42: 354 | H42: 354 | I42: 380-385 | J42: Loss of Rs.10/- | K42: -10 | L42: -0.25 | M42: -2.82% | N42: Unsuccessful | O42: 2022-03-04 | R42: H
A43: 7 | B43: 2022-03-04 | D43: AMBUJACEM | E43: Buy | F43: 288.5 | G43: 278 | H43: 295.5 | I43: 300-310 | J43: Profit of Rs.7/- | K43: 7 | L43: -0.20 | M43: 2.36% | N43: Successful | O43: 2022-03-04 | R43: H
A44: 8 | B44: 2022-03-04 | D44: INDIGO | E44: Buy | F44: 1730 | G44: 1675 | H44: 1675 | I44: 1800-1820 | J44: Loss of Rs.55/- | K44: -55 | L44: -1.21 | M44: -3.25% | N44: Unsuccessful | O44: 2022-03-07 | R44: H
A45: 9 | B45: 2022-03-04 | D45: BAJFINANCE | E45: Buy | F45: 6650 | G45: 6490 | H45: 6490 | I45: 6900-7000 | J45: Loss of Rs.160/- | K45: -160 | L45: -4.66 | M45: -2.48% | N45: Unsuccessful | O45: 2022-03-07 | R45: H
A46: 10 | B46: 2022-03-07 | D46: ROUTE | E46: Buy | F46: 1520 | G46: 1460 | H46: 1537.5 | I46: 1570-1600 | J46: Profit of Rs.17.5/- | K46: 17.5 | L46: -1.06 | M46: 1.08% | N46: Successful | O46: 2022-03-07 | R46: H
A47: 11 | B47: 2022-03-08 | D47: MAXHEALTH | E47: Buy | F47: 347.5 | G47: 337 | H47: 362 | I47: 365-370 | J47: Profit of Rs.14.5/- | K47: 14.5 | L47: =(F47*-0.7)/100 -> -2.43 | M47: 3.47% | N47: Successful | O47: 2022-03-10 | R47: N
A48: 12 | B48: 2022-03-08 | D48: ICICIBANK | E48: Buy | F48: 658.5 | G48: 640 | H48: 692.5 | I48: 690-700 | J48: Profit of Rs.14.5/- | K48: 34 | L48: =(F48*-0.7)/100 -> -4.61 | M48: 4.46% | N48: Successful | O48: 2022-03-10 | R48: H
A49: 13 | B49: 2022-03-08 | D49: SBILIFE | E49: Buy | F49: 1028 | G49: 997 | H49: 1056 | I49: 1070-1090 | J49: Profit of Rs.14.5/- | K49: 28 | L49: =(F49*-0.7)/100 -> -7.20 | M49: 2.02% | N49: Successful | O49: 2022-03-10 | R49: H
A50: 14 | B50: 2022-03-09 | D50: TATACOMM | E50: Buy | F50: 1132.5 | G50: 1097 | H50: 1154 | I50: 1180-1200 | J50: Profit of Rs.21.5/- | K50: 21.5 | L50: =(F50*-0.07)/100 -> -0.79 | M50: 1.83% | N50: Successful | O50: 2022-03-09 | R50: H
A51: 15 | B51: 2022-03-09 | D51: PIDILITIND | E51: Buy | F51: 2175 | G51: 2120 | H51: 2240 | I51: 2280-2300 | J51: Profit of Rs.65/- | K51: 65 | L51: =(F51*-0.07)/100 -> -1.52 | M51: 2.92% | N51: Successful | O51: 2022-03-09 | R51: H
A52: 16 | B52: 2022-03-09 | D52: AMBUJACEM | E52: Buy | F52: 282.5 | G52: 273 | H52: 288.5 | I52: 295-300 | J52: Profit of Rs.6/- | K52: 6 | L52: =(F52*-0.07)/100 -> -0.20 | M52: 2.05% | N52: Successful | O52: 2022-03-09 | R52: H
A53: 17 | B53: 2022-03-09 | D53: SBIN | E53: Buy | F53: 441.5 | G53: 428 | H53: 449 | I53: 460-465 | J53: Profit of Rs.7.5/- | K53: 7.5 | L53: =(F53*-0.07)/100 -> -0.31 | M53: 1.63% | N53: Successful | O53: 2022-03-09 | R53: H
A54: 18 | B54: 2022-03-10 | D54: SUPREMEIND | E54: Buy | F54: 1995 | G54: 1935 | H54: 2052.5 | I54: 2080-2120 | J54: Profit of Rs.57.5/- | K54: 57.5 | L54: =(F54*-0.7)/100 -> -13.97 | M54: 2.18% | N54: Successful | O54: 2022-03-17 | R54: H
A55: 19 | B55: 2022-03-10 | D55: EXIDEIND | E55: Buy | F55: 153 | G55: 148 | H55: 157 | I55: 158-160 | J55: Profit of Rs.4/- | K55: 4 | L55: =(F55*-0.7)/100 -> -1.07 | M55: 1.91% | N55: Successful | O55: 2022-03-15 | R55: H
A56: 20 | B56: 2022-03-11 | D56: HINDALCO | E56: Sell | F56: 603 | G56: 622 | H56: 590.5 | I56: 580-570 | J56: Profit of Rs.12.5/- | K56: =F56-H56 -> 12.5 | L56: =(F56*-0.07)/100 -> -0.42 | M56: 2.00% | N56: Successful | O56: 2022-03-11 | R56: H
A57: 21 | B57: 2022-03-11 | D57: BEL | E57: Buy | F57: 214.5 | G57: 207 | H57: 215 | I57: 222-225 | J57: Profit of Rs.0.5/- | K57: =H57-F57 -> 0.5 | L57: =(F57*-0.07)/100 -> -0.15 | M57: 0.16% | N57: Neutral | O57: 2022-03-11 | R57: H
A58: 22 | B58: 2022-03-11 | D58: MAXHEALTH | E58: Buy | F58: 350 | G58: 338 | H58: 338 | I58: 365-370 | J58: Loss of Rs.12/- | K58: =H58-F58 -> -12 | L58: =(F58*-0.7)/100 -> -2.45 | M58: -4.13% | N58: Unsuccessful | O58: 2022-03-17 | R58: H
A59: 23 | B59: 2022-03-14 | D59: BEL | E59: Buy<> | F59: 208.5 | G59: 203 | I59: 218-222 | J59: Open | R59: H
A60: 24 | B60: 2022-03-15 | D60: ROUTE | E60: Buy | F60: 1585 | G60: 1540 | H60: 1540 | I60: 1650-1700 | J60: Loss of Rs.45/- | K60: =H60-F60 -> -45 | L60: =(F60*-0.7)/100 -> -11.10 | M60: =(K60+L60)/F60 -> -3.54% | N60: Unsuccessful | O60: 2022-03-24 | R60: H
A61: 25 | B61: 2022-03-19 | D61: PRSMJOHNSN | E61: Buy | F61: 122.5 | G61: 118.5 | H61: 126 | I61: 127-130 | J61: Profit of Rs.3.5/- | K61: =H61-F61 -> 3.5 | L61: =(F61*-0.07)/100 -> -0.09 | M61: =(K61+L61)/F61 -> 2.79% | N61: Successful | O61: 2022-03-17 | R61: N
A62: 26 | B62: 2022-03-21 | D62: MFSL | E62: Buy | F62: 796 | G62: 774 | H62: 772 | I62: 820-840 | J62: Loss of Rs.24/- | K62: =H62-F62 -> -24 | L62: =(F62*-0.07)/100 -> -0.56 | M62: =(K62+L62)/F62 -> -3.09% | N62: Unsuccessful | O62: 2022-03-21 | R62: H
A63: 27 | B63: 2022-03-21 | D63: ICICIBANK | E63: Buy | F63: 710-715 | G63: 695 | I63: 740-750 | J63: Open | R63: H
A64: 28 | B64: 2022-03-22 | D64: BALAMINES | E64: Buy | F64: 3060-3080 | G64: 2970 | I64: 3200-325- | J64: Open | R64: H
A65: 29 | B65: 2022-03-23 | D65: HINDALCO | E65: Sell | F65: 601.5 | G65: 622 | H65: 622 | I65: 580-570 | J65: Loss of Rs.20.5/- | K65: =F65-H65 -> -20.5 | L65: =(F65*-0.7)/100 -> -4.21 | M65: =(K65+L65)/F65 -> -4.11% | N65: Unsuccessful | O65: 2022-03-24 | R65: H
A68: CLBS = Closing Basis *** | H68: *
A69: Dividend adjusted <> | F69: Reinitiated $
F70: Revised stoploss #
A72: Master Trade High Risk
A73: Sr.no | B73: Date | D73: Company | E73: Rec | F73: Rec Price | G73: Stop Loss | H73: Call Closed At | I73: Target | J73: Remark | K73: Profit / Loss per share | L73: All charges | M73: Gain / Loss per Lot | N73: Lot | O73: Status | P73: Closed Date
A74: 1 | B74: 2022-02-28 | D74: HDFCBANK MAR FUT | E74: Buy | F74: 1436 | G74: 1414 | H74: 1414 | I74: 1470-1480 | J74: Loss of Rs.22/- | K74: =H74-F74 -> -22 | L74: =(H74*N74)*0.07% -> 544.39 | M74: =(K74*N74)-L74 -> -12644.4 | N74: 550 | O74: Unsuccessful | P74: 2022-03-02 | R74: H
A75: 2 | B75: 2022-02-28 | D75: SIEMENS MAR FUT | E75: Buy | F75: 2342.5 | G75: 2300 | H75: 2368 | I75: 2400-2450 | J75: Profit of Rs.25.5/- | K75: 25.5 | L75: 455.84 | M75: 6556.7 | N75: 275 | O75: Successful | P75: 2021-03-02 | R75: N
A76: 3 | B76: 2022-03-02 | D76: BHARATFORG MAR FUT | E76: Buy | F76: 661 | G76: 642 | H76: 644 | I76: 680-695 | J76: Loss of Rs.17/- | K76: -17 | L76: 338.10 | M76: -13088.1 | N76: 750 | O76: Unsuccessful | P76: 2022-03-03 | R76: N
A77: 4 | B77: 2022-03-02 | D77: INFY MAR FUT | E77: Buy | F77: 1702.5 | G77: 1662 | H77: 1730 | I77: 1750-1780 | J77: Profit of Rs.27.5/- | K77: 27.5 | L77: 363.30 | M77: 7886.7 | N77: 300 | O77: Successful | P77: 2021-03-03 | R77: H
A78: 5 | B78: 2022-03-02 | D78: SRF MAR FUT | E78: Buy | F78: 2342.5 | G78: 2305 | H78: 2387.5 | I78: 2380-2420 | J78: Profit of Rs.45/- | K78: 45 | L78: 626.72 | M78: 16248.3 | N78: 375 | O78: Successful | P78: 2021-03-03 | R78: N
A79: 6 | B79: 2022-03-02 | D79: GSPL MAR FUT | E79: Buy | F79: 280.5 | G79: 274 | H79: 285.5 | I79: 290-295 | J79: Profit of Rs.5/- | K79: 5 | L79: 339.75 | M79: 8160.3 | N79: 1700 | O79: Successful | P79: 2021-03-03 | R79: N
A80: 7 | B80: 2022-03-03 | D80: SRF MAR FUT | E80: Buy | F80: 2337.5 | G80: 2300 | H80: 2300 | I80: 2380-2420 | J80: Loss of Rs.37.5/- | K80: -37.5 | L80: 603.75 | M80: -14666.3 | N80: 375 | O80: Unsuccessful | P80: 2022-03-04 | R80: N
A81: 8 | B81: 2022-03-03 | D81: GSPL MAR FUT | E81: Buy | F81: 276.5 | G81: 269 | H81: 281.5 | I81: 285-295 | J81: Profit of Rs.5/- | K81: 5 | L81: 334.99 | M81: 8165.0 | N81: 1700 | O81: Successful | P81: 2021-03-04 | R81: N
A82: 9 | B82: 2021-03-04 | D82: SBIN MAR FUT | E82: Buy | F82: 459.5 | G82: 451 | H82: 465.5 | I82: 470-480 | J82: Profit of Rs.6/- | K82: 6 | L82: 488.78 | M82: 8511.2 | N82: 1500 | O82: Successful | P82: 2021-03-04 | R82: H
A83: 10 | B83: 2021-03-04 | D83: MPHASIS MAR FUT | E83: Buy | F83: 3105 | G83: 3030 | H83: 3165 | I83: 3200-3250 | J83: Profit of Rs.60/- | K83: 60 | L83: 387.71 | M83: 10112.3 | N83: 175 | O83: Successful | P83: 2021-03-04 | R83: N
A84: 11 | B84: 2021-03-04 | D84: INFY MAR FUT | E84: Buy | F84: 1698 | G84: 1658 | H84: 1731 | I84: 1750-1780 | J84: Profit of Rs.33/- | K84: 33 | L84: 363.51 | M84: 9536.5 | N84: 300 | O84: Successful | P84: 2021-03-04 | R84: H
A85: 12 | B85: 2021-03-04 | D85: TECHM MAR FUT | E85: Buy | F85: 1422.5 | G85: 1400 | H85: 1437 | I85: 1450-1470 | J85: Profit of Rs.14.5/- | K85: 14.5 | L85: 653.84 | M85: 8771.2 | N85: 650 | O85: Successful | P85: 2021-03-04 | R85: N
A86: 13 | B86: 2021-03-04 | D86: SIEMENS MAR FUT | E86: Buy | F86: 2322 | G86: 2275 | H86: 2275 | I86: 2370-2430 | J86: Loss of Rs.47/- | K86: -47 | L86: 437.94 | M86: -13362.9 | N86: 275 | O86: Unsuccessful | P86: 2022-03-07 | R86: N
A87: 14 | B87: 2022-03-07 | D87: HCLTECH MAR FUT | E87: Buy | F87: 1137 | G87: 1120 | H87: 1151 | I87: 1160-1175 | J87: Profit of Rs.14/- | K87: 14 | L87: 563.99 | M87: 9236.0 | N87: 700 | O87: Successful | P87: 2021-03-07 | R87: N
A88: 15 | B88: 2022-03-07 | D88: APOLLOTYRE MAR FUT | E88: Buy | F88: 173 | G88: 167.5 | H88: 167.5 | I88: 180-185 | J88: Loss of Rs.5.5/- | K88: -5.5 | L88: 293.13 | M88: -14043.1 | N88: 2500 | O88: Unsuccessful | P88: 2022-03-07 | R88: H
A89: 16 | B89: 2022-03-07 | D89: GSPL MAR FUT | E89: Buy | F89: 270.5 | G89: 263 | H89: 275.5 | I89: 280-285 | J89: Profit of Rs.5/- | K89: 5 | L89: 327.85 | M89: 8172.2 | N89: 1700 | O89: Successful | P89: 2021-03-07 | R89: N
A90: 17 | B90: 2022-03-08 | D90: COLPAL MAR FUT | E90: Buy | F90: 1399 | G90: 1362 | H90: 1424 | I90: 1440-1470 | J90: Profit of Rs.25/- | K90: 25 | L90: 697.76 | M90: 16802.2 | N90: 700 | O90: Successful | P90: 2021-03-09 | R90: N
A91: 18 | B91: 2022-03-08 | D91: HDFC MAR FUT | E91: Buy | F91: 2110 | G91: 2065 | H91: 2065 | I91: 2160-2200 | J91: Loss of Rs.45/- | K91: -45 | L91: 433.65 | M91: -13933.7 | N91: 300 | O91: Unsuccessful | P91: 2022-03-08 | R91: H
A92: 19 | B92: 2022-03-08 | D92: AMBUJACEM MAR FUT | E92: Buy | F92: 273.5 | G92: 265 | H92: 279.5 | I92: 285-290 | J92: Profit of Rs.6/- | K92: 6 | L92: 293.48 | M92: 8706.5 | N92: 1500 | O92: Successful | P92: 2021-03-09 | R92: H
A93: 20 | B93: 2022-03-08 | D93: GSPL MAR FUT | E93: Buy | F93: 263 | G93: 255 | H93: 268.5 | I93: 275-285 | J93: Profit of Rs.5.5/- | K93: 5.5 | L93: 319.52 | M93: 9030.5 | N93: 1700 | O93: Successful | P93: 2021-03-08 | R93: N
A94: 21 | B94: 2022-03-08 | D94: M&M MAR FUT | E94: Buy | F94: 695 | G94: 675 | H94: 709 | I94: 720-730 | J94: Profit of Rs.14/- | K94: 14 | L94: 372.23 | M94: 10127.8 | N94: 750 | O94: Successful | P94: 2021-03-09 | R94: H
A95: 22 | B95: 2022-03-08 | D95: MPHASIS MAR FUT | E95: Buy | F95: 3195 | G95: 3120 | H95: 3250 | I95: 3270-3350 | J95: Profit of Rs.55/- | K95: 55 | L95: 398.13 | M95: 9226.9 | N95: 175 | O95: Successful | P95: 2021-03-09 | R95: N
A96: 23 | B96: 2022-03-08 | D96: TRENT MAR FUT | E96: Buy | F96: 1068 | G96: 1050 | H96: 1092 | I96: 1090-1110 | J96: Profit of Rs.24/- | K96: 24 | L96: 554.19 | M96: 16845.8 | N96: 725 | O96: Successful | P96: 2021-03-09 | R96: N
A97: 24 | B97: 2022-03-09 | D97: GSPL MAR FUT | E97: Buy | F97: 264.5 | G97: 257 | H97: 270 | I97: 275-280 | J97: Profit of Rs.5.5/- | K97: 5.5 | L97: 321.30 | M97: 9028.7 | N97: 1700 | O97: Successful | P97: 2021-03-09 | R97: N
A98: 25 | B98: 2022-03-09 | D98: COFORGE MAR FUT | E98: Buy | F98: 4700 | G98: 4570 | H98: 4615 | I98: 4850-4950 | J98: Loss of Rs.85/- | K98: -85 | L98: 323.05 | M98: -8823.1 | N98: 100 | O98: Unsuccessful | P98: 2021-03-09 | R98: N
A99: 26 | B99: 2022-03-10 | D99: HCLTECH MAR FUT | E99: Buy | F99: 1186.5 | G99: 1168 | H99: 1200.5 | I99: 1220 | J99: Profit of Rs.14/- | K99: 14 | L99: 588.25 | M99: 9211.8 | N99: 700 | O99: Successful | P99: 2021-03-11 | R99: N
A100: 27 | B100: 2022-03-10 | D100: HINDCOPPER MAR FUT | E100: Buy | F100: 123.75 | G100: 120 | H100: 126.5 | I100: 130-132 | J100: Profit of Rs.2.75/- | K100: 2.75 | L100: 380.77 | M100: 11444.2 | N100: 4300 | O100: Successful | P100: 2021-03-11 | R100: N
A101: 28 | B101: 2022-03-10 | D101: AMBUJACEM MAR FUT | E101: Buy | F101: 287.5 | G101: 278.5 | H101: 293.5 | I101: 300-310 | J101: Profit of Rs.6/- | K101: 6 | L101: 308.18 | M101: 8691.8 | N101: 1500 | O101: Successful | P101: 2022-03-15 | R101: H
A102: 29 | B102: 2022-03-10 | D102: VEDL MAR FUT | E102: Buy | F102: 376.5 | G102: 372.5 | H102: 380.5 | I102: 382-387 | J102: Profit of Rs.4/- | K102: 4 | L102: 825.69 | M102: 11574.3 | N102: 3100 | O102: Successful | P102: 2022-03-10 | R102: H
A103: 30 | B103: 2022-03-10 | D103: PIDILITIND MAR FUT | E103: Buy | F103: 2355 | G103: 2300 | H103: 2390 | I103: 2450 | J103: Profit of Rs.35/- | K103: 35 | L103: 460.08 | M103: 9164.9 | N103: 275 | O103: Successful | P103: 2022-03-15 | R103: H
A104: 31 | B104: 2022-03-11 | D104: SRF MAR FUT | E104: Buy | F104: 2262.5 | G104: 2228 | H104: 2330 | I104: 2300-2340 | J104: Profit of Rs.67.5/- | K104: 67.5 | L104: 611.63 | M104: 24700.9 | N104: 375 | O104: Successful | P104: 2022-03-14 | R104: N
A105: 32 | B105: 2022-03-11 | D105: GSPL MAR FUT | E105: Buy | F105: 266.5 | G105: 259 | H105: 260 | I105: 275-280 | J105: Loss of Rs.6.5/- | K105: -6.5 | L105: 309.40 | M105: -11359.4 | N105: 1700 | O105: Unsuccessful | P105: 2021-03-16 | R105: H
A106: 33 | B106: 2022-03-11 | D106: COROMANDEL MAR FUT | E106: Buy | F106: 785 | G106: 770 | H106: 770 | I106: 810-820 | J106: Loss of Rs.15/- | K106: -15 | L106: 336.88 | M106: -9711.9 | N106: 625 | O106: Unsuccessful | P106: 2021-03-14 | R106: H
A107: 34 | B107: 2022-03-14 | D107: HCLTECH MAR FUT | E107: Buy | F107: 1180 | G107: 1162 | H107: 1192 | I107: 1220 | J107: Profit of Rs.12/- | K107: 12 | L107: 584.08 | M107: 7815.9 | N107: 700 | O107: Successful | P107: 2022-03-14 | R107: N
A108: 35 | B108: 2022-03-14 | D108: HINDCOPPER MAR FUT | E108: Buy | F108: 122.25 | G108: 119 | H108: 119 | I108: 126-129 | J108: Loss of Rs.3.25/- | K108: -3.25 | L108: 358.19 | M108: -14333.2 | N108: 4300 | O108: Unsuccessful | P108: 2021-03-15 | R108: N
A109: 36 | B109: 2022-03-14 | D109: NIFTY MAR FUT | E109: Sell | F109: 16750 | G109: 16980 | H109: 16890 | I109: 16500-16400 | J109: Loss of Rs.99/- | K109: =F109-H109 -> -140 | L109: 591.15 | M109: =(-99*50)-691.15 -> -5641.15 | N109: 50 | O109: Unsuccessful | P109: 2022-03-14 | R109: H
D110: NIFTY 16500 PE 17-MAR | E110: Sell | F110: 127 | H110: 86 | K110: =F110-H110 -> 41 | L110: 100 | N110: 50 | R110: H
A111: 37 | B111: 2022-03-14 | D111: HDFCAMC MAR FUT | E111: Buy | F111: 2144 | G111: 2080 | H111: 2183 | I111: 2210-2260 | J111: Profit of Rs.39/- | K111: =H111-F111 -> 39 | L111: =(H111*N111)*0.07% -> 305.62 | M111: =(K111*N111)-L111 -> 7494.4 | N111: 200 | O111: Successful | P111: 2022-03-16 | R111: N
A112: 38 | B112: 2022-03-15 | D112: AARTIIND MAR FUT | E112: Buy | F112: 878 | G112: 865 | H112: 865 | I112: 895-905 | J112: Loss of Rs.13/- | K112: -13 | L112: 514.68 | M112: -11564.7 | N112: 850 | O112: Unsuccessful | P112: 2021-03-15 | R112: N
A113: 39 | B113: 2022-03-15 | D113: LT MAR FUT | E113: Buy | F113: 1751.5 | G113: 1725 | H113: 1769 | I113: 1780-1800 | J113: Profit of Rs.17.5/- | K113: 17.5 | L113: 866.81 | M113: 11383.2 | N113: 700 | O113: Successful | P113: 2022-03-16 | R113: H
A114: 40 | B114: 2022-03-15 | D114: IEX MAR FUT | E114: Buy | F114: 221.75 | G114: 219 | H114: 219 | I114: 226-228 | J114: Loss of Rs.2.75/- | K114: -2.75 | L114: 574.88 | M114: -10887.4 | N114: 3750 | O114: Unsuccessful | P114: 2021-03-15 | R114: H
A115: 41 | B115: 2022-03-15 | D115: NIFTY MAR FUT | E115: Buy | F115: 16640 | G115: 16450 | H115: 16690 | I115: 16800-16850 | J115: Profit of Rs.50/- | K115: 50 | L115: 584.15 | M115: 1915.9 | N115: 50 | O115: Successful | P115: 2022-03-15 | R115: H
A116: 42 | B116: 2022-03-16 | D116: MPHASIS MAR FUT | E116: Buy | F116: 3215 | G116: 3140 | H116: 3140 | I116: 3300-3350 | J116: Loss of Rs.75/- | K116: -75 | L116: 384.65 | M116: -13509.7 | N116: 175 | O116: Unsuccessful | P116: 2021-03-16 | R116: N
A117: 43 | B117: 2022-03-16 | D117: HINDUNILVR MAR FUT | E117: Buy | F117: 2080 | G117: 2040 | H117: 2118 | I117: 2150 | J117: Profit of Rs.38/- | K117: 38 | L117: 444.78 | M117: 10955.2 | N117: 300 | O117: Successful | P117: 2022-03-17 | R117: H
A118: 44 | B118: 2022-03-17 | D118: ABB MAR FUT | E118: Buy | F118: 2157.5 | G118: 2115 | H118: 2115 | I118: 2230-2250 | J118: Loss of Rs.42.5/- | K118: -42.5 | L118: 370.13 | M118: -10995.1 | N118: 250 | O118: Unsuccessful | P118: 2021-03-17 | R118: H
A119: 45 | B119: 2022-03-17 | D119: KOTAKBANK MAR FUT | E119: Buy | F119: 1822.5 | G119: 1790 | H119: 1790 | I119: 1860-1890 | J119: Loss of Rs.32.5/- | K119: -32.5 | L119: 501.20 | M119: -13501.2 | N119: 400 | O119: Unsuccessful | P119: 2021-03-21 | R119: H
A120: 46 | B120: 2022-03-17 | D120: AMBUJACEM MAR FUT | E120: Buy | F120: 303.5 | G120: 293.5 | H120: 294 | I120: 315-325 | J120: Loss of Rs.9.5/- | K120: -9.5 | L120: 308.70 | M120: -14558.7 | N120: 1500 | O120: Unsuccessful | P120: 2021-03-22 | R120: H
A121: 47 | B121: 2022-03-21 | D121: SIEMENS MAR FUT | E121: Buy | F121: 2395.5 | G121: 2350 | H121: 2350 | I121: 2450-2490 | J121: Loss of Rs.45.5/- | K121: -45.5 | L121: 411.25 | M121: -11786.3 | N121: 250 | O121: Unsuccessful | P121: 2021-03-22 | R121: N
A122: 48 | B122: 2022-03-21 | D122: HINDUNILVR MAR FUT | E122: Buy | F122: 2082.5 | G122: 2040 | H122: 2040 | I122: 2150-2160 | J122: Loss of Rs.42.5/- | K122: -42.5 | L122: 428.40 | M122: -13178.4 | N122: 300 | O122: Unsuccessful | P122: 2021-03-22 | R122: H
A123: 49 | B123: 2022-03-21 | D123: LT MAR FUT | E123: Buy | F123: 1788.5 | G123: 1765 | H123: 1765 | I123: 1815-1830 | J123: Loss of Rs.23.5/- | K123: -23.5 | L123: 679.53 | M123: -13604.5 | N123: 550 | O123: Unsuccessful | P123: 2021-03-21 | R123: N
A124: 50 | B124: 2022-03-22 | D124: PIDILITIND MAR FUT | E124: Buy | F124: 2440-2450 | G124: 2390 | I124: 2520-2550 | J124: Open | R124: H
A125: 51 | B125: 2022-03-22 | D125: HCLTECH MAR FUT | E125: Buy | F125: 1184 | G125: 1165 | H125: 1196.5 | I125: 1220-1230 | J125: Profit of Rs.12.5/- | K125: =H125-F125 -> 12.5 | L125: =(H125*N125)*0.07% -> 586.29 | M125: =(K125*N125)-L125 -> 8163.7 | N125: 700 | O125: Successful | P125: 2022-03-17 | R125: N
A126: 52 | B126: 2022-03-23 | D126: LUPIN MAR FUT | E126: Buy | F126: 761 | G126: 745 | H126: 771 | I126: 780-790 | J126: Profit of Rs.10/- | K126: =H126-F126 -> 10 | L126: =(H126*N126)*0.07% -> 458.75 | M126: =(K126*N126)-L126 -> 8041.3 | N126: 850 | O126: Successful | P126: 2022-03-17 | R126: N
A127: 53 | B127: 2022-03-23 | D127: JSWSTEEL MAR FUT | E127: Buy | F127: 708 | G127: 698 | H127: 716 | I127: 725-730 | J127: Profit of Rs.8/- | K127: =H127-F127 -> 8 | L127: =(H127*N127)*0.07% -> 676.62 | M127: =(K127*N127)-L127 -> 10123.4 | N127: 1350 | O127: Successful | P127: 2022-03-17 | R127: H
A128: 54 | B128: 2022-03-24 | D128: HDFCAMC MAR FUT | E128: Buy | F128: 2165-2175 | G128: 2100 | I128: 2250-2300 | J128: Open | R128: N
A133: Master Trade Medium Risk
A134: Sr.no | B134: Date | D134: Company | E134: Rec | F134: Rec Price | G134: Stop Loss | H134: Call Closed At | I134: Target | J134: Remark | K134: Profit/ Loss per lot | L134: All charges | M134: Gain / Loss per Lot | N134: Lot | O134: Status | P134: Closed Date
A135: 1 | B135: 2022-03-02 | D135: RELIANCE 2420 CE MAR | E135: Buy | F135: 49.5 | G135: 30 | H135: 61 | I135: 70-90 | J135: Profit of Rs.11.5/- | K135: =H135-F135 -> 11.5 | L135: 100.00 | M135: =(K135*N135)-L135 -> 2775.0 | N135: 250 | O135: Successful | P135: 2021-03-02 | R135: H
A136: 2 | B136: 2022-03-02 | D136: NIFTY 16750 CE 03-MAR | E136: Buy | F136: 82.5 | G136: 35 | H136: 88.5 | I136: 150-200 | J136: Profit of Rs.6/- | K136: 6 | L136: 100.00 | M136: 200.0 | N136: 50 | O136: Neutral | P136: 2021-03-03 | R136: H
A137: 3 | B137: 2022-03-02 | D137: ASIANPAINT 3100 CE MAR | E137: Buy | F137: 85 | G137: 45 | H137: 49 | I137: 140-160 | J137: Loss of Rs.36/- | K137: -36 | L137: 100.00 | M137: -5500.0 | N137: 150 | O137: Unsuccessful | P137: 2022-03-03 | R137: H
A138: 4 | B138: 2022-03-03 | D138: INFY 1740 CE MAR | E138: Buy | F138: 42 | G138: 26 | H138: 49.5 | I138: 60-75 | J138: Profit of Rs.7.5/- | K138: 7.5 | L138: 100.00 | M138: 2150.0 | N138: 300 | O138: Successful | P138: 2021-03-04 | R138: H
A139: 5 | B139: 2022-03-03 | D139: RELIANCE 2420 CE MAR | E139: Buy | F139: 55 | G139: 35 | H139: 35 | I139: 80-90 | J139: Loss of Rs.20/- | K139: -20 | L139: 100.00 | M139: -5100.0 | N139: 250 | O139: Unsuccessful | P139: 2022-03-07 | R139: H
A140: 6 | B140: 2022-03-03 | D140: NIFTY 16500 CE 03-MAR | E140: Buy | F140: 51.5 | G140: 17 | H140: 71 | I140: 80-100 | J140: Profit of Rs.19.5/- | K140: 19.5 | L140: 100.00 | M140: 875.0 | N140: 50 | O140: Successful | P140: 2021-03-03 | R140: H
A141: 7 | B141: 2022-03-04 | D141: HDFC 2300 CE MAR | E141: Buy | F141: 55 | G141: 38 | H141: 38 | I141: 80-90 | J141: Loss of Rs.17/- | K141: -17 | L141: 100.00 | M141: -5200.0 | N141: 300 | O141: Unsuccessful | P141: 2022-03-07 | R141: H
A142: 8 | B142: 2022-03-08 | D142: INFY 1760 CE MAR | E142: Buy | F142: 47 | G142: 32 | H142: 55 | I142: 65-75 | J142: Profit of Rs.8/- | K142: 8 | L142: 100.00 | M142: 2300.0 | N142: 300 | O142: Successful | P142: 2021-03-08 | R142: N
A143: 9 | B143: 2022-03-08 | D143: RELIANCE 2300 CE MAR | E143: Buy | F143: 53.5 | G143: 34 | H143: 64 | I143: 80-90 | J143: Profit of Rs.10.5/- | K143: 10.5 | L143: 100.00 | M143: 2525.0 | N143: 250 | O143: Successful | P143: 2021-03-09 | R143: H
A144: 10 | B144: 2022-03-10 | D144: NIFTY 16700 PE 10-MAR | E144: Buy | F144: 47.5 | G144: 10 | H144: 67.5 | I144: 90-110 | J144: Profit of Rs.20/- | K144: 20 | L144: 100.00 | M144: 900.0 | N144: 50 | O144: Successful | P144: 2022-03-10 | R144: N
A145: 11 | B145: 2022-03-10 | D145: NIFTY 16500 CE 10 MAR | E145: Buy | F145: 32.5 | H145: 55.5 | I145: 80-90 | J145: Profit of Rs.23/- | K145: 23 | L145: 100.00 | M145: 1050.0 | N145: 50 | O145: Successful | P145: 2022-03-10 | R145: N
A146: 12 | B146: 2022-03-11 | D146: HDFC 2200 PE MAR | E146: Buy | F146: 44 | G146: 29 | H146: 50.5 | I146: 65-75 | J146: Profit of Rs.6.5/- | K146: 6.5 | L146: 100.00 | M146: 1850.0 | N146: 300 | O146: Successful | P146: 2022-03-11 | R146: H
A147: 13 | B147: 2022-03-15 | D147: HDFCBANK 1460 CE MAR | E147: Buy | F147: 24 | G147: 14 | H147: 32 | I147: 35-45 | J147: Profit of Rs.8/- | K147: 8 | L147: 100.00 | M147: 4300.0 | N147: 550 | O147: Successful | P147: 2022-03-17 | R147: H
A148: 14 | B148: 2022-03-15 | D148: NIFTY 16800 CE 17-MAR | E148: Buy | F148: 106 | G148: 60 | H148: 126 | I148: 150-180 | J148: Profit of Rs.20/- | K148: 20 | L148: 100.00 | M148: 900.0 | N148: 50 | O148: Successful | P148: 2022-03-15 | R148: N
A149: 15 | B149: 2022-03-16 | D149: NIFTY 16800 PE 17-MAR | E149: Buy | F149: 75 | G149: 30 | H149: 95 | I149: 150 | J149: Profit of Rs.20/- | K149: 20 | L149: 100.00 | M149: 900.0 | N149: 50 | O149: Successful | P149: 2022-03-16 | R149: H
A150: 16 | B150: 2022-03-16 | D150: BANKNIFTY 35200 PE 17-MAR | E150: Buy | F150: 210 | G150: 95 | H150: 260 | I150: 320-400 | J150: Profit of Rs.50/- | K150: 50 | L150: 100.00 | M150: 1150.0 | N150: 25 | O150: Successful | P150: 2022-03-16 | R150: N
A151: 17 | B151: 2022-03-16 | D151: NIFTY 16800 PE 17-MAR | E151: Buy | F151: 78 | G151: 30 | H151: 99 | I151: 150 | J151: Profit of Rs.21/- | K151: 21 | L151: 100.00 | M151: 950.0 | N151: 50 | O151: Successful | P151: 2022-03-16 | R151: H
A152: 18 | B152: 2022-03-16 | D152: BANKNIFTY 35200 PE 17-MAR | E152: Buy | F152: 190 | G152: 85 | H152: 265 | I152: 320-400 | J152: Profit of Rs.75/- | K152: 75 | L152: 100.00 | M152: 1775.0 | N152: 25 | O152: Successful | P152: 2022-03-16 | R152: N
A153: 19 | B153: 2022-03-16 | D153: NIFTY 16800 PE 17-MAR | E153: Buy | F153: 76 | G153: 30 | H153: 58 | I153: 150 | J153: Loss of Rs.18/- | K153: =H153-F153 -> -18 | L153: 100.00 | M153: -1000.0 | N153: 50 | O153: Unsuccessful | P153: 2022-03-16 | R153: H
A154: 20 | B154: 2022-03-16 | D154: BANKNIFTY 35200 PE 17-MAR | E154: Buy | F154: 190 | G154: 85 | H154: 85 | I154: 320-400 | J154: Loss of Rs.105/- | K154: =H154-F154 -> -105 | L154: 100.00 | M154: -2725.0 | N154: 25 | O154: Unsuccessful | P154: 2022-03-17 | R154: N
A155: 21 | B155: 2022-03-16 | D155: SBIN 480 PE MAR | E155: Buy | F155: 9 | G155: 5.9 | H155: 5.9 | I155: 14-15 | J155: Loss of Rs.3.1/- | K155: =H155-F155 -> -3.1 | L155: 100.00 | M155: -4750.0 | N155: 1500 | O155: Unsuccessful | P155: 2022-03-17 | R155: H
A156: 22 | B156: 2022-03-16 | D156: RELIANCE 2380 PE MAR | E156: Buy | F156: 41 | G156: 25 | H156: 25 | I156: 60-70 | J156: Loss of Rs.16/- | K156: =H156-F156 -> -16 | L156: 100.00 | M156: -4100.0 | N156: 250 | O156: Unsuccessful | P156: 2022-03-17 | R156: H
A157: 23 | B157: 2022-03-17 | D157: NIFTY 17250 CE 17-MAR | E157: Buy | F157: 42.5 | G157: 8 | H157: 63 | I157: 80-100 | J157: Profit of Rs.20.5/- | K157: 20.5 | L157: 100.00 | M157: 925.0 | N157: 50 | O157: Successful | P157: 2022-03-17 | R157: H
A158: 24 | B158: 2022-03-17 | D158: MOTHERSUMI 135 PE | E158: Buy | F158: 4.15 | G158: 2.75 | H158: 4.75 | I158: 7.0-10.0 | J158: Profit of Rs.0.6/- | K158: 0.6 | L158: 100.00 | M158: 2000.0 | N158: 3500 | O158: Successful | P158: 2022-03-17 | R158: N
A159: 25 | B159: 2022-03-17 | D159: NIFTY 17300 CE 17-MAR | E159: Buy | F159: 42.5 | G159: 8 | H159: 61 | I159: 80-100 | J159: Profit of Rs.18.5/- | K159: 18.5 | L159: 100.00 | M159: 825.0 | N159: 50 | O159: Successful | P159: 2022-03-17 | R159: H
A160: 26 | B160: 2022-03-21 | D160: NIFTY 17500 CE 24-MAR | E160: Buy | F160: 77 | G160: 45 | H160: 45 | I160: 120-140 | J160: Loss of Rs.32/- | K160: -32 | L160: 100.00 | M160: -1700.0 | N160: 50 | O160: Unsuccessful | P160: 2022-03-17 | R160: H
A161: 27 | B161: 2022-03-21 | D161: ACC 2100 CE MAR | E161: Buy | F161: 44.5 | G161: 25 | H161: 29 | I161: 65-85 | J161: Loss of Rs.15.5/- | K161: =H161-F161 -> -15.5 | L161: 100.00 | M161: -3975.0 | N161: 250 | O161: Unsuccessful | P161: 2022-03-23 | R161: H
A162: 28 | B162: 2022-03-22 | D162: HDFCBANK 1490 CE MAR | E162: Buy | F162: 20.5 | G162: 12 | H162: 25.5 | I162: 30-40 | J162: Profit of Rs.5/- | K162: 5 | L162: 100.00 | M162: 2650.0 | N162: 550 | O162: Successful | P162: 2022-03-22 | R162: N
A163: 29 | B163: 2022-03-22 | D163: LT 1760 CE MAR | E163: Buy | F163: 28.5 | G163: 20 | H163: 34.5 | I163: 40-48 | J163: Profit of Rs.6/- | K163: 6 | L163: 100.00 | M163: 3350.0 | N163: 575 | O163: Successful | P163: 2022-03-22 | R163: N
A164: 30 | B164: 2022-03-22 | D164: NIFTY 17500 CE 31-MAR | E164: Buy | F164: 167.5 | G164: 90 | H164: 197.5 | I164: 250-300 | J164: Profit of Rs.30/- | K164: 30 | L164: 100.00 | M164: 1400.0 | N164: 50 | O164: Successful | P164: 2022-03-22 | R164: H
A165: 31 | B165: 2022-03-22 | D165: ASIANPAINT 3080 CE MAR | E165: Buy | F165: 56.5 | G165: 30 | H165: 72 | I165: 90-110 | J165: Profit of Rs.15.5/- | K165: 15.5 | L165: 100.00 | M165: 2225.0 | N165: 150 | O165: Successful | P165: 2022-03-23 | R165: N
A166: 32 | B166: 2022-03-22 | D166: HDFC 2400 CE MAR | E166: Buy | F166: 42 | G166: 27 | H166: 51 | I166: 55-65 | J166: Profit of Rs.9/- | K166: 9 | L166: 100.00 | M166: 2600.0 | N166: 300 | O166: Successful | P166: 2022-03-23 | R166: H
A167: 33 | B167: 2022-03-22 | D167: RELIANCE 2540 CE MAR | E167: Buy | F167: 41 | G167: 25 | H167: 49 | I167: 55-65 | J167: Profit of Rs.8/- | K167: 8 | L167: 100.00 | M167: 1900.0 | N167: 250 | O167: Successful | P167: 2022-03-23 | R167: H
A168: 34 | B168: 2022-03-22 | D168: BERGEPAINT 720 CE MAR | E168: Buy | F168: 6.0-7.0 | G168: 2.8 | I168: 12.0-14.0 | R168: H
A169: 30 | B169: 2022-03-23 | D169: NIFTY 17500 CE 31-MAR | E169: Buy | F169: 167.5 | G169: 90 | H169: 192 | I169: 250-300 | J169: Profit of Rs.24.5/- | K169: =H169-F169 -> 24.5 | L169: 100.00 | M169: =(K169*N169)-L169 -> 1125.0 | N169: 50 | O169: Successful | P169: 2022-03-23 | R169: H
A170: 31 | B170: 2022-03-23 | D170: HDFC 2400 CE MAR | E170: Buy | F170: 36 | G170: 20 | H170: 20 | I170: 55-65 | J170: Loss of Rs.16/- | K170: =H170-F170 -> -16 | L170: 100.00 | M170: =(K170*N170)-L170 -> -4900.0 | N170: 300 | O170: Unsuccessful | P170: 2022-03-24 | R170: H
A171: 32 | B171: 2022-03-23 | D171: CUB 120 PE MAR | E171: Buy | F171: 1-1.20 | G171: 0 | I171: 2.0-3.0 | J171: Open | R171: N
A172: 33 | B172: 2022-03-24 | D172: NIFTY 17200 PE 24-MAR | E172: Buy | F172: 36.5 | H172: 63.5 | I172: 70-100 | J172: Profit of Rs.27/- | K172: =H172-F172 -> 27 | L172: 100.00 | M172: =(K172*N172)-L172 -> 1250.0 | N172: 50 | O172: Successful | P172: 2022-03-24 | R172: N
A173: 34 | B173: 2022-03-24 | D173: NIFTY 17200 CE 24-MAR | E173: Buy | F173: 31.5 | H173: 54.5 | I173: 70-90 | J173: Profit of Rs.23/- | K173: =H173-F173 -> 23 | L173: 100.00 | M173: =(K173*N173)-L173 -> 1050.0 | N173: 50 | O173: Successful | P173: 2022-03-24 | R173: N
A174: 35 | B174: 2022-03-24 | D174: RELIANCE 2560 CE MAR | E174: Buy | F174: 32.5 | G174: 15 | H174: 48.5 | I174: 50-60 | J174: Profit of Rs.16/- | K174: =H174-F174 -> 16 | L174: 100.00 | M174: =(K174*N174)-L174 -> 3900.0 | N174: 250 | O174: Successful | P174: 2022-03-24 | R174: N
A179: Techno -Funda (positional)
A180: Sr.no | B180: Date | D180: Company | E180: Rec | F180: Rec Price | G180: Stop Loss*** | H180: Call Closed At | I180: Target | J180: Remark | K180: Profit / Loss per Share/Lot | L180: All charges | M180: Net Gain / Loss % | N180: Status | O180: Closed Date | P180: Market Closing Price
A181: 1 | B181: 2021-10-19 | D181: ITC | E181: Buy<> | F181: 235.25 | G181: 198 | I181: 320-340 | J181: Open | R181: H
A182: 2 | B182: 2022-02-07 | D182: BEL | E182: Buy | F182: 200 | G182: 183 | H182: 224.00 | I182: 230-240 | J182: Profit of Rs.24/- | K182: =H182-F182 -> 24 | L182: =(F182*-0.7)/100 -> -1.40 | M182: =(K182+L182)/F182 -> 11.30% | N182: Successful | O182: 2022-03-04 | R182: H
A184: CLBS = Closing Basis *** | F184: Reinitiated $
A185: Dividend adjusted <> | F185: Revised stoploss # | H185: .................
B187: Intrday Call
A188: Sr.no | B188: Date | D188: Company | E188: Rec | F188: Rec Price | G188: Stop Loss | H188: Call Closed At | I188: Target | J188: Remark | K188: Profit / Loss per Share/Lot | L188: Gain / Loss per Lot | M188: Lot | N188: All charges | O188: Net Gain / Loss % | P188: Status | Q188: Closed Date
B201: Investment Idea
A202: Sr.no | B202: Date | D202: Company | E202: Rec | F202: Rec Price | G202: Point of Review | H202: Close Rate | I202: Target | J202: Remark | K202: Profit / Loss per Share | L202: Gain / Loss % | M202: Status | N202: Closed Date
A203: 1 | B203: 2013-11-01 | D203: L&T Finance Holding | E203: Accu | F203: 82.00 | G203: - | H203: 100 | I203: 100.00 | J203: Target Achieved | K203: =H203-F203 -> 18.00 | L203: =K203/F203 -> 21.95% | M203: Successful | N203: 2016-10-14
A204: 2 | B204: 2014-06-04 | D204: Finolex Inds | E204: Buy | F204: 257.00 | G204: - | H204: 300 | I204: 300.00 | J204: Target Achieved | K204: 43.00 | L204: 16.73% | M204: Successful | N204: 2014-07-02
A205: 3 | B205: 2014-07-08 | D205: JK Cement | E205: Buy | F205: 393.00 | G205: - | H205: 468 | I205: 468.00 | J205: Target Achieved | K205: 75.00 | L205: 19.08% | M205: Successful | N205: 2014-08-12
A206: 4 | B206: 2014-08-06 | D206: Finolex Cables | E206: Buy | F206: 205.00 | G206: - | H206: 275 | I206: 250.00 | J206: Target Achieved | K206: 70.00 | L206: 34.15% | M206: Successful | N206: 2014-11-19
A207: 5 | B207: 2014-09-04 | D207: Exide Inds | E207: Buy | F207: 162.00 | G207: - | H207: 190 | I207: 190.00 | J207: Target Achieved | K207: 28.00 | L207: 17.28% | M207: Successful | N207: 2015-01-02
A208: 6 | B208: 2014-09-04 | D208: Deepak Nitrite | E208: Buy | F208: 75.00 | G208: - | H208: 91.5 | I208: 95-100 | J208: Profit of Rs.16.50/- | K208: 16.50 | L208: 22.00% | M208: Successful | N208: 2014-11-11
A209: 7 | B209: 2014-10-01 | D209: Mercks | E209: Buy | F209: 850.00 | G209: - | H209: 982.5 | I209: 1050.00 | J209: Profit of Rs.132.50/- | K209: 132.50 | L209: 15.59% | M209: Successful | N209: 2015-02-04
A210: 8 | B210: 2014-10-01 | D210: Grindwell Norton | E210: Buy | F210: 475.00 | G210: - | H210: 515 | I210: 600.00 | J210: Profit of Rs.40/- | K210: 40.00 | L210: 8.42% | M210: Successful | N210: 2014-10-27
A211: 9 | B211: 2014-10-01 | D211: Snowman Logistics | E211: Buy | F211: 86.00 | G211: - | H211: 99 | I211: 140.00 | J211: Profit of Rs.13.00/- | K211: 13.00 | L211: 15.12% | M211: Successful | N211: 2014-10-27
A212: 10 | B212: 2014-10-14 | D212: Birla Corp | E212: Buy | F212: 496.60 | G212: - | H212: 621 | I212: 580.00 | J212: Target Achieved | K212: 124.40 | L212: 25.05% | M212: Successful | N212: 2016-08-23
A213: 11 | B213: 2014-10-14 | D213: Ultratech Cem | E213: Buy | F213: 2481.90 | G213: - | H213: 2840 | I213: 2870.00 | J213: Profit of Rs.358.10/- | K213: 358.10 | L213: 14.43% | M213: Successful | N213: 2015-01-13
A214: 12 | B214: 2014-10-16 | D214: Sintex Inds | E214: Buy | F214: 84.50 | G214: - | H214: 93 | I214: 110.00 | J214: Profit of Rs.8.50/- | K214: 8.50 | L214: 10.06% | M214: Successful | N214: 2014-10-27
A215: 13 | B215: 2014-10-16 | D215: HSIL | E215: Buy | F215: 401.00 | G215: - | H215: 428 | I215: 450.00 | J215: Profit of Rs.27.00/- | K215: 27.00 | L215: 6.73% | M215: Successful | N215: 2015-01-16
A216: 14 | B216: 2014-10-16 | D216: Eveready Inds | E216: Buy | F216: 101.00 | G216: - | H216: 112 | I216: 120.00 | J216: Profit of Rs.11.00/- | K216: 11.00 | L216: 10.89% | M216: Successful | N216: 2014-10-27
A217: 15 | B217: 2014-11-11 | D217: Pennar Inds | E217: Buy | F217: 59.00 | G217: - | H217: 76 | I217: 76.00 | J217: Target Achieved | K217: 17.00 | L217: 28.81% | M217: Successful | N217: 2017-10-24
A218: 16 | B218: 2014-11-11 | D218: Snowman Logistics | E218: Buy | F218: 99.00 | G218: - | H218: 120 | I218: 120.00 | J218: Profit of Rs.21/- | K218: 21.00 | L218: 21.21% | M218: Successful | N218: 2014-11-17
A219: 17 | B219: 2014-11-13 | D219: Dharamsi Morarji Chem | E219: Buy | F219: 22.00 | G219: - | H219: 33.55 | I219: 32.00 | J219: Profit of Rs 11.55/- | K219: 11.55 | L219: 52.50% | M219: Successful | N219: 2015-07-03
A220: 18 | B220: 2014-12-03 | D220: Tatachem | E220: Buy | F220: 440.00 | G220: - | H220: 520 | I220: 520.00 | J220: Profit of Rs 80.00/- | K220: 80.00 | L220: 18.18% | M220: Successful | N220: 2015-07-23
A221: 19 | B221: 2014-12-03 | D221: Advanta | E221: Buy | F221: 360.00 | G221: - | H221: 427 | I221: 425.00 | J221: Profit of Rs.67.00/- | K221: 67.00 | L221: 18.61% | M221: Successful | N221: 2015-02-23
A222: 20 | B222: 2015-01-08 | D222: GDL | E222: Buy | F222: 360.00 | G222: - | H222: 455 | I222: 420.00 | J222: Profit of Rs.95.00/- | K222: 95.00 | L222: 26.39% | M222: Successful | N222: 2015-01-20
A223: 21 | B223: 2015-01-08 | D223: NRB Bearing | E223: Buy | F223: 130.00 | H223: 175.5 | I223: 165.00 | J223: Profit of Rs 45.50/- | K223: 45.50 | L223: 35.00% | M223: Successful | N223: 2017-12-19
A224: 22 | B224: 2015-02-05 | D224: GSFC | E224: Accu | F224: 98.00 | H224: 120 | I224: 120.00 | J224: Target Achieved | K224: 22.00 | L224: 22.45% | M224: Successful | N224: 2017-01-18
A225: 23 | B225: 2015-02-05 | D225: Sundrmfast | E225: Accu | F225: 196.00 | H225: 262 | I225: 255.00 | J225: Target Achieved | K225: 66.00 | L225: 33.67% | M225: Successful | N225: 2016-08-17
A226: 24 | B226: 2015-03-04 | D226: GPPL | E226: Accu | F226: 235 | H226: 77.00 | I226: 280-285 | J226: Loss of Rs.158/- | K226: -158.00 | L226: -67.23% | M226: Unsuccessful | N226: 2019-02-26
A227: 25 | B227: 2015-03-04 | D227: ORIENTCEM | E227: Accu | F227: 185.00 | H227: 224 | I227: 220-225 | J227: Target Achieved | K227: 39.00 | L227: 21.08% | M227: Successful | N227: 2016-10-04
A228: 26 | B228: 2015-03-27 | D228: PFS | E228: Accu | F228: 49.5 | H228: 15.85 | I228: 67.00 | J228: Loss of Rs.33.65/- | K228: -33.65 | L228: -68% | M228: Unsuccessful | N228: 2019-06-11
A229: 27 | B229: 2015-03-30 | D229: Walchandnagar Ind Ltd | E229: Accu | F229: 183.50 | H229: 219 | I229: 218.00 | J229: Profit of Rs.35.50/- | K229: 35.50 | L229: 19.35% | M229: Successful | N229: 2015-04-09
A230: 28 | B230: 2015-04-20 | D230: Kalpataru Power Transmission Ltd | E230: Accu | F230: =(227+237)/2 -> 232.00 | H230: 298 | I230: 298.00 | J230: Target Achieved | K230: 66.00 | L230: 28.45% | M230: Successful | N230: 2017-03-29
A231: 29 | B231: 2015-05-04 | D231: Mastek Ltd | E231: Buy | F231: 385.00 | H231: =212.5+331 -> 543.5 | I231: 510.00 | J231: Profit of Rs 158.50/- | K231: 158.50 | L231: 41.17% | M231: Successful | N231: 2015-08-19
A232: 30 | B232: 2015-05-04 | D232: Suprajit Eng | E232: Buy | F232: 115.50 | H232: 146 | I232: 142.00 | J232: Profit of Rs 30.50/- | K232: 30.50 | L232: 26.41% | M232: Successful | N232: 2015-07-17
A233: 31 | B233: 2015-05-27 | D233: TCI | E233: Buy | F233: 237.50 | H233: 279.5 | I233: 278.00 | J233: Target Achieved | K233: 42.00 | L233: 17.68% | M233: Successful | N233: 2015-08-06
A234: 32 | B234: 2015-06-19 | D234: HSIL | E234: Accu | F234: 340.00 | H234: 448 | I234: 448.00 | J234: Target Achieved | K234: 108.00 | L234: 31.76% | M234: Successful | N234: 2017-10-10
... 144 more rows
